Workbook

Sheet Stavba
C2: Položkový rozpočet stavby | H2: Datum: | I2: =TODAY() -> 2021-01-13
C5: Stavba : | D5: 3257 | E5: Turnov - objekt ul. 5. května čp.26
C7: Objednatel : | D7: Město TURNOV | H7: IČO : | I7: 00276227
D8: Antonína Dvořáka 335 | H8: DIČ : | I8: CZ00276227
C9: 51122 | D9: Turnov
C11: Zhotovitel : | D11: . | H11: IČO :
H12: DIČ :
C14: Za zhotovitele : | H14: Za objednatele :
C16: _______________ | H16: _______________
J18: Rozpočtové náklady
B19: Základ pro DPH | D19: 15 | E19: % | I19: =ROUND(G31,0) -> 0
B20: DPH | D20: =SazbaDPH1 -> 15 | E20: % | I20: =ROUND(I19*D20/100,0) -> 0
B21: Základ pro DPH | D21: 21 | E21: % | I21: =ROUND(H31,0) -> 0
B22: DPH | D22: =SazbaDPH2 -> 21 | E22: % | I22: =ROUND(I21*D21/100,0) -> 0
B23: Cena celkem za stavbu | I23: =SUM(I19:I22) -> 0
B27: Rekapitulace stavebních objektů a provozních souborů
B29: Číslo a název objektu / provozního souboru | F29: Cena celkem | G29: =CONCATENATE("Základ DPH ",SazbaDPH1," %") -> Základ DPH 15 % | H29: =CONCATENATE("Základ DPH ",SazbaDPH2," %") -> Základ DPH 21 % | I29: DPH celkem | J29: %
B30: 01 | C30: Objekt ul. 5. května čp.26 | F30: =G30+H30+I30 -> 0 | G30: =SUM(G47) -> 0 | H30: 0 | I30: =(G30*SazbaDPH1)/100+(H30*SazbaDPH2)/100 -> 0 | J30: =IF(CelkemObjekty=0,"",F30/CelkemObjekty*100) -> 
B31: Celkem za stavbu | F31: =SUM(F30:F30) -> 0 | G31: =SUM(G30:G30) -> 0 | H31: =SUM(H30:H30) -> 0 | I31: =SUM(I30:I30) -> 0 | J31: =IF(CelkemObjekty=0,"",F31/CelkemObjekty*100) -> 
B35: Rekapitulace stavebních rozpočtů
B37: Číslo objektu | C37: Číslo a název rozpočtu | F37: Cena celkem | G37: =CONCATENATE("Základ DPH ",SazbaDPH1," %") -> Základ DPH 15 % | H37: =CONCATENATE("Základ DPH ",SazbaDPH2," %") -> Základ DPH 21 % | I37: DPH celkem | J37: %
B38: 01 | C38: 3257/01.1 Byt č. 1 - 2.NP | F38: =G38+H38+I38 -> 0 | G38: =SUM('01 325701.1 KL'!C23) -> 0 | H38: 0 | I38: =(G38*SazbaDPH1)/100+(H38*SazbaDPH2)/100 -> 0 | J38: =IF(CelkemObjekty=0,"",F38/CelkemObjekty*100) -> 
B39: 01 | C39: 3257/01.2 Byt č. 2 - 2.NP | F39: =G39+H39+I39 -> 0 | G39: =SUM('01 325701.2 KL'!C23) -> 0 | H39: 0 | I39: 0
B40: 01 | C40: 3257/01.3 Byt č. 3 - 3.NP | F40: 0 | G40: =SUM('01 325701.3 KL'!C23) -> 0 | H40: 0 | I40: 0
B41: 01 | C41: 3257/01.4 Byt č. 4 - 3.NP | F41: 0 | G41: =SUM('01 325701.4 KL'!C23) -> 0 | H41: 0 | I41: 0
B42: 01 | C42: 3257/01.5 Byt č. 5 - 3.NP | F42: 0 | G42: =SUM('01 325701.5 KL'!C23) -> 0 | H42: 0 | I42: 0
B43: 01 | C43: 3257/01.6 Byt č. 6 - 3.NP | F43: 0 | G43: =SUM('01 325701.6 KL'!C23) -> 0 | H43: 0 | I43: 0
B44: 01 | C44: 3257/01.7 Byt č. 7 - 4.NP | F44: 0 | G44: =SUM('01 325701.7 KL'!C23) -> 0 | H44: 0 | I44: 0
B45: 01 | C45: 3257/01.8 Byt č. 8 - 4.NP | F45: 0 | G45: =SUM('01 325701.8 KL'!C23) -> 0 | H45: 0 | I45: 0
B46: 01 | C46: 3257/01.9 Chodba - 2. - 3.NP | F46: 0 | G46: =SUM('01 325701.9 KL'!C23) -> 0 | H46: 0 | I46: 0
B47: Celkem za stavbu | F47: =SUM(F38:F46) -> 0 | G47: =SUM(G38:G46) -> 0 | H47: =SUM(H38:H46) -> 0 | I47: =SUM(I38:I46) -> 0 | J47: =IF(CelkemObjekty=0,"",F47/CelkemObjekty*100) -> 

Sheet 01 325701.1 KL
A1: POLOŽKOVÝ ROZPOČET
A2: Rozpočet | C2: 3257/01.1 | D2: Byt č. 1 - 2.NP | F2: JKSO | G2: 803.5
A4: Objekt | F4: SKP
A5: 01 | C5: Objekt ul. 5. května čp.26 | F5: Měrná jednotka | G5: m3
A6: Stavba | F6: Počet jednotek | G6: 0
A7: 3257 | C7: Turnov - objekt ul. 5. května čp.26 | F7: Náklady na m.j. | G7: =IF(G6=0,,ROUND((F30+F32)/G6,1)) -> 0
A8: Projektant | F8: Typ rozpočtu
A9: Zpracovatel projektu
A10: Objednatel | C10: Město TURNOV
A11: Dodavatel | C11: . | F11: Zakázkové číslo
A12: Rozpočtoval | F12: Počet listů
A13: ROZPOČTOVÉ NÁKLADY
A14: Základní rozpočtové náklady | D14: Ostatní náklady stavby
B15: HSV celkem | C15: ='01 325701.1 Rek'!E16 -> 0 | D15: ='01 325701.1 Rek'!A21 -> Zařízení staveniště | G15: ='01 325701.1 Rek'!I21 -> 0
A16: Z | B16: PSV celkem | C16: ='01 325701.1 Rek'!F16 -> 0 | D16: ='01 325701.1 Rek'!A22 -> Provoz investora | G16: ='01 325701.1 Rek'!I22 -> 0
A17: R | B17: M práce celkem | C17: ='01 325701.1 Rek'!H16 -> 0 | D17: ='01 325701.1 Rek'!A23 -> Kompletační činnost (IČD) | G17: ='01 325701.1 Rek'!I23 -> 0
A18: N | B18: M dodávky celkem | C18: ='01 325701.1 Rek'!G16 -> 0
A19: ZRN celkem | C19: =SUM(C15:C18) -> 0
A21: HZS | C21: ='01 325701.1 Rek'!I16 -> 0
A22: ZRN+HZS | C22: =C19+C21 -> 0
A23: ZRN+ost.náklady+HZS | C23: =C22+G23 -> 0 | D23: Ostatní náklady celkem | G23: ='01 325701.1 Rek'!H24 -> 0
A24: Vypracoval | D24: Za zhotovitele | F24: Za objednatele
A25: Jméno : | D25: Jméno : | F25: Jméno :
A26: Datum : | D26: Datum : | F26: Datum :
A28: Podpis : | D28: Podpis: | F28: Podpis:
A30: Základ pro DPH | C30: 15 | D30: % | F30: =C23-F32 -> 0
A31: DPH | C31: =C30 -> 15 | D31: % | F31: =ROUND(PRODUCT(F30,C31/100),0) -> 0
A32: Základ pro DPH | C32: 0 | D32: % | F32: 0
A33: DPH | C33: =C32 -> 0 | D33: % | F33: =ROUND(PRODUCT(F32,C33/100),0) -> 0
A34: CENA ZA OBJEKT CELKEM | F34: =ROUND(SUM(F30:F33),0) -> 0
A36: Poznámka :

Sheet 01 325701.1 Rek
A1: Stavba : | C1: 3257 Turnov - objekt ul. 5. května čp.26 | G1: Rozpočet : | H1: 3257/01.1
A2: Objekt : | C2: 01 Objekt ul. 5. května čp.26 | G2: Byt č. 1 - 2.NP
A4: REKAPITULACE STAVEBNÍCH DÍLŮ
B6: Stavební díl | E6: HSV | F6: PSV | G6: Dodávka | H6: Montáž | I6: HZS
A7: ='01 325701.1 Pol'!B7 -> 61 | B7: ='01 325701.1 Pol'!C7 -> Upravy povrchů vnitřní | E7: ='01 325701.1 Pol'!BA21 -> 0 | F7: ='01 325701.1 Pol'!BB21 -> 0 | G7: ='01 325701.1 Pol'!BC21 -> 0 | H7: ='01 325701.1 Pol'!BD21 -> 0 | I7: ='01 325701.1 Pol'!BE21 -> 0
A8: ='01 325701.1 Pol'!B22 -> 63 | B8: ='01 325701.1 Pol'!C22 -> Podlahy a podlahové konstrukce | E8: ='01 325701.1 Pol'!BA26 -> 0 | F8: ='01 325701.1 Pol'!BB26 -> 0 | G8: ='01 325701.1 Pol'!BC26 -> 0 | H8: ='01 325701.1 Pol'!BD26 -> 0 | I8: ='01 325701.1 Pol'!BE26 -> 0
A9: ='01 325701.1 Pol'!B27 -> 94 | B9: ='01 325701.1 Pol'!C27 -> Lešení a stavební výtahy | E9: ='01 325701.1 Pol'!BA31 -> 0 | F9: ='01 325701.1 Pol'!BB31 -> 0 | G9: ='01 325701.1 Pol'!BC31 -> 0 | H9: ='01 325701.1 Pol'!BD31 -> 0 | I9: ='01 325701.1 Pol'!BE31 -> 0
A10: ='01 325701.1 Pol'!B32 -> 96 | B10: ='01 325701.1 Pol'!C32 -> Bourání konstrukcí | E10: ='01 325701.1 Pol'!BA45 -> 0 | F10: ='01 325701.1 Pol'!BB45 -> 0 | G10: ='01 325701.1 Pol'!BC45 -> 0 | H10: ='01 325701.1 Pol'!BD45 -> 0 | I10: ='01 325701.1 Pol'!BE45 -> 0
A11: ='01 325701.1 Pol'!B46 -> 99 | B11: ='01 325701.1 Pol'!C46 -> Staveništní přesun hmot | E11: ='01 325701.1 Pol'!BA48 -> 0 | F11: ='01 325701.1 Pol'!BB48 -> 0 | G11: ='01 325701.1 Pol'!BC48 -> 0 | H11: ='01 325701.1 Pol'!BD48 -> 0 | I11: ='01 325701.1 Pol'!BE48 -> 0
A12: ='01 325701.1 Pol'!B49 -> 764 | B12: ='01 325701.1 Pol'!C49 -> Konstrukce klempířské | E12: ='01 325701.1 Pol'!BA54 -> 0 | F12: ='01 325701.1 Pol'!BB54 -> 0 | G12: ='01 325701.1 Pol'!BC54 -> 0 | H12: ='01 325701.1 Pol'!BD54 -> 0 | I12: ='01 325701.1 Pol'!BE54 -> 0
A13: ='01 325701.1 Pol'!B55 -> 766 | B13: ='01 325701.1 Pol'!C55 -> Konstrukce truhlářské | E13: ='01 325701.1 Pol'!BA92 -> 0 | F13: ='01 325701.1 Pol'!BB92 -> 0 | G13: ='01 325701.1 Pol'!BC92 -> 0 | H13: ='01 325701.1 Pol'!BD92 -> 0 | I13: ='01 325701.1 Pol'!BE92 -> 0
A14: ='01 325701.1 Pol'!B93 -> 784 | B14: ='01 325701.1 Pol'!C93 -> Malby | E14: ='01 325701.1 Pol'!BA97 -> 0 | F14: ='01 325701.1 Pol'!BB97 -> 0 | G14: ='01 325701.1 Pol'!BC97 -> 0 | H14: ='01 325701.1 Pol'!BD97 -> 0 | I14: ='01 325701.1 Pol'!BE97 -> 0
A15: ='01 325701.1 Pol'!B98 -> D96 | B15: ='01 325701.1 Pol'!C98 -> Přesuny suti a vybouraných hmot | E15: ='01 325701.1 Pol'!BA104 -> 0 | F15: ='01 325701.1 Pol'!BB104 -> 0 | G15: ='01 325701.1 Pol'!BC104 -> 0 | H15: ='01 325701.1 Pol'!BD104 -> 0 | I15: ='01 325701.1 Pol'!BE104 -> 0
B16: CELKEM OBJEKT | E16: =SUM(E7:E15) -> 0 | F16: =SUM(F7:F15) -> 0 | G16: =SUM(G7:G15) -> 0 | H16: =SUM(H7:H15) -> 0 | I16: =SUM(I7:I15) -> 0
A18: OSTATNÍ NÁKLADY STAVBY
A20: Název ONS | E20: Kč | I20: Kč
A21: Zařízení staveniště | E21: 0 | I21: =E21+F21*G21/100 -> 0 | BA21: 2
A22: Provoz investora | E22: 0 | I22: =E22+F22*G22/100 -> 0 | BA22: 1
A23: Kompletační činnost (IČD) | E23: 0 | I23: =E23+F23*G23/100 -> 0 | BA23: 2
B24: CELKEM ONS | H24: =SUM(I21:I23) -> 0

Sheet 01 325701.1 Pol
A1: Položkový rozpočet
A3: Stavba : | C3: 3257 Turnov - objekt ul. 5. května čp.26 | E3: Rozpočet: | F3: ='01 325701.1 Rek'!H1 -> 3257/01.1
A4: Objekt : | C4: 01 Objekt ul. 5. května čp.26 | E4: ='01 325701.1 Rek'!G2 -> Byt č. 1 - 2.NP
A6: P.č. | B6: Číslo položky | C6: Název položky | D6: MJ | E6: množství | F6: cena / MJ | G6: celkem (Kč) | H6: Jednotková hmotnost | I6: Celková hmotnost | J6: Jednotková dem.hmot. | K6: Celková dem.hmot.
A7: Díl: | B7: 61 | C7: Upravy povrchů vnitřní | O7: 1
A8: 1 | B8: 610991111R00 | C8: Zakrývání výplní vnitřních otvorů | D8: m2 | E8: 7.41 | G8: =E8*F8 -> 0 | H8: 4e-05 | I8: =E8*H8 -> 0.0002964 | J8: 0 | K8: =E8*J8 -> 0 | O8: 2 | AA8: 1 | AB8: 1 | AC8: 1 | AZ8: 1 | BA8: =IF(AZ8=1,G8,0) -> 0 | BB8: =IF(AZ8=2,G8,0) -> 0 | BC8: =IF(AZ8=3,G8,0) -> 0 | BD8: =IF(AZ8=4,G8,0) -> 0 | BE8: =IF(AZ8=5,G8,0) -> 0 | CA8: 1 | CB8: 1
C9: Byt č. 1 90x160 cm:0,90*(1,60+0,30)*2 | E9: 3.42 | M9: Byt č. 1 90x160 cm:0,90*(1,60+0,30)*2
C10: Byt č. 1 210x160 cm:2,10*(1,60+0,30)*1 | E10: 3.99 | M10: Byt č. 1 210x160 cm:2,10*(1,60+0,30)*1
A11: 2 | B11: 610991199RRX | C11: Zakrývání vybavení částí bytu dle potřeb zhotovitele pro realizaci výměny oken | D11: soubor | E11: 1 | G11: =E11*F11 -> 0 | H11: 0 | I11: =E11*H11 -> 0 | J11: 0 | K11: =E11*J11 -> 0 | O11: 2 | AA11: 1 | AB11: 0 | AC11: 0 | AZ11: 1 | BA11: =IF(AZ11=1,G11,0) -> 0 | BB11: =IF(AZ11=2,G11,0) -> 0 | BC11: =IF(AZ11=3,G11,0) -> 0 | BD11: =IF(AZ11=4,G11,0) -> 0 | BE11: =IF(AZ11=5,G11,0) -> 0 | CA11: 1 | CB11: 0
A12: 3 | B12: 612409991RT2 | C12: Začištění omítek kolem oken,dveří apod. s použitím suché maltové směsi | D12: m | E12: 17.4 | G12: =E12*F12 -> 0 | H12: 0.00238 | I12: =E12*H12 -> 0.041412 | J12: 0 | K12: =E12*J12 -> 0 | O12: 2 | AA12: 1 | AB12: 1 | AC12: 1 | AZ12: 1 | BA12: =IF(AZ12=1,G12,0) -> 0 | BB12: =IF(AZ12=2,G12,0) -> 0 | BC12: =IF(AZ12=3,G12,0) -> 0 | BD12: =IF(AZ12=4,G12,0) -> 0 | BE12: =IF(AZ12=5,G12,0) -> 0 | CA12: 1 | CB12: 1
C13: Byt č. 1 90x160 cm:(0,90+1,60)*2*2 | E13: 10 | M13: Byt č. 1 90x160 cm:(0,90+1,60)*2*2
C14: Byt č. 1 210x160 cm:(2,10+1,60)*2*1 | E14: 7.4 | M14: Byt č. 1 210x160 cm:(2,10+1,60)*2*1
A15: 4 | B15: 612425931RT2 | C15: Omítka vápenná vnitřního ostění - štuková s použitím suché maltové směsi | D15: m2 | E15: 4.05 | G15: =E15*F15 -> 0 | H15: 0.03491 | I15: =E15*H15 -> 0.1413855 | J15: 0 | K15: =E15*J15 -> 0 | O15: 2 | AA15: 1 | AB15: 1 | AC15: 1 | AZ15: 1 | BA15: =IF(AZ15=1,G15,0) -> 0 | BB15: =IF(AZ15=2,G15,0) -> 0 | BC15: =IF(AZ15=3,G15,0) -> 0 | BD15: =IF(AZ15=4,G15,0) -> 0 | BE15: =IF(AZ15=5,G15,0) -> 0 | CA15: 1 | CB15: 1
C16: Byt č. 1 90x160 cm:0,30*(0,90+2*1,60)*2 | E16: 2.46 | M16: Byt č. 1 90x160 cm:0,30*(0,90+2*1,60)*2
C17: Byt č. 1 210x160 cm:0,30*(2,10+2*1,60)*1 | E17: 1.59 | M17: Byt č. 1 210x160 cm:0,30*(2,10+2*1,60)*1
A18: 5 | B18: 622473187RT2 | C18: Příplatek za okenní lištu (APU) - montáž včetně dodávky lišty | D18: m | E18: 13.5 | G18: =E18*F18 -> 0 | H18: 0.00015 | I18: =E18*H18 -> 0.002025 | J18: 0 | K18: =E18*J18 -> 0 | O18: 2 | AA18: 1 | AB18: 1 | AC18: 1 | AZ18: 1 | BA18: =IF(AZ18=1,G18,0) -> 0 | BB18: =IF(AZ18=2,G18,0) -> 0 | BC18: =IF(AZ18=3,G18,0) -> 0 | BD18: =IF(AZ18=4,G18,0) -> 0 | BE18: =IF(AZ18=5,G18,0) -> 0 | CA18: 1 | CB18: 1
C19: Byt č. 1 90x160 cm:(0,90+2*1,60)*2 | E19: 8.2 | M19: Byt č. 1 90x160 cm:(0,90+2*1,60)*2
C20: Byt č. 1 210x160 cm:(2,10+2*1,60)*1 | E20: 5.3 | M20: Byt č. 1 210x160 cm:(2,10+2*1,60)*1
B21: Celkem za | C21: 61 Upravy povrchů vnitřní | G21: =SUM(G7:G20) -> 0 | I21: =SUM(I7:I20) -> 0.1851189 | K21: =SUM(K7:K20) -> 0 | O21: 4 | BA21: =SUM(BA7:BA20) -> 0 | BB21: =SUM(BB7:BB20) -> 0 | BC21: =SUM(BC7:BC20) -> 0 | BD21: =SUM(BD7:BD20) -> 0 | BE21: =SUM(BE7:BE20) -> 0
A22: Díl: | B22: 63 | C22: Podlahy a podlahové konstrukce | O22: 1
A23: 6 | B23: 632411104R00 | C23: Vyrovnávací stěrka, ruční zprac. tl.4 mm | D23: m2 | E23: 1.17 | G23: =E23*F23 -> 0 | H23: 0.007 | I23: =E23*H23 -> 0.00819 | J23: 0 | K23: =E23*J23 -> 0 | O23: 2 | AA23: 1 | AB23: 1 | AC23: 1 | AZ23: 1 | BA23: =IF(AZ23=1,G23,0) -> 0 | BB23: =IF(AZ23=2,G23,0) -> 0 | BC23: =IF(AZ23=3,G23,0) -> 0 | BD23: =IF(AZ23=4,G23,0) -> 0 | BE23: =IF(AZ23=5,G23,0) -> 0 | CA23: 1 | CB23: 1
C24: Byt č. 1 90x160 cm - parapet:0,90*0,30*2 | E24: 0.54 | M24: Byt č. 1 90x160 cm - parapet:0,90*0,30*2
C25: Byt č. 1 210x160 cm - parapet:2,10*0,30*1 | E25: 0.63 | M25: Byt č. 1 210x160 cm - parapet:2,10*0,30*1
B26: Celkem za | C26: 63 Podlahy a podlahové konstrukce | G26: =SUM(G22:G25) -> 0 | I26: =SUM(I22:I25) -> 0.00819 | K26: =SUM(K22:K25) -> 0 | O26: 4 | BA26: =SUM(BA22:BA25) -> 0 | BB26: =SUM(BB22:BB25) -> 0 | BC26: =SUM(BC22:BC25) -> 0 | BD26: =SUM(BD22:BD25) -> 0 | BE26: =SUM(BE22:BE25) -> 0
A27: Díl: | B27: 94 | C27: Lešení a stavební výtahy | O27: 1
A28: 7 | B28: 941955001R00 | C28: Lešení lehké pomocné, výška podlahy do 1,2 m | D28: m2 | E28: 9.6 | G28: =E28*F28 -> 0 | H28: 0.00121 | I28: =E28*H28 -> 0.011616 | J28: 0 | K28: =E28*J28 -> 0 | O28: 2 | AA28: 1 | AB28: 1 | AC28: 1 | AZ28: 1 | BA28: =IF(AZ28=1,G28,0) -> 0 | BB28: =IF(AZ28=2,G28,0) -> 0 | BC28: =IF(AZ28=3,G28,0) -> 0 | BD28: =IF(AZ28=4,G28,0) -> 0 | BE28: =IF(AZ28=5,G28,0) -> 0 | CA28: 1 | CB28: 1
C29: Byt č. 1 90x160 cm:1,20*1,00*2*2 | E29: 4.8 | M29: Byt č. 1 90x160 cm:1,20*1,00*2*2
C30: Byt č. 1 210x160 cm:2,40*1,00*1*2 | E30: 4.8 | M30: Byt č. 1 210x160 cm:2,40*1,00*1*2
B31: Celkem za | C31: 94 Lešení a stavební výtahy | G31: =SUM(G27:G30) -> 0 | I31: =SUM(I27:I30) -> 0.011616 | K31: =SUM(K27:K30) -> 0 | O31: 4 | BA31: =SUM(BA27:BA30) -> 0 | BB31: =SUM(BB27:BB30) -> 0 | BC31: =SUM(BC27:BC30) -> 0 | BD31: =SUM(BD27:BD30) -> 0 | BE31: =SUM(BE27:BE30) -> 0
A32: Díl: | B32: 96 | C32: Bourání konstrukcí | O32: 1
A33: 8 | B33: 967031132R00 | C33: Přisekání rovných ostění cihelných na MVC | D33: m2 | E33: 4.05 | G33: =E33*F33 -> 0 | H33: 0 | I33: =E33*H33 -> 0 | J33: -0.055 | K33: =E33*J33 -> -0.22275 | O33: 2 | AA33: 1 | AB33: 1 | AC33: 1 | AZ33: 1 | BA33: =IF(AZ33=1,G33,0) -> 0 | BB33: =IF(AZ33=2,G33,0) -> 0 | BC33: =IF(AZ33=3,G33,0) -> 0 | BD33: =IF(AZ33=4,G33,0) -> 0 | BE33: =IF(AZ33=5,G33,0) -> 0 | CA33: 1 | CB33: 1
C34: Byt č. 1 90x160 cm:0,30*(0,90+2*1,60)*2 | E34: 2.46 | M34: Byt č. 1 90x160 cm:0,30*(0,90+2*1,60)*2
C35: Byt č. 1 210x160 cm:0,30*(2,10+2*1,60)*1 | E35: 1.59 | M35: Byt č. 1 210x160 cm:0,30*(2,10+2*1,60)*1
A36: 9 | B36: 968061112R00 | C36: Vyvěšení dřevěných okenních křídel pl. do 1,5 m2 | D36: kus | E36: 3 | G36: =E36*F36 -> 0 | H36: 0 | I36: =E36*H36 -> 0 | J36: 0 | K36: =E36*J36 -> 0 | O36: 2 | AA36: 1 | AB36: 1 | AC36: 1 | AZ36: 1 | BA36: =IF(AZ36=1,G36,0) -> 0 | BB36: =IF(AZ36=2,G36,0) -> 0 | BC36: =IF(AZ36=3,G36,0) -> 0 | BD36: =IF(AZ36=4,G36,0) -> 0 | BE36: =IF(AZ36=5,G36,0) -> 0 | CA36: 1 | CB36: 1
C37: Byt č. 1 90x160 cm:1*2 | E37: 2 | M37: Byt č. 1 90x160 cm:1*2
C38: Byt č. 1 210x160 cm:1*1 | E38: 1 | M38: Byt č. 1 210x160 cm:1*1
A39: 10 | B39: 968061113R00 | C39: Vyvěšení dřevěných okenních křídel pl. nad 1,5 m2 | D39: kus | E39: 1 | G39: =E39*F39 -> 0 | H39: 0 | I39: =E39*H39 -> 0 | J39: 0 | K39: =E39*J39 -> 0 | O39: 2 | AA39: 1 | AB39: 1 | AC39: 1 | AZ39: 1 | BA39: =IF(AZ39=1,G39,0) -> 0 | BB39: =IF(AZ39=2,G39,0) -> 0 | BC39: =IF(AZ39=3,G39,0) -> 0 | BD39: =IF(AZ39=4,G39,0) -> 0 | BE39: =IF(AZ39=5,G39,0) -> 0 | CA39: 1 | CB39: 1
C40: Byt č. 1 210x160 cm:1*1 | E40: 1 | M40: Byt č. 1 210x160 cm:1*1
A41: 11 | B41: 968062355RRX | C41: Vybourání dřevěných rámů oken dvojitých pl. 2 m2 včetně parapetů oken | D41: m2 | E41: 2.88 | G41: =E41*F41 -> 0 | H41: 0.001 | I41: =E41*H41 -> 0.00288 | J41: -0.062 | K41: =E41*J41 -> -0.17856 | O41: 2 | AA41: 1 | AB41: 1 | AC41: 1 | AZ41: 1 | BA41: =IF(AZ41=1,G41,0) -> 0 | BB41: =IF(AZ41=2,G41,0) -> 0 | BC41: =IF(AZ41=3,G41,0) -> 0 | BD41: =IF(AZ41=4,G41,0) -> 0 | BE41: =IF(AZ41=5,G41,0) -> 0 | CA41: 1 | CB41: 1
C42: Byt č. 1 90x160 cm:0,90*1,60*2 | E42: 2.88 | M42: Byt č. 1 90x160 cm:0,90*1,60*2
A43: 12 | B43: 968062356RRX | C43: Vybourání dřevěných rámů oken dvojitých pl. 4 m2 včetně parapetů oken | D43: m2 | E43: 3.36 | G43: =E43*F43 -> 0 | H43: 0.00092 | I43: =E43*H43 -> 0.0030912 | J43: -0.054 | K43: =E43*J43 -> -0.18144 | O43: 2 | AA43: 1 | AB43: 1 | AC43: 1 | AZ43: 1 | BA43: =IF(AZ43=1,G43,0) -> 0 | BB43: =IF(AZ43=2,G43,0) -> 0 | BC43: =IF(AZ43=3,G43,0) -> 0 | BD43: =IF(AZ43=4,G43,0) -> 0 | BE43: =IF(AZ43=5,G43,0) -> 0 | CA43: 1 | CB43: 1
C44: Byt č. 1 210x160 cm:2,10*1,60*1 | E44: 3.36 | M44: Byt č. 1 210x160 cm:2,10*1,60*1
B45: Celkem za | C45: 96 Bourání konstrukcí | G45: =SUM(G32:G44) -> 0 | I45: =SUM(I32:I44) -> 0.0059712 | K45: =SUM(K32:K44) -> -0.58275 | O45: 4 | BA45: =SUM(BA32:BA44) -> 0 | BB45: =SUM(BB32:BB44) -> 0 | BC45: =SUM(BC32:BC44) -> 0 | BD45: =SUM(BD32:BD44) -> 0 | BE45: =SUM(BE32:BE44) -> 0
A46: Díl: | B46: 99 | C46: Staveništní přesun hmot | O46: 1
A47: 13 | B47: 999281111R00 | C47: Přesun hmot pro opravy a údržbu do výšky 25 m | D47: t | E47: 0.2108961 | G47: =E47*F47 -> 0 | H47: 0 | I47: =E47*H47 -> 0 | K47: =E47*J47 -> 0 | O47: 2 | AA47: 7 | AB47: 1 | AC47: 2 | AZ47: 1 | BA47: =IF(AZ47=1,G47,0) -> 0 | BB47: =IF(AZ47=2,G47,0) -> 0 | BC47: =IF(AZ47=3,G47,0) -> 0 | BD47: =IF(AZ47=4,G47,0) -> 0 | BE47: =IF(AZ47=5,G47,0) -> 0 | CA47: 7 | CB47: 1
B48: Celkem za | C48: 99 Staveništní přesun hmot | G48: =SUM(G46:G47) -> 0 | I48: =SUM(I46:I47) -> 0 | K48: =SUM(K46:K47) -> 0 | O48: 4 | BA48: =SUM(BA46:BA47) -> 0 | BB48: =SUM(BB46:BB47) -> 0 | BC48: =SUM(BC46:BC47) -> 0 | BD48: =SUM(BD46:BD47) -> 0 | BE48: =SUM(BE46:BE47) -> 0
A49: Díl: | B49: 764 | C49: Konstrukce klempířské | O49: 1
A50: 14 | B50: 764510950RRX | C50: Oprava oplechování parapetů Cu,rš 330 mm Přichycení stávajícího parapetu k novému oknu | D50: m | E50: 3.9 | G50: =E50*F50 -> 0 | H50: 0.00361 | I50: =E50*H50 -> 0.014079 | J50: 0 | K50: =E50*J50 -> 0 | O50: 2 | AA50: 1 | AB50: 7 | AC50: 7 | AZ50: 2 | BA50: =IF(AZ50=1,G50,0) -> 0 | BB50: =IF(AZ50=2,G50,0) -> 0 | BC50: =IF(AZ50=3,G50,0) -> 0 | BD50: =IF(AZ50=4,G50,0) -> 0 | BE50: =IF(AZ50=5,G50,0) -> 0 | CA50: 1 | CB50: 7
C51: Byt č. 1 90x160 cm:0,90*2 | E51: 1.8 | M51: Byt č. 1 90x160 cm:0,90*2
C52: Byt č. 1 210x160 cm:2,10*1 | E52: 2.1 | M52: Byt č. 1 210x160 cm:2,10*1
A53: 15 | B53: 998764103R00 | C53: Přesun hmot pro klempířské konstr., výšky do 24 m | D53: t | E53: 0.014079 | G53: =E53*F53 -> 0 | H53: 0 | I53: =E53*H53 -> 0 | K53: =E53*J53 -> 0 | O53: 2 | AA53: 7 | AB53: 1001 | AC53: 5 | AZ53: 2 | BA53: =IF(AZ53=1,G53,0) -> 0 | BB53: =IF(AZ53=2,G53,0) -> 0 | BC53: =IF(AZ53=3,G53,0) -> 0 | BD53: =IF(AZ53=4,G53,0) -> 0 | BE53: =IF(AZ53=5,G53,0) -> 0 | CA53: 7 | CB53: 1001
B54: Celkem za | C54: 764 Konstrukce klempířské | G54: =SUM(G49:G53) -> 0 | I54: =SUM(I49:I53) -> 0.014079 | K54: =SUM(K49:K53) -> 0 | O54: 4 | BA54: =SUM(BA49:BA53) -> 0 | BB54: =SUM(BB49:BB53) -> 0 | BC54: =SUM(BC49:BC53) -> 0 | BD54: =SUM(BD49:BD53) -> 0 | BE54: =SUM(BE49:BE53) -> 0
A55: Díl: | B55: 766 | C55: Konstrukce truhlářské | O55: 1
A56: 16 | B56: 766601211RT1 | C56: Těsnění okenní spáry, ostění, PT fólie+ PP páska folie š. 70 mm, páska tl. 2 mm, š. 10 mm | D56: m | E56: 17.4 | G56: =E56*F56 -> 0 | H56: 0 | I56: =E56*H56 -> 0 | J56: 0 | K56: =E56*J56 -> 0 | O56: 2 | AA56: 1 | AB56: 7 | AC56: 7 | AZ56: 2 | BA56: =IF(AZ56=1,G56,0) -> 0 | BB56: =IF(AZ56=2,G56,0) -> 0 | BC56: =IF(AZ56=3,G56,0) -> 0 | BD56: =IF(AZ56=4,G56,0) -> 0 | BE56: =IF(AZ56=5,G56,0) -> 0 | CA56: 1 | CB56: 7
C57: Instalace a dodávka parotěsné okenní fólie a paropropustné expanzní pásky. | L57: Instalace a dodávka parotěsné okenní fólie a paropropustné expanzní pásky. | O57: 3
C58: Byt č. 1 90x160 cm:(0,90+1,60)*2*2 | E58: 10 | M58: Byt č. 1 90x160 cm:(0,90+1,60)*2*2
C59: Byt č. 1 210x160 cm:(2,10+1,60)*2*1 | E59: 7.4 | M59: Byt č. 1 210x160 cm:(2,10+1,60)*2*1
A60: 17 | B60: 766694111R00 | C60: Montáž parapetních desek š.do 30 cm,dl.do 100 cm | D60: kus | E60: 1.8 | G60: =E60*F60 -> 0 | H60: 1e-05 | I60: =E60*H60 -> 1.8e-05 | J60: 0 | K60: =E60*J60 -> 0 | O60: 2 | AA60: 1 | AB60: 7 | AC60: 7 | AZ60: 2 | BA60: =IF(AZ60=1,G60,0) -> 0 | BB60: =IF(AZ60=2,G60,0) -> 0 | BC60: =IF(AZ60=3,G60,0) -> 0 | BD60: =IF(AZ60=4,G60,0) -> 0 | BE60: =IF(AZ60=5,G60,0) -> 0 | CA60: 1 | CB60: 7
C61: Byt č. 1 90x160 cm:0,90*2 | E61: 1.8 | M61: Byt č. 1 90x160 cm:0,90*2
A62: 18 | B62: 766694113R00 | C62: Montáž parapetních desek š.do 30 cm,dl.do 260 cm | D62: kus | E62: 2.1 | G62: =E62*F62 -> 0 | H62: 2e-05 | I62: =E62*H62 -> 4.2e-05 | J62: 0 | K62: =E62*J62 -> 0 | O62: 2 | AA62: 1 | AB62: 7 | AC62: 7 | AZ62: 2 | BA62: =IF(AZ62=1,G62,0) -> 0 | BB62: =IF(AZ62=2,G62,0) -> 0 | BC62: =IF(AZ62=3,G62,0) -> 0 | BD62: =IF(AZ62=4,G62,0) -> 0 | BE62: =IF(AZ62=5,G62,0) -> 0 | CA62: 1 | CB62: 7
C63: Byt č. 1 210x160 cm:2,10*1 | E63: 2.1 | M63: Byt č. 1 210x160 cm:2,10*1
A64: 19 | B64: 766711001R00 | C64: Montáž oken a balkonových dveří s vypěněním | D64: m | E64: 17.4 | G64: =E64*F64 -> 0 | H64: 2e-05 | I64: =E64*H64 -> 0.000348 | J64: 0 | K64: =E64*J64 -> 0 | O64: 2 | AA64: 1 | AB64: 7 | AC64: 7 | AZ64: 2 | BA64: =IF(AZ64=1,G64,0) -> 0 | BB64: =IF(AZ64=2,G64,0) -> 0 | BC64: =IF(AZ64=3,G64,0) -> 0 | BD64: =IF(AZ64=4,G64,0) -> 0 | BE64: =IF(AZ64=5,G64,0) -> 0 | CA64: 1 | CB64: 7
C65: Montáž dřevěných oken a dveří včetně dodávky a montáže PU pěny a spojovacích prostředků. | L65: Montáž dřevěných oken a dveří včetně dodávky a montáže PU pěny a spojovacích prostředků. | O65: 3
C66: Byt č. 1 90x160 cm:(0,90+1,60)*2*2 | E66: 10 | M66: Byt č. 1 90x160 cm:(0,90+1,60)*2*2
C67: Byt č. 1 210x160 cm:(2,10+1,60)*2*1 | E67: 7.4 | M67: Byt č. 1 210x160 cm:(2,10+1,60)*2*1
A68: 20 | B68: 61111436 | C68: Okno dřevěné 1křídl. OS1A 90x160 cm Profilace rámů a příček dle požadavku NPÚ | D68: kus | E68: 2 | G68: =E68*F68 -> 0 | H68: 0.046 | I68: =E68*H68 -> 0.092 | K68: =E68*J68 -> 0 | O68: 2 | AA68: 3 | AB68: 7 | AC68: 61111436 | AZ68: 2 | BA68: =IF(AZ68=1,G68,0) -> 0 | BB68: =IF(AZ68=2,G68,0) -> 0 | BC68: =IF(AZ68=3,G68,0) -> 0 | BD68: =IF(AZ68=4,G68,0) -> 0 | BE68: =IF(AZ68=5,G68,0) -> 0 | CA68: 3 | CB68: 7
C69: profil EURO | L69: profil EURO | O69: 3
C70: jednokřídlové, otevíravé a sklápěcí | L70: jednokřídlové, otevíravé a sklápěcí | O70: 3
C71: materiál: třívrstvový hranolek SM | L71: materiál: třívrstvový hranolek SM | O71: 3
C72: sklo izolační - trojsklo | L72: sklo izolační - trojsklo | O72: 3
C73: okapnice: hliníková | L73: okapnice: hliníková | O73: 3
C74: nátěr dle stávající barvy v objektu | L74: nátěr dle stávající barvy v objektu | O74: 3
C75: Poznámka: | L75: Poznámka: | O75: 3
C76: Před výrobou oken si zhotovitel zaměří každý otvor pro dodávku nového okna | L76: Před výrobou oken si zhotovitel zaměří každý otvor pro dodávku nového okna | O76: 3
C77: Byt č. 1:2 | E77: 2 | M77: Byt č. 1:2
A78: 21 | B78: 61130954 | C78: Okno dřevěné 3křídl. OS3B 210x160 cm Profilace rámů a příček dle požadavku NPÚ | D78: kus | E78: 1 | G78: =E78*F78 -> 0 | H78: 0.127 | I78: =E78*H78 -> 0.127 | K78: =E78*J78 -> 0 | O78: 2 | AA78: 3 | AB78: 7 | AC78: 61130954 | AZ78: 2 | BA78: =IF(AZ78=1,G78,0) -> 0 | BB78: =IF(AZ78=2,G78,0) -> 0 | BC78: =IF(AZ78=3,G78,0) -> 0 | BD78: =IF(AZ78=4,G78,0) -> 0 | BE78: =IF(AZ78=5,G78,0) -> 0 | CA78: 3 | CB78: 7
C79: profil EURO | L79: profil EURO | O79: 3
C80: tříkřídlé, dvouřídlé otevíravé + jednokřídlé otevírací a sklápěcí | L80: tříkřídlé, dvouřídlé otevíravé + jednokřídlé otevírací a sklápěcí | O80: 3
C81: materiál: třívrstvový hranolek SM | L81: materiál: třívrstvový hranolek SM | O81: 3
C82: sklo izolační - trojsklo | L82: sklo izolační - trojsklo | O82: 3
C83: okapnice: hliníková | L83: okapnice: hliníková | O83: 3
C84: nátěr dle stávající barvy v objektu | L84: nátěr dle stávající barvy v objektu | O84: 3
C85: Poznámka: | L85: Poznámka: | O85: 3
C86: Před výrobou oken si zhotovitel zaměří každý otvor pro dodávku nového okna | L86: Před výrobou oken si zhotovitel zaměří každý otvor pro dodávku nového okna | O86: 3
C87: Byt č. 1:1 | E87: 1 | M87: Byt č. 1:1
A88: 22 | B88: 61187552 | C88: Deska parapetní šířka 30 cm | D88: m | E88: 4.29 | G88: =E88*F88 -> 0 | H88: 0.00495 | I88: =E88*H88 -> 0.0212355 | K88: =E88*J88 -> 0 | O88: 2 | AA88: 3 | AB88: 7 | AC88: 61187552 | AZ88: 2 | BA88: =IF(AZ88=1,G88,0) -> 0 | BB88: =IF(AZ88=2,G88,0) -> 0 | BC88: =IF(AZ88=3,G88,0) -> 0 | BD88: =IF(AZ88=4,G88,0) -> 0 | BE88: =IF(AZ88=5,G88,0) -> 0 | CA88: 3 | CB88: 7
C89: Byt č. 1 90x160 cm:0,90*2*1,1 | E89: 1.98 | M89: Byt č. 1 90x160 cm:0,90*2*1,1
C90: Byt č. 1 210x160 cm:2,10*1*1,1 | E90: 2.31 | M90: Byt č. 1 210x160 cm:2,10*1*1,1
A91: 23 | B91: 998766103R00 | C91: Přesun hmot pro truhlářské konstr., výšky do 24 m | D91: t | E91: 0.2406435 | G91: =E91*F91 -> 0 | H91: 0 | I91: =E91*H91 -> 0 | K91: =E91*J91 -> 0 | O91: 2 | AA91: 7 | AB91: 1001 | AC91: 5 | AZ91: 2 | BA91: =IF(AZ91=1,G91,0) -> 0 | BB91: =IF(AZ91=2,G91,0) -> 0 | BC91: =IF(AZ91=3,G91,0) -> 0 | BD91: =IF(AZ91=4,G91,0) -> 0 | BE91: =IF(AZ91=5,G91,0) -> 0 | CA91: 7 | CB91: 1001
B92: Celkem za | C92: 766 Konstrukce truhlářské | G92: =SUM(G55:G91) -> 0 | I92: =SUM(I55:I91) -> 0.2406435 | K92: =SUM(K55:K91) -> 0 | O92: 4 | BA92: =SUM(BA55:BA91) -> 0 | BB92: =SUM(BB55:BB91) -> 0 | BC92: =SUM(BC55:BC91) -> 0 | BD92: =SUM(BD55:BD91) -> 0 | BE92: =SUM(BE55:BE91) -> 0
A93: Díl: | B93: 784 | C93: Malby | O93: 1
A94: 24 | B94: 784195212RRX | C94: Malba Primalex Plus, bílá, s penetrací, 2 x ostění šířky do 50cm | D94: m | E94: 13.5 | G94: =E94*F94 -> 0 | H94: 0.00015 | I94: =E94*H94 -> 0.002025 | J94: 0 | K94: =E94*J94 -> 0 | O94: 2 | AA94: 1 | AB94: 7 | AC94: 7 | AZ94: 2 | BA94: =IF(AZ94=1,G94,0) -> 0 | BB94: =IF(AZ94=2,G94,0) -> 0 | BC94: =IF(AZ94=3,G94,0) -> 0 | BD94: =IF(AZ94=4,G94,0) -> 0 | BE94: =IF(AZ94=5,G94,0) -> 0 | CA94: 1 | CB94: 7
C95: Byt č. 1 90x160 cm:(0,90+2*1,60)*2 | E95: 8.2 | M95: Byt č. 1 90x160 cm:(0,90+2*1,60)*2
C96: Byt č. 1 210x160 cm:(2,10+2*1,60)*1 | E96: 5.3 | M96: Byt č. 1 210x160 cm:(2,10+2*1,60)*1
B97: Celkem za | C97: 784 Malby | G97: =SUM(G93:G96) -> 0 | I97: =SUM(I93:I96) -> 0.002025 | K97: =SUM(K93:K96) -> 0 | O97: 4 | BA97: =SUM(BA93:BA96) -> 0 | BB97: =SUM(BB93:BB96) -> 0 | BC97: =SUM(BC93:BC96) -> 0 | BD97: =SUM(BD93:BD96) -> 0 | BE97: =SUM(BE93:BE96) -> 0
A98: Díl: | B98: D96 | C98: Přesuny suti a vybouraných hmot | O98: 1
A99: 25 | B99: 979011211R00 | C99: Svislá doprava suti a vybour. hmot za 2.NP nošením | D99: t | E99: 0.58275 | G99: =E99*F99 -> 0 | H99: 0 | I99: =E99*H99 -> 0 | K99: =E99*J99 -> 0 | O99: 2 | AA99: 8 | AB99: 0 | AC99: 3 | AZ99: 1 | BA99: =IF(AZ99=1,G99,0) -> 0 | BB99: =IF(AZ99=2,G99,0) -> 0 | BC99: =IF(AZ99=3,G99,0) -> 0 | BD99: =IF(AZ99=4,G99,0) -> 0 | BE99: =IF(AZ99=5,G99,0) -> 0 | CA99: 8 | CB99: 0
A100: 26 | B100: 979081111R00 | C100: Odvoz suti a vybour. hmot na skládku zhotovitele | D100: t | E100: 0.58275 | G100: =E100*F100 -> 0 | H100: 0 | I100: =E100*H100 -> 0 | K100: =E100*J100 -> 0 | O100: 2 | AA100: 8 | AB100: 0 | AC100: 3 | AZ100: 1 | BA100: =IF(AZ100=1,G100,0) -> 0 | BB100: =IF(AZ100=2,G100,0) -> 0 | BC100: =IF(AZ100=3,G100,0) -> 0 | BD100: =IF(AZ100=4,G100,0) -> 0 | BE100: =IF(AZ100=5,G100,0) -> 0 | CA100: 8 | CB100: 0
A101: 27 | B101: 979082111R00 | C101: Vnitrostaveništní doprava suti do 10 m | D101: t | E101: 0.58275 | G101: =E101*F101 -> 0 | H101: 0 | I101: =E101*H101 -> 0 | K101: =E101*J101 -> 0 | O101: 2 | AA101: 8 | AB101: 0 | AC101: 3 | AZ101: 1 | BA101: =IF(AZ101=1,G101,0) -> 0 | BB101: =IF(AZ101=2,G101,0) -> 0 | BC101: =IF(AZ101=3,G101,0) -> 0 | BD101: =IF(AZ101=4,G101,0) -> 0 | BE101: =IF(AZ101=5,G101,0) -> 0 | CA101: 8 | CB101: 0
A102: 28 | B102: 979082121R00 | C102: Příplatek k vnitrost. dopravě suti za dalších 5 m | D102: t | E102: 5.8275 | G102: =E102*F102 -> 0 | H102: 0 | I102: =E102*H102 -> 0 | K102: =E102*J102 -> 0 | O102: 2 | AA102: 8 | AB102: 0 | AC102: 3 | AZ102: 1 | BA102: =IF(AZ102=1,G102,0) -> 0 | BB102: =IF(AZ102=2,G102,0) -> 0 | BC102: =IF(AZ102=3,G102,0) -> 0 | BD102: =IF(AZ102=4,G102,0) -> 0 | BE102: =IF(AZ102=5,G102,0) -> 0 | CA102: 8 | CB102: 0
A103: 29 | B103: 979990107R00 | C103: Poplatek za skládku suti - směs betonu,cihel,dřeva | D103: t | E103: 0.58275 | G103: =E103*F103 -> 0 | H103: 0 | I103: =E103*H103 -> 0 | K103: =E103*J103 -> 0 | O103: 2 | AA103: 8 | AB103: 0 | AC103: 3 | AZ103: 1 | BA103: =IF(AZ103=1,G103,0) -> 0 | BB103: =IF(AZ103=2,G103,0) -> 0 | BC103: =IF(AZ103=3,G103,0) -> 0 | BD103: =IF(AZ103=4,G103,0) -> 0 | BE103: =IF(AZ103=5,G103,0) -> 0 | CA103: 8 | CB103: 0
B104: Celkem za | C104: D96 Přesuny suti a vybouraných hmot | G104: =SUM(G98:G103) -> 0 | I104: =SUM(I98:I103) -> 0 | K104: =SUM(K98:K103) -> 0 | O104: 4 | BA104: =SUM(BA98:BA103) -> 0 | BB104: =SUM(BB98:BB103) -> 0 | BC104: =SUM(BC98:BC103) -> 0 | BD104: =SUM(BD98:BD103) -> 0 | BE104: =SUM(BE98:BE103) -> 0

Sheet 01 325701.2 KL
A1: POLOŽKOVÝ ROZPOČET
A2: Rozpočet | C2: 3257/01.2 | D2: Byt č. 2 - 2.NP | F2: JKSO | G2: 803.5
A4: Objekt | F4: SKP
A5: 01 | C5: Objekt ul. 5. května čp.26 | F5: Měrná jednotka | G5: m3
A6: Stavba | F6: Počet jednotek | G6: 0
A7: 3257 | C7: Turnov - objekt ul. 5. května čp.26 | F7: Náklady na m.j. | G7: =IF(G6=0,,ROUND((F30+F32)/G6,1)) -> 0
A8: Projektant | F8: Typ rozpočtu
A9: Zpracovatel projektu
A10: Objednatel | C10: Město TURNOV
A11: Dodavatel | C11: . | F11: Zakázkové číslo
A12: Rozpočtoval | F12: Počet listů
A13: ROZPOČTOVÉ NÁKLADY
A14: Základní rozpočtové náklady | D14: Ostatní náklady stavby
B15: HSV celkem | C15: ='01 325701.2 Rek'!E16 -> 0 | D15: ='01 325701.2 Rek'!A21 -> Zařízení staveniště | G15: ='01 325701.2 Rek'!I21 -> 0
A16: Z | B16: PSV celkem | C16: ='01 325701.2 Rek'!F16 -> 0 | D16: ='01 325701.2 Rek'!A22 -> Provoz investora | G16: ='01 325701.2 Rek'!I22 -> 0
A17: R | B17: M práce celkem | C17: ='01 325701.2 Rek'!H16 -> 0 | D17: ='01 325701.2 Rek'!A23 -> Kompletační činnost (IČD) | G17: ='01 325701.2 Rek'!I23 -> 0
A18: N | B18: M dodávky celkem | C18: ='01 325701.2 Rek'!G16 -> 0
A19: ZRN celkem | C19: =SUM(C15:C18) -> 0
A21: HZS | C21: ='01 325701.2 Rek'!I16 -> 0
A22: ZRN+HZS | C22: =C19+C21 -> 0
A23: ZRN+ost.náklady+HZS | C23: =C22+G23 -> 0 | D23: Ostatní náklady celkem | G23: ='01 325701.2 Rek'!H24 -> 0
A24: Vypracoval | D24: Za zhotovitele | F24: Za objednatele
A25: Jméno : | D25: Jméno : | F25: Jméno :
A26: Datum : | D26: Datum : | F26: Datum :
A28: Podpis : | D28: Podpis: | F28: Podpis:
A30: Základ pro DPH | C30: 15 | D30: % | F30: =C23-F32 -> 0
A31: DPH | C31: =C30 -> 15 | D31: % | F31: =ROUND(PRODUCT(F30,C31/100),0) -> 0
A32: Základ pro DPH | C32: 0 | D32: % | F32: 0
A33: DPH | C33: =C32 -> 0 | D33: % | F33: =ROUND(PRODUCT(F32,C33/100),0) -> 0
A34: CENA ZA OBJEKT CELKEM | F34: =ROUND(SUM(F30:F33),0) -> 0
A36: Poznámka :

Sheet 01 325701.2 Rek
A1: Stavba : | C1: 3257 Turnov - objekt ul. 5. května čp.26 | G1: Rozpočet : | H1: 3257/01.2
A2: Objekt : | C2: 01 Objekt ul. 5. května čp.26 | G2: Byt č. 2 - 2.NP
A4: REKAPITULACE STAVEBNÍCH DÍLŮ
B6: Stavební díl | E6: HSV | F6: PSV | G6: Dodávka | H6: Montáž | I6: HZS
A7: ='01 325701.2 Pol'!B7 -> 61 | B7: ='01 325701.2 Pol'!C7 -> Upravy povrchů vnitřní | E7: ='01 325701.2 Pol'!BA17 -> 0 | F7: ='01 325701.2 Pol'!BB17 -> 0 | G7: ='01 325701.2 Pol'!BC17 -> 0 | H7: ='01 325701.2 Pol'!BD17 -> 0 | I7: ='01 325701.2 Pol'!BE17 -> 0
A8: ='01 325701.2 Pol'!B18 -> 63 | B8: ='01 325701.2 Pol'!C18 -> Podlahy a podlahové konstrukce | E8: ='01 325701.2 Pol'!BA21 -> 0 | F8: ='01 325701.2 Pol'!BB21 -> 0 | G8: ='01 325701.2 Pol'!BC21 -> 0 | H8: ='01 325701.2 Pol'!BD21 -> 0 | I8: ='01 325701.2 Pol'!BE21 -> 0
A9: ='01 325701.2 Pol'!B22 -> 94 | B9: ='01 325701.2 Pol'!C22 -> Lešení a stavební výtahy | E9: ='01 325701.2 Pol'!BA25 -> 0 | F9: ='01 325701.2 Pol'!BB25 -> 0 | G9: ='01 325701.2 Pol'!BC25 -> 0 | H9: ='01 325701.2 Pol'!BD25 -> 0 | I9: ='01 325701.2 Pol'!BE25 -> 0
A10: ='01 325701.2 Pol'!B26 -> 96 | B10: ='01 325701.2 Pol'!C26 -> Bourání konstrukcí | E10: ='01 325701.2 Pol'!BA33 -> 0 | F10: ='01 325701.2 Pol'!BB33 -> 0 | G10: ='01 325701.2 Pol'!BC33 -> 0 | H10: ='01 325701.2 Pol'!BD33 -> 0 | I10: ='01 325701.2 Pol'!BE33 -> 0
A11: ='01 325701.2 Pol'!B34 -> 99 | B11: ='01 325701.2 Pol'!C34 -> Staveništní přesun hmot | E11: ='01 325701.2 Pol'!BA36 -> 0 | F11: ='01 325701.2 Pol'!BB36 -> 0 | G11: ='01 325701.2 Pol'!BC36 -> 0 | H11: ='01 325701.2 Pol'!BD36 -> 0 | I11: ='01 325701.2 Pol'!BE36 -> 0
A12: ='01 325701.2 Pol'!B37 -> 764 | B12: ='01 325701.2 Pol'!C37 -> Konstrukce klempířské | E12: ='01 325701.2 Pol'!BA41 -> 0 | F12: ='01 325701.2 Pol'!BB41 -> 0 | G12: ='01 325701.2 Pol'!BC41 -> 0 | H12: ='01 325701.2 Pol'!BD41 -> 0 | I12: ='01 325701.2 Pol'!BE41 -> 0
A13: ='01 325701.2 Pol'!B42 -> 766 | B13: ='01 325701.2 Pol'!C42 -> Konstrukce truhlářské | E13: ='01 325701.2 Pol'!BA64 -> 0 | F13: ='01 325701.2 Pol'!BB64 -> 0 | G13: ='01 325701.2 Pol'!BC64 -> 0 | H13: ='01 325701.2 Pol'!BD64 -> 0 | I13: ='01 325701.2 Pol'!BE64 -> 0
A14: ='01 325701.2 Pol'!B65 -> 784 | B14: ='01 325701.2 Pol'!C65 -> Malby | E14: ='01 325701.2 Pol'!BA68 -> 0 | F14: ='01 325701.2 Pol'!BB68 -> 0 | G14: ='01 325701.2 Pol'!BC68 -> 0 | H14: ='01 325701.2 Pol'!BD68 -> 0 | I14: ='01 325701.2 Pol'!BE68 -> 0
A15: ='01 325701.2 Pol'!B69 -> D96 | B15: ='01 325701.2 Pol'!C69 -> Přesuny suti a vybouraných hmot | E15: ='01 325701.2 Pol'!BA75 -> 0 | F15: ='01 325701.2 Pol'!BB75 -> 0 | G15: ='01 325701.2 Pol'!BC75 -> 0 | H15: ='01 325701.2 Pol'!BD75 -> 0 | I15: ='01 325701.2 Pol'!BE75 -> 0
B16: CELKEM OBJEKT | E16: =SUM(E7:E15) -> 0 | F16: =SUM(F7:F15) -> 0 | G16: =SUM(G7:G15) -> 0 | H16: =SUM(H7:H15) -> 0 | I16: =SUM(I7:I15) -> 0
A18: OSTATNÍ NÁKLADY STAVBY
A20: Název ONS | E20: Kč | I20: Kč
A21: Zařízení staveniště | E21: 0 | I21: =E21+F21*G21/100 -> 0 | BA21: 2
A22: Provoz investora | E22: 0 | I22: =E22+F22*G22/100 -> 0 | BA22: 1
A23: Kompletační činnost (IČD) | E23: 0 | I23: =E23+F23*G23/100 -> 0 | BA23: 2
B24: CELKEM ONS | H24: =SUM(I21:I23) -> 0

Sheet 01 325701.2 Pol
A1: Položkový rozpočet
A3: Stavba : | C3: 3257 Turnov - objekt ul. 5. května čp.26 | E3: Rozpočet: | F3: ='01 325701.2 Rek'!H1 -> 3257/01.2
A4: Objekt : | C4: 01 Objekt ul. 5. května čp.26 | E4: ='01 325701.2 Rek'!G2 -> Byt č. 2 - 2.NP
A6: P.č. | B6: Číslo položky | C6: Název položky | D6: MJ | E6: množství | F6: cena / MJ | G6: celkem (Kč) | H6: Jednotková hmotnost | I6: Celková hmotnost | J6: Jednotková dem.hmot. | K6: Celková dem.hmot.
A7: Díl: | B7: 61 | C7: Upravy povrchů vnitřní | O7: 1
A8: 1 | B8: 610991111R00 | C8: Zakrývání výplní vnitřních otvorů | D8: m2 | E8: 5.13 | G8: =E8*F8 -> 0 | H8: 4e-05 | I8: =E8*H8 -> 0.0002052 | J8: 0 | K8: =E8*J8 -> 0 | O8: 2 | AA8: 1 | AB8: 1 | AC8: 1 | AZ8: 1 | BA8: =IF(AZ8=1,G8,0) -> 0 | BB8: =IF(AZ8=2,G8,0) -> 0 | BC8: =IF(AZ8=3,G8,0) -> 0 | BD8: =IF(AZ8=4,G8,0) -> 0 | BE8: =IF(AZ8=5,G8,0) -> 0 | CA8: 1 | CB8: 1
C9: Byt č. 2 90x160 cm:0,90*(1,60+0,30)*3 | E9: 5.13 | M9: Byt č. 2 90x160 cm:0,90*(1,60+0,30)*3
A10: 2 | B10: 610991199RRX | C10: Zakrývání vybavení částí bytu dle potřeb zhotovitele pro realizaci výměny oken | D10: soubor | E10: 1 | G10: =E10*F10 -> 0 | H10: 0 | I10: =E10*H10 -> 0 | J10: 0 | K10: =E10*J10 -> 0 | O10: 2 | AA10: 1 | AB10: 0 | AC10: 0 | AZ10: 1 | BA10: =IF(AZ10=1,G10,0) -> 0 | BB10: =IF(AZ10=2,G10,0) -> 0 | BC10: =IF(AZ10=3,G10,0) -> 0 | BD10: =IF(AZ10=4,G10,0) -> 0 | BE10: =IF(AZ10=5,G10,0) -> 0 | CA10: 1 | CB10: 0
A11: 3 | B11: 612409991RT2 | C11: Začištění omítek kolem oken,dveří apod. s použitím suché maltové směsi | D11: m | E11: 15 | G11: =E11*F11 -> 0 | H11: 0.00238 | I11: =E11*H11 -> 0.0357 | J11: 0 | K11: =E11*J11 -> 0 | O11: 2 | AA11: 1 | AB11: 1 | AC11: 1 | AZ11: 1 | BA11: =IF(AZ11=1,G11,0) -> 0 | BB11: =IF(AZ11=2,G11,0) -> 0 | BC11: =IF(AZ11=3,G11,0) -> 0 | BD11: =IF(AZ11=4,G11,0) -> 0 | BE11: =IF(AZ11=5,G11,0) -> 0 | CA11: 1 | CB11: 1
C12: Byt č. 2 90x160 cm:(0,90+1,60)*2*3 | E12: 15 | M12: Byt č. 2 90x160 cm:(0,90+1,60)*2*3
A13: 4 | B13: 612425931RT2 | C13: Omítka vápenná vnitřního ostění - štuková s použitím suché maltové směsi | D13: m2 | E13: 3.69 | G13: =E13*F13 -> 0 | H13: 0.03491 | I13: =E13*H13 -> 0.1288179 | J13: 0 | K13: =E13*J13 -> 0 | O13: 2 | AA13: 1 | AB13: 1 | AC13: 1 | AZ13: 1 | BA13: =IF(AZ13=1,G13,0) -> 0 | BB13: =IF(AZ13=2,G13,0) -> 0 | BC13: =IF(AZ13=3,G13,0) -> 0 | BD13: =IF(AZ13=4,G13,0) -> 0 | BE13: =IF(AZ13=5,G13,0) -> 0 | CA13: 1 | CB13: 1
C14: Byt č. 2 90x160 cm:0,30*(0,90+2*1,60)*3 | E14: 3.69 | M14: Byt č. 2 90x160 cm:0,30*(0,90+2*1,60)*3
A15: 5 | B15: 622473187RT2 | C15: Příplatek za okenní lištu (APU) - montáž včetně dodávky lišty | D15: m | E15: 12.3 | G15: =E15*F15 -> 0 | H15: 0.00015 | I15: =E15*H15 -> 0.001845 | J15: 0 | K15: =E15*J15 -> 0 | O15: 2 | AA15: 1 | AB15: 1 | AC15: 1 | AZ15: 1 | BA15: =IF(AZ15=1,G15,0) -> 0 | BB15: =IF(AZ15=2,G15,0) -> 0 | BC15: =IF(AZ15=3,G15,0) -> 0 | BD15: =IF(AZ15=4,G15,0) -> 0 | BE15: =IF(AZ15=5,G15,0) -> 0 | CA15: 1 | CB15: 1
C16: Byt č. 2 90x160 cm:(0,90+2*1,60)*3 | E16: 12.3 | M16: Byt č. 2 90x160 cm:(0,90+2*1,60)*3
B17: Celkem za | C17: 61 Upravy povrchů vnitřní | G17: =SUM(G7:G16) -> 0 | I17: =SUM(I7:I16) -> 0.1665681 | K17: =SUM(K7:K16) -> 0 | O17: 4 | BA17: =SUM(BA7:BA16) -> 0 | BB17: =SUM(BB7:BB16) -> 0 | BC17: =SUM(BC7:BC16) -> 0 | BD17: =SUM(BD7:BD16) -> 0 | BE17: =SUM(BE7:BE16) -> 0
A18: Díl: | B18: 63 | C18: Podlahy a podlahové konstrukce | O18: 1
A19: 6 | B19: 632411104R00 | C19: Vyrovnávací stěrka, ruční zprac. tl.4 mm | D19: m2 | E19: 0.81 | G19: =E19*F19 -> 0 | H19: 0.007 | I19: =E19*H19 -> 0.00567 | J19: 0 | K19: =E19*J19 -> 0 | O19: 2 | AA19: 1 | AB19: 1 | AC19: 1 | AZ19: 1 | BA19: =IF(AZ19=1,G19,0) -> 0 | BB19: =IF(AZ19=2,G19,0) -> 0 | BC19: =IF(AZ19=3,G19,0) -> 0 | BD19: =IF(AZ19=4,G19,0) -> 0 | BE19: =IF(AZ19=5,G19,0) -> 0 | CA19: 1 | CB19: 1
C20: Byt č. 2 90x160 cm - parapet:0,90*0,30*3 | E20: 0.81 | M20: Byt č. 2 90x160 cm - parapet:0,90*0,30*3
B21: Celkem za | C21: 63 Podlahy a podlahové konstrukce | G21: =SUM(G18:G20) -> 0 | I21: =SUM(I18:I20) -> 0.00567 | K21: =SUM(K18:K20) -> 0 | O21: 4 | BA21: =SUM(BA18:BA20) -> 0 | BB21: =SUM(BB18:BB20) -> 0 | BC21: =SUM(BC18:BC20) -> 0 | BD21: =SUM(BD18:BD20) -> 0 | BE21: =SUM(BE18:BE20) -> 0
A22: Díl: | B22: 94 | C22: Lešení a stavební výtahy | O22: 1
A23: 7 | B23: 941955001R00 | C23: Lešení lehké pomocné, výška podlahy do 1,2 m | D23: m2 | E23: 7.2 | G23: =E23*F23 -> 0 | H23: 0.00121 | I23: =E23*H23 -> 0.008712 | J23: 0 | K23: =E23*J23 -> 0 | O23: 2 | AA23: 1 | AB23: 1 | AC23: 1 | AZ23: 1 | BA23: =IF(AZ23=1,G23,0) -> 0 | BB23: =IF(AZ23=2,G23,0) -> 0 | BC23: =IF(AZ23=3,G23,0) -> 0 | BD23: =IF(AZ23=4,G23,0) -> 0 | BE23: =IF(AZ23=5,G23,0) -> 0 | CA23: 1 | CB23: 1
C24: Byt č. 2 90x160 cm:1,20*1,00*3*2 | E24: 7.2 | M24: Byt č. 2 90x160 cm:1,20*1,00*3*2
B25: Celkem za | C25: 94 Lešení a stavební výtahy | G25: =SUM(G22:G24) -> 0 | I25: =SUM(I22:I24) -> 0.008712 | K25: =SUM(K22:K24) -> 0 | O25: 4 | BA25: =SUM(BA22:BA24) -> 0 | BB25: =SUM(BB22:BB24) -> 0 | BC25: =SUM(BC22:BC24) -> 0 | BD25: =SUM(BD22:BD24) -> 0 | BE25: =SUM(BE22:BE24) -> 0
A26: Díl: | B26: 96 | C26: Bourání konstrukcí | O26: 1
A27: 8 | B27: 967031132R00 | C27: Přisekání rovných ostění cihelných na MVC | D27: m2 | E27: 3.69 | G27: =E27*F27 -> 0 | H27: 0 | I27: =E27*H27 -> 0 | J27: -0.055 | K27: =E27*J27 -> -0.20295 | O27: 2 | AA27: 1 | AB27: 1 | AC27: 1 | AZ27: 1 | BA27: =IF(AZ27=1,G27,0) -> 0 | BB27: =IF(AZ27=2,G27,0) -> 0 | BC27: =IF(AZ27=3,G27,0) -> 0 | BD27: =IF(AZ27=4,G27,0) -> 0 | BE27: =IF(AZ27=5,G27,0) -> 0 | CA27: 1 | CB27: 1
C28: Byt č. 2 90x160 cm:0,30*(0,90+2*1,60)*3 | E28: 3.69 | M28: Byt č. 2 90x160 cm:0,30*(0,90+2*1,60)*3
A29: 9 | B29: 968061112R00 | C29: Vyvěšení dřevěných okenních křídel pl. do 1,5 m2 | D29: kus | E29: 3 | G29: =E29*F29 -> 0 | H29: 0 | I29: =E29*H29 -> 0 | J29: 0 | K29: =E29*J29 -> 0 | O29: 2 | AA29: 1 | AB29: 1 | AC29: 1 | AZ29: 1 | BA29: =IF(AZ29=1,G29,0) -> 0 | BB29: =IF(AZ29=2,G29,0) -> 0 | BC29: =IF(AZ29=3,G29,0) -> 0 | BD29: =IF(AZ29=4,G29,0) -> 0 | BE29: =IF(AZ29=5,G29,0) -> 0 | CA29: 1 | CB29: 1
C30: Byt č. 2 90x160 cm:1*3 | E30: 3 | M30: Byt č. 2 90x160 cm:1*3
A31: 10 | B31: 968062355RRX | C31: Vybourání dřevěných rámů oken dvojitých pl. 2 m2 včetně parapetů oken | D31: m2 | E31: 4.32 | G31: =E31*F31 -> 0 | H31: 0.001 | I31: =E31*H31 -> 0.00432 | J31: -0.062 | K31: =E31*J31 -> -0.26784 | O31: 2 | AA31: 1 | AB31: 1 | AC31: 1 | AZ31: 1 | BA31: =IF(AZ31=1,G31,0) -> 0 | BB31: =IF(AZ31=2,G31,0) -> 0 | BC31: =IF(AZ31=3,G31,0) -> 0 | BD31: =IF(AZ31=4,G31,0) -> 0 | BE31: =IF(AZ31=5,G31,0) -> 0 | CA31: 1 | CB31: 1
C32: Byt č. 2 90x160 cm:0,90*1,60*3 | E32: 4.32 | M32: Byt č. 2 90x160 cm:0,90*1,60*3
B33: Celkem za | C33: 96 Bourání konstrukcí | G33: =SUM(G26:G32) -> 0 | I33: =SUM(I26:I32) -> 0.00432 | K33: =SUM(K26:K32) -> -0.47079 | O33: 4 | BA33: =SUM(BA26:BA32) -> 0 | BB33: =SUM(BB26:BB32) -> 0 | BC33: =SUM(BC26:BC32) -> 0 | BD33: =SUM(BD26:BD32) -> 0 | BE33: =SUM(BE26:BE32) -> 0
A34: Díl: | B34: 99 | C34: Staveništní přesun hmot | O34: 1
A35: 11 | B35: 999281111R00 | C35: Přesun hmot pro opravy a údržbu do výšky 25 m | D35: t | E35: 0.1852701 | G35: =E35*F35 -> 0 | H35: 0 | I35: =E35*H35 -> 0 | K35: =E35*J35 -> 0 | O35: 2 | AA35: 7 | AB35: 1 | AC35: 2 | AZ35: 1 | BA35: =IF(AZ35=1,G35,0) -> 0 | BB35: =IF(AZ35=2,G35,0) -> 0 | BC35: =IF(AZ35=3,G35,0) -> 0 | BD35: =IF(AZ35=4,G35,0) -> 0 | BE35: =IF(AZ35=5,G35,0) -> 0 | CA35: 7 | CB35: 1
B36: Celkem za | C36: 99 Staveništní přesun hmot | G36: =SUM(G34:G35) -> 0 | I36: =SUM(I34:I35) -> 0 | K36: =SUM(K34:K35) -> 0 | O36: 4 | BA36: =SUM(BA34:BA35) -> 0 | BB36: =SUM(BB34:BB35) -> 0 | BC36: =SUM(BC34:BC35) -> 0 | BD36: =SUM(BD34:BD35) -> 0 | BE36: =SUM(BE34:BE35) -> 0
A37: Díl: | B37: 764 | C37: Konstrukce klempířské | O37: 1
A38: 12 | B38: 764510950RRX | C38: Oprava oplechování parapetů Cu,rš 330 mm Přichycení stávajícího parapetu k novému oknu | D38: m | E38: 2.7 | G38: =E38*F38 -> 0 | H38: 0.00361 | I38: =E38*H38 -> 0.009747 | J38: 0 | K38: =E38*J38 -> 0 | O38: 2 | AA38: 1 | AB38: 7 | AC38: 7 | AZ38: 2 | BA38: =IF(AZ38=1,G38,0) -> 0 | BB38: =IF(AZ38=2,G38,0) -> 0 | BC38: =IF(AZ38=3,G38,0) -> 0 | BD38: =IF(AZ38=4,G38,0) -> 0 | BE38: =IF(AZ38=5,G38,0) -> 0 | CA38: 1 | CB38: 7
C39: Byt č. 2 90x160 cm:0,90*3 | E39: 2.7 | M39: Byt č. 2 90x160 cm:0,90*3
A40: 13 | B40: 998764103R00 | C40: Přesun hmot pro klempířské konstr., výšky do 24 m | D40: t | E40: 0.009747 | G40: =E40*F40 -> 0 | H40: 0 | I40: =E40*H40 -> 0 | K40: =E40*J40 -> 0 | O40: 2 | AA40: 7 | AB40: 1001 | AC40: 5 | AZ40: 2 | BA40: =IF(AZ40=1,G40,0) -> 0 | BB40: =IF(AZ40=2,G40,0) -> 0 | BC40: =IF(AZ40=3,G40,0) -> 0 | BD40: =IF(AZ40=4,G40,0) -> 0 | BE40: =IF(AZ40=5,G40,0) -> 0 | CA40: 7 | CB40: 1001
B41: Celkem za | C41: 764 Konstrukce klempířské | G41: =SUM(G37:G40) -> 0 | I41: =SUM(I37:I40) -> 0.009747 | K41: =SUM(K37:K40) -> 0 | O41: 4 | BA41: =SUM(BA37:BA40) -> 0 | BB41: =SUM(BB37:BB40) -> 0 | BC41: =SUM(BC37:BC40) -> 0 | BD41: =SUM(BD37:BD40) -> 0 | BE41: =SUM(BE37:BE40) -> 0
A42: Díl: | B42: 766 | C42: Konstrukce truhlářské | O42: 1
A43: 14 | B43: 766601211RT1 | C43: Těsnění okenní spáry, ostění, PT fólie+ PP páska folie š. 70 mm, páska tl. 2 mm, š. 10 mm | D43: m | E43: 15 | G43: =E43*F43 -> 0 | H43: 0 | I43: =E43*H43 -> 0 | J43: 0 | K43: =E43*J43 -> 0 | O43: 2 | AA43: 1 | AB43: 7 | AC43: 7 | AZ43: 2 | BA43: =IF(AZ43=1,G43,0) -> 0 | BB43: =IF(AZ43=2,G43,0) -> 0 | BC43: =IF(AZ43=3,G43,0) -> 0 | BD43: =IF(AZ43=4,G43,0) -> 0 | BE43: =IF(AZ43=5,G43,0) -> 0 | CA43: 1 | CB43: 7
C44: Instalace a dodávka parotěsné okenní fólie a paropropustné expanzní pásky. | L44: Instalace a dodávka parotěsné okenní fólie a paropropustné expanzní pásky. | O44: 3
C45: Byt č. 2 90x160 cm:(0,90+1,60)*2*3 | E45: 15 | M45: Byt č. 2 90x160 cm:(0,90+1,60)*2*3
A46: 15 | B46: 766694111R00 | C46: Montáž parapetních desek š.do 30 cm,dl.do 100 cm | D46: kus | E46: 2.7 | G46: =E46*F46 -> 0 | H46: 1e-05 | I46: =E46*H46 -> 2.7e-05 | J46: 0 | K46: =E46*J46 -> 0 | O46: 2 | AA46: 1 | AB46: 7 | AC46: 7 | AZ46: 2 | BA46: =IF(AZ46=1,G46,0) -> 0 | BB46: =IF(AZ46=2,G46,0) -> 0 | BC46: =IF(AZ46=3,G46,0) -> 0 | BD46: =IF(AZ46=4,G46,0) -> 0 | BE46: =IF(AZ46=5,G46,0) -> 0 | CA46: 1 | CB46: 7
C47: Byt č. 2 90x160 cm:0,90*3 | E47: 2.7 | M47: Byt č. 2 90x160 cm:0,90*3
A48: 16 | B48: 766711001R00 | C48: Montáž oken a balkonových dveří s vypěněním | D48: m | E48: 15 | G48: =E48*F48 -> 0 | H48: 2e-05 | I48: =E48*H48 -> 0.0003 | J48: 0 | K48: =E48*J48 -> 0 | O48: 2 | AA48: 1 | AB48: 7 | AC48: 7 | AZ48: 2 | BA48: =IF(AZ48=1,G48,0) -> 0 | BB48: =IF(AZ48=2,G48,0) -> 0 | BC48: =IF(AZ48=3,G48,0) -> 0 | BD48: =IF(AZ48=4,G48,0) -> 0 | BE48: =IF(AZ48=5,G48,0) -> 0 | CA48: 1 | CB48: 7
C49: Montáž dřevěných oken a dveří včetně dodávky a montáže PU pěny a spojovacích prostředků. | L49: Montáž dřevěných oken a dveří včetně dodávky a montáže PU pěny a spojovacích prostředků. | O49: 3
C50: Byt č. 2 90x160 cm:(0,90+1,60)*2*3 | E50: 15 | M50: Byt č. 2 90x160 cm:(0,90+1,60)*2*3
A51: 17 | B51: 61111436 | C51: Okno dřevěné 1křídl. OS1A 90x160 cm Profilace rámů a příček dle požadavku NPÚ | D51: kus | E51: 3 | G51: =E51*F51 -> 0 | H51: 0.046 | I51: =E51*H51 -> 0.138 | K51: =E51*J51 -> 0 | O51: 2 | AA51: 3 | AB51: 7 | AC51: 61111436 | AZ51: 2 | BA51: =IF(AZ51=1,G51,0) -> 0 | BB51: =IF(AZ51=2,G51,0) -> 0 | BC51: =IF(AZ51=3,G51,0) -> 0 | BD51: =IF(AZ51=4,G51,0) -> 0 | BE51: =IF(AZ51=5,G51,0) -> 0 | CA51: 3 | CB51: 7
C52: profil EURO | L52: profil EURO | O52: 3
C53: jednokřídlové, otevíravé a sklápěcí | L53: jednokřídlové, otevíravé a sklápěcí | O53: 3
C54: materiál: třívrstvový hranolek SM | L54: materiál: třívrstvový hranolek SM | O54: 3
C55: sklo izolační - trojsklo | L55: sklo izolační - trojsklo | O55: 3
C56: okapnice: hliníková | L56: okapnice: hliníková | O56: 3
C57: nátěr dle stávající barvy v objektu | L57: nátěr dle stávající barvy v objektu | O57: 3
C58: Poznámka: | L58: Poznámka: | O58: 3
C59: Před výrobou oken si zhotovitel zaměří každý otvor pro dodávku nového okna | L59: Před výrobou oken si zhotovitel zaměří každý otvor pro dodávku nového okna | O59: 3
C60: Byt č. 2:3 | E60: 3 | M60: Byt č. 2:3
A61: 18 | B61: 61187552 | C61: Deska parapetní šířka 30 cm | D61: m | E61: 2.97 | G61: =E61*F61 -> 0 | H61: 0.00495 | I61: =E61*H61 -> 0.0147015 | K61: =E61*J61 -> 0 | O61: 2 | AA61: 3 | AB61: 7 | AC61: 61187552 | AZ61: 2 | BA61: =IF(AZ61=1,G61,0) -> 0 | BB61: =IF(AZ61=2,G61,0) -> 0 | BC61: =IF(AZ61=3,G61,0) -> 0 | BD61: =IF(AZ61=4,G61,0) -> 0 | BE61: =IF(AZ61=5,G61,0) -> 0 | CA61: 3 | CB61: 7
C62: Byt č. 2 90x160 cm:0,90*3*1,1 | E62: 2.97 | M62: Byt č. 2 90x160 cm:0,90*3*1,1
A63: 19 | B63: 998766103R00 | C63: Přesun hmot pro truhlářské konstr., výšky do 24 m | D63: t | E63: 0.1530285 | G63: =E63*F63 -> 0 | H63: 0 | I63: =E63*H63 -> 0 | K63: =E63*J63 -> 0 | O63: 2 | AA63: 7 | AB63: 1001 | AC63: 5 | AZ63: 2 | BA63: =IF(AZ63=1,G63,0) -> 0 | BB63: =IF(AZ63=2,G63,0) -> 0 | BC63: =IF(AZ63=3,G63,0) -> 0 | BD63: =IF(AZ63=4,G63,0) -> 0 | BE63: =IF(AZ63=5,G63,0) -> 0 | CA63: 7 | CB63: 1001
B64: Celkem za | C64: 766 Konstrukce truhlářské | G64: =SUM(G42:G63) -> 0 | I64: =SUM(I42:I63) -> 0.1530285 | K64: =SUM(K42:K63) -> 0 | O64: 4 | BA64: =SUM(BA42:BA63) -> 0 | BB64: =SUM(BB42:BB63) -> 0 | BC64: =SUM(BC42:BC63) -> 0 | BD64: =SUM(BD42:BD63) -> 0 | BE64: =SUM(BE42:BE63) -> 0
A65: Díl: | B65: 784 | C65: Malby | O65: 1
A66: 20 | B66: 784195212RRX | C66: Malba Primalex Plus, bílá, s penetrací, 2 x ostění šířky do 50cm | D66: m | E66: 12.3 | G66: =E66*F66 -> 0 | H66: 0.00015 | I66: =E66*H66 -> 0.001845 | J66: 0 | K66: =E66*J66 -> 0 | O66: 2 | AA66: 1 | AB66: 7 | AC66: 7 | AZ66: 2 | BA66: =IF(AZ66=1,G66,0) -> 0 | BB66: =IF(AZ66=2,G66,0) -> 0 | BC66: =IF(AZ66=3,G66,0) -> 0 | BD66: =IF(AZ66=4,G66,0) -> 0 | BE66: =IF(AZ66=5,G66,0) -> 0 | CA66: 1 | CB66: 7
C67: Byt č. 2 90x160 cm:(0,90+2*1,60)*3 | E67: 12.3 | M67: Byt č. 2 90x160 cm:(0,90+2*1,60)*3
B68: Celkem za | C68: 784 Malby | G68: =SUM(G65:G67) -> 0 | I68: =SUM(I65:I67) -> 0.001845 | K68: =SUM(K65:K67) -> 0 | O68: 4 | BA68: =SUM(BA65:BA67) -> 0 | BB68: =SUM(BB65:BB67) -> 0 | BC68: =SUM(BC65:BC67) -> 0 | BD68: =SUM(BD65:BD67) -> 0 | BE68: =SUM(BE65:BE67) -> 0
A69: Díl: | B69: D96 | C69: Přesuny suti a vybouraných hmot | O69: 1
A70: 21 | B70: 979011211R00 | C70: Svislá doprava suti a vybour. hmot za 2.NP nošením | D70: t | E70: 0.47079 | G70: =E70*F70 -> 0 | H70: 0 | I70: =E70*H70 -> 0 | K70: =E70*J70 -> 0 | O70: 2 | AA70: 8 | AB70: 0 | AC70: 3 | AZ70: 1 | BA70: =IF(AZ70=1,G70,0) -> 0 | BB70: =IF(AZ70=2,G70,0) -> 0 | BC70: =IF(AZ70=3,G70,0) -> 0 | BD70: =IF(AZ70=4,G70,0) -> 0 | BE70: =IF(AZ70=5,G70,0) -> 0 | CA70: 8 | CB70: 0
A71: 22 | B71: 979081111R00 | C71: Odvoz suti a vybour. hmot na skládku zhotovitele | D71: t | E71: 0.47079 | G71: =E71*F71 -> 0 | H71: 0 | I71: =E71*H71 -> 0 | K71: =E71*J71 -> 0 | O71: 2 | AA71: 8 | AB71: 0 | AC71: 3 | AZ71: 1 | BA71: =IF(AZ71=1,G71,0) -> 0 | BB71: =IF(AZ71=2,G71,0) -> 0 | BC71: =IF(AZ71=3,G71,0) -> 0 | BD71: =IF(AZ71=4,G71,0) -> 0 | BE71: =IF(AZ71=5,G71,0) -> 0 | CA71: 8 | CB71: 0
A72: 23 | B72: 979082111R00 | C72: Vnitrostaveništní doprava suti do 10 m | D72: t | E72: 0.47079 | G72: =E72*F72 -> 0 | H72: 0 | I72: =E72*H72 -> 0 | K72: =E72*J72 -> 0 | O72: 2 | AA72: 8 | AB72: 0 | AC72: 3 | AZ72: 1 | BA72: =IF(AZ72=1,G72,0) -> 0 | BB72: =IF(AZ72=2,G72,0) -> 0 | BC72: =IF(AZ72=3,G72,0) -> 0 | BD72: =IF(AZ72=4,G72,0) -> 0 | BE72: =IF(AZ72=5,G72,0) -> 0 | CA72: 8 | CB72: 0
A73: 24 | B73: 979082121R00 | C73: Příplatek k vnitrost. dopravě suti za dalších 5 m | D73: t | E73: 4.7079 | G73: =E73*F73 -> 0 | H73: 0 | I73: =E73*H73 -> 0 | K73: =E73*J73 -> 0 | O73: 2 | AA73: 8 | AB73: 0 | AC73: 3 | AZ73: 1 | BA73: =IF(AZ73=1,G73,0) -> 0 | BB73: =IF(AZ73=2,G73,0) -> 0 | BC73: =IF(AZ73=3,G73,0) -> 0 | BD73: =IF(AZ73=4,G73,0) -> 0 | BE73: =IF(AZ73=5,G73,0) -> 0 | CA73: 8 | CB73: 0
A74: 25 | B74: 979990107R00 | C74: Poplatek za skládku suti - směs betonu,cihel,dřeva | D74: t | E74: 0.47079 | G74: =E74*F74 -> 0 | H74: 0 | I74: =E74*H74 -> 0 | K74: =E74*J74 -> 0 | O74: 2 | AA74: 8 | AB74: 0 | AC74: 3 | AZ74: 1 | BA74: =IF(AZ74=1,G74,0) -> 0 | BB74: =IF(AZ74=2,G74,0) -> 0 | BC74: =IF(AZ74=3,G74,0) -> 0 | BD74: =IF(AZ74=4,G74,0) -> 0 | BE74: =IF(AZ74=5,G74,0) -> 0 | CA74: 8 | CB74: 0
B75: Celkem za | C75: D96 Přesuny suti a vybouraných hmot | G75: =SUM(G69:G74) -> 0 | I75: =SUM(I69:I74) -> 0 | K75: =SUM(K69:K74) -> 0 | O75: 4 | BA75: =SUM(BA69:BA74) -> 0 | BB75: =SUM(BB69:BB74) -> 0 | BC75: =SUM(BC69:BC74) -> 0 | BD75: =SUM(BD69:BD74) -> 0 | BE75: =SUM(BE69:BE74) -> 0

Sheet 01 325701.3 KL
A1: POLOŽKOVÝ ROZPOČET
A2: Rozpočet | C2: 3257/01.3 | D2: Byt č. 3 - 3.NP | F2: JKSO | G2: 803.5
A4: Objekt | F4: SKP
A5: 01 | C5: Objekt ul. 5. května čp.26 | F5: Měrná jednotka | G5: m3
A6: Stavba | F6: Počet jednotek | G6: 0
A7: 3257 | C7: Turnov - objekt ul. 5. května čp.26 | F7: Náklady na m.j. | G7: =IF(G6=0,,ROUND((F30+F32)/G6,1)) -> 0
A8: Projektant | F8: Typ rozpočtu
A9: Zpracovatel projektu
A10: Objednatel | C10: Město TURNOV
A11: Dodavatel | C11: . | F11: Zakázkové číslo
A12: Rozpočtoval | F12: Počet listů
A13: ROZPOČTOVÉ NÁKLADY
A14: Základní rozpočtové náklady | D14: Ostatní náklady stavby
B15: HSV celkem | C15: ='01 325701.3 Rek'!E16 -> 0 | D15: ='01 325701.3 Rek'!A21 -> Zařízení staveniště | G15: ='01 325701.3 Rek'!I21 -> 0
A16: Z | B16: PSV celkem | C16: ='01 325701.3 Rek'!F16 -> 0 | D16: ='01 325701.3 Rek'!A22 -> Provoz investora | G16: ='01 325701.3 Rek'!I22 -> 0
A17: R | B17: M práce celkem | C17: ='01 325701.3 Rek'!H16 -> 0 | D17: ='01 325701.3 Rek'!A23 -> Kompletační činnost (IČD) | G17: ='01 325701.3 Rek'!I23 -> 0
A18: N | B18: M dodávky celkem | C18: ='01 325701.3 Rek'!G16 -> 0
A19: ZRN celkem | C19: =SUM(C15:C18) -> 0
A21: HZS | C21: ='01 325701.3 Rek'!I16 -> 0
A22: ZRN+HZS | C22: =C19+C21 -> 0
A23: ZRN+ost.náklady+HZS | C23: =C22+G23 -> 0 | D23: Ostatní náklady celkem | G23: ='01 325701.3 Rek'!H24 -> 0
A24: Vypracoval | D24: Za zhotovitele | F24: Za objednatele
A25: Jméno : | D25: Jméno : | F25: Jméno :
A26: Datum : | D26: Datum : | F26: Datum :
A28: Podpis : | D28: Podpis: | F28: Podpis:
A30: Základ pro DPH | C30: 15 | D30: % | F30: =C23-F32 -> 0
A31: DPH | C31: =C30 -> 15 | D31: % | F31: =ROUND(PRODUCT(F30,C31/100),0) -> 0
A32: Základ pro DPH | C32: 0 | D32: % | F32: 0
A33: DPH | C33: =C32 -> 0 | D33: % | F33: =ROUND(PRODUCT(F32,C33/100),0) -> 0
A34: CENA ZA OBJEKT CELKEM | F34: =ROUND(SUM(F30:F33),0) -> 0
A36: Poznámka :

Sheet 01 325701.3 Rek
A1: Stavba : | C1: 3257 Turnov - objekt ul. 5. května čp.26 | G1: Rozpočet : | H1: 3257/01.3
A2: Objekt : | C2: 01 Objekt ul. 5. května čp.26 | G2: Byt č. 3 - 3.NP
A4: REKAPITULACE STAVEBNÍCH DÍLŮ
B6: Stavební díl | E6: HSV | F6: PSV | G6: Dodávka | H6: Montáž | I6: HZS
A7: ='01 325701.3 Pol'!B7 -> 61 | B7: ='01 325701.3 Pol'!C7 -> Upravy povrchů vnitřní | E7: ='01 325701.3 Pol'!BA21 -> 0 | F7: ='01 325701.3 Pol'!BB21 -> 0 | G7: ='01 325701.3 Pol'!BC21 -> 0 | H7: ='01 325701.3 Pol'!BD21 -> 0 | I7: ='01 325701.3 Pol'!BE21 -> 0
A8: ='01 325701.3 Pol'!B22 -> 63 | B8: ='01 325701.3 Pol'!C22 -> Podlahy a podlahové konstrukce | E8: ='01 325701.3 Pol'!BA26 -> 0 | F8: ='01 325701.3 Pol'!BB26 -> 0 | G8: ='01 325701.3 Pol'!BC26 -> 0 | H8: ='01 325701.3 Pol'!BD26 -> 0 | I8: ='01 325701.3 Pol'!BE26 -> 0
A9: ='01 325701.3 Pol'!B27 -> 94 | B9: ='01 325701.3 Pol'!C27 -> Lešení a stavební výtahy | E9: ='01 325701.3 Pol'!BA31 -> 0 | F9: ='01 325701.3 Pol'!BB31 -> 0 | G9: ='01 325701.3 Pol'!BC31 -> 0 | H9: ='01 325701.3 Pol'!BD31 -> 0 | I9: ='01 325701.3 Pol'!BE31 -> 0
A10: ='01 325701.3 Pol'!B32 -> 96 | B10: ='01 325701.3 Pol'!C32 -> Bourání konstrukcí | E10: ='01 325701.3 Pol'!BA45 -> 0 | F10: ='01 325701.3 Pol'!BB45 -> 0 | G10: ='01 325701.3 Pol'!BC45 -> 0 | H10: ='01 325701.3 Pol'!BD45 -> 0 | I10: ='01 325701.3 Pol'!BE45 -> 0
A11: ='01 325701.3 Pol'!B46 -> 99 | B11: ='01 325701.3 Pol'!C46 -> Staveništní přesun hmot | E11: ='01 325701.3 Pol'!BA48 -> 0 | F11: ='01 325701.3 Pol'!BB48 -> 0 | G11: ='01 325701.3 Pol'!BC48 -> 0 | H11: ='01 325701.3 Pol'!BD48 -> 0 | I11: ='01 325701.3 Pol'!BE48 -> 0
A12: ='01 325701.3 Pol'!B49 -> 764 | B12: ='01 325701.3 Pol'!C49 -> Konstrukce klempířské | E12: ='01 325701.3 Pol'!BA56 -> 0 | F12: ='01 325701.3 Pol'!BB56 -> 0 | G12: ='01 325701.3 Pol'!BC56 -> 0 | H12: ='01 325701.3 Pol'!BD56 -> 0 | I12: ='01 325701.3 Pol'!BE56 -> 0
A13: ='01 325701.3 Pol'!B57 -> 766 | B13: ='01 325701.3 Pol'!C57 -> Konstrukce truhlářské | E13: ='01 325701.3 Pol'!BA94 -> 0 | F13: ='01 325701.3 Pol'!BB94 -> 0 | G13: ='01 325701.3 Pol'!BC94 -> 0 | H13: ='01 325701.3 Pol'!BD94 -> 0 | I13: ='01 325701.3 Pol'!BE94 -> 0
A14: ='01 325701.3 Pol'!B95 -> 784 | B14: ='01 325701.3 Pol'!C95 -> Malby | E14: ='01 325701.3 Pol'!BA99 -> 0 | F14: ='01 325701.3 Pol'!BB99 -> 0 | G14: ='01 325701.3 Pol'!BC99 -> 0 | H14: ='01 325701.3 Pol'!BD99 -> 0 | I14: ='01 325701.3 Pol'!BE99 -> 0
A15: ='01 325701.3 Pol'!B100 -> D96 | B15: ='01 325701.3 Pol'!C100 -> Přesuny suti a vybouraných hmot | E15: ='01 325701.3 Pol'!BA107 -> 0 | F15: ='01 325701.3 Pol'!BB107 -> 0 | G15: ='01 325701.3 Pol'!BC107 -> 0 | H15: ='01 325701.3 Pol'!BD107 -> 0 | I15: ='01 325701.3 Pol'!BE107 -> 0
B16: CELKEM OBJEKT | E16: =SUM(E7:E15) -> 0 | F16: =SUM(F7:F15) -> 0 | G16: =SUM(G7:G15) -> 0 | H16: =SUM(H7:H15) -> 0 | I16: =SUM(I7:I15) -> 0
A18: OSTATNÍ NÁKLADY STAVBY
A20: Název ONS | E20: Kč | I20: Kč
A21: Zařízení staveniště | E21: 0 | I21: =E21+F21*G21/100 -> 0 | BA21: 2
A22: Provoz investora | E22: 0 | I22: =E22+F22*G22/100 -> 0 | BA22: 1
A23: Kompletační činnost (IČD) | E23: 0 | I23: =E23+F23*G23/100 -> 0 | BA23: 2
B24: CELKEM ONS | H24: =SUM(I21:I23) -> 0

Sheet 01 325701.3 Pol
A1: Položkový rozpočet
A3: Stavba : | C3: 3257 Turnov - objekt ul. 5. května čp.26 | E3: Rozpočet: | F3: ='01 325701.3 Rek'!H1 -> 3257/01.3
A4: Objekt : | C4: 01 Objekt ul. 5. května čp.26 | E4: ='01 325701.3 Rek'!G2 -> Byt č. 3 - 3.NP
A6: P.č. | B6: Číslo položky | C6: Název položky | D6: MJ | E6: množství | F6: cena / MJ | G6: celkem (Kč) | H6: Jednotková hmotnost | I6: Celková hmotnost | J6: Jednotková dem.hmot. | K6: Celková dem.hmot.
A7: Díl: | B7: 61 | C7: Upravy povrchů vnitřní | O7: 1
A8: 1 | B8: 610991111R00 | C8: Zakrývání výplní vnitřních otvorů | D8: m2 | E8: 7.41 | G8: =E8*F8 -> 0 | H8: 4e-05 | I8: =E8*H8 -> 0.0002964 | J8: 0 | K8: =E8*J8 -> 0 | O8: 2 | AA8: 1 | AB8: 1 | AC8: 1 | AZ8: 1 | BA8: =IF(AZ8=1,G8,0) -> 0 | BB8: =IF(AZ8=2,G8,0) -> 0 | BC8: =IF(AZ8=3,G8,0) -> 0 | BD8: =IF(AZ8=4,G8,0) -> 0 | BE8: =IF(AZ8=5,G8,0) -> 0 | CA8: 1 | CB8: 1
C9: Byt č. 3 90x160 cm:0,90*(1,60+0,30)*2 | E9: 3.42 | M9: Byt č. 3 90x160 cm:0,90*(1,60+0,30)*2
C10: Byt č. 3 210x160 cm:2,10*(1,60+0,30)*1 | E10: 3.99 | M10: Byt č. 3 210x160 cm:2,10*(1,60+0,30)*1
A11: 2 | B11: 610991199RRX | C11: Zakrývání vybavení částí bytu dle potřeb zhotovitele pro realizaci výměny oken | D11: soubor | E11: 1 | G11: =E11*F11 -> 0 | H11: 0 | I11: =E11*H11 -> 0 | J11: 0 | K11: =E11*J11 -> 0 | O11: 2 | AA11: 1 | AB11: 0 | AC11: 0 | AZ11: 1 | BA11: =IF(AZ11=1,G11,0) -> 0 | BB11: =IF(AZ11=2,G11,0) -> 0 | BC11: =IF(AZ11=3,G11,0) -> 0 | BD11: =IF(AZ11=4,G11,0) -> 0 | BE11: =IF(AZ11=5,G11,0) -> 0 | CA11: 1 | CB11: 0
A12: 3 | B12: 612409991RT2 | C12: Začištění omítek kolem oken,dveří apod. s použitím suché maltové směsi | D12: m | E12: 17.4 | G12: =E12*F12 -> 0 | H12: 0.00238 | I12: =E12*H12 -> 0.041412 | J12: 0 | K12: =E12*J12 -> 0 | O12: 2 | AA12: 1 | AB12: 1 | AC12: 1 | AZ12: 1 | BA12: =IF(AZ12=1,G12,0) -> 0 | BB12: =IF(AZ12=2,G12,0) -> 0 | BC12: =IF(AZ12=3,G12,0) -> 0 | BD12: =IF(AZ12=4,G12,0) -> 0 | BE12: =IF(AZ12=5,G12,0) -> 0 | CA12: 1 | CB12: 1
C13: Byt č. 3 90x160 cm:(0,90+1,60)*2*2 | E13: 10 | M13: Byt č. 3 90x160 cm:(0,90+1,60)*2*2
C14: Byt č. 3 210x160 cm:(2,10+1,60)*2*1 | E14: 7.4 | M14: Byt č. 3 210x160 cm:(2,10+1,60)*2*1
A15: 4 | B15: 612425931RT2 | C15: Omítka vápenná vnitřního ostění - štuková s použitím suché maltové směsi | D15: m2 | E15: 4.05 | G15: =E15*F15 -> 0 | H15: 0.03491 | I15: =E15*H15 -> 0.1413855 | J15: 0 | K15: =E15*J15 -> 0 | O15: 2 | AA15: 1 | AB15: 1 | AC15: 1 | AZ15: 1 | BA15: =IF(AZ15=1,G15,0) -> 0 | BB15: =IF(AZ15=2,G15,0) -> 0 | BC15: =IF(AZ15=3,G15,0) -> 0 | BD15: =IF(AZ15=4,G15,0) -> 0 | BE15: =IF(AZ15=5,G15,0) -> 0 | CA15: 1 | CB15: 1
C16: Byt č. 3 90x160 cm:0,30*(0,90+2*1,60)*2 | E16: 2.46 | M16: Byt č. 3 90x160 cm:0,30*(0,90+2*1,60)*2
C17: Byt č. 3 210x160 cm:0,30*(2,10+2*1,60)*1 | E17: 1.59 | M17: Byt č. 3 210x160 cm:0,30*(2,10+2*1,60)*1
A18: 5 | B18: 622473187RT2 | C18: Příplatek za okenní lištu (APU) - montáž včetně dodávky lišty | D18: m | E18: 13.5 | G18: =E18*F18 -> 0 | H18: 0.00015 | I18: =E18*H18 -> 0.002025 | J18: 0 | K18: =E18*J18 -> 0 | O18: 2 | AA18: 1 | AB18: 1 | AC18: 1 | AZ18: 1 | BA18: =IF(AZ18=1,G18,0) -> 0 | BB18: =IF(AZ18=2,G18,0) -> 0 | BC18: =IF(AZ18=3,G18,0) -> 0 | BD18: =IF(AZ18=4,G18,0) -> 0 | BE18: =IF(AZ18=5,G18,0) -> 0 | CA18: 1 | CB18: 1
C19: Byt č. 3 90x160 cm:(0,90+2*1,60)*2 | E19: 8.2 | M19: Byt č. 3 90x160 cm:(0,90+2*1,60)*2
C20: Byt č. 3 210x160 cm:(2,10+2*1,60)*1 | E20: 5.3 | M20: Byt č. 3 210x160 cm:(2,10+2*1,60)*1
B21: Celkem za | C21: 61 Upravy povrchů vnitřní | G21: =SUM(G7:G20) -> 0 | I21: =SUM(I7:I20) -> 0.1851189 | K21: =SUM(K7:K20) -> 0 | O21: 4 | BA21: =SUM(BA7:BA20) -> 0 | BB21: =SUM(BB7:BB20) -> 0 | BC21: =SUM(BC7:BC20) -> 0 | BD21: =SUM(BD7:BD20) -> 0 | BE21: =SUM(BE7:BE20) -> 0
A22: Díl: | B22: 63 | C22: Podlahy a podlahové konstrukce | O22: 1
A23: 6 | B23: 632411104R00 | C23: Vyrovnávací stěrka, ruční zprac. tl.4 mm | D23: m2 | E23: 1.17 | G23: =E23*F23 -> 0 | H23: 0.007 | I23: =E23*H23 -> 0.00819 | J23: 0 | K23: =E23*J23 -> 0 | O23: 2 | AA23: 1 | AB23: 1 | AC23: 1 | AZ23: 1 | BA23: =IF(AZ23=1,G23,0) -> 0 | BB23: =IF(AZ23=2,G23,0) -> 0 | BC23: =IF(AZ23=3,G23,0) -> 0 | BD23: =IF(AZ23=4,G23,0) -> 0 | BE23: =IF(AZ23=5,G23,0) -> 0 | CA23: 1 | CB23: 1
C24: Byt č. 3 90x160 cm - parapet:0,90*0,30*2 | E24: 0.54 | M24: Byt č. 3 90x160 cm - parapet:0,90*0,30*2
C25: Byt č. 3 210x160 cm - parapet:2,10*0,30*1 | E25: 0.63 | M25: Byt č. 3 210x160 cm - parapet:2,10*0,30*1
B26: Celkem za | C26: 63 Podlahy a podlahové konstrukce | G26: =SUM(G22:G25) -> 0 | I26: =SUM(I22:I25) -> 0.00819 | K26: =SUM(K22:K25) -> 0 | O26: 4 | BA26: =SUM(BA22:BA25) -> 0 | BB26: =SUM(BB22:BB25) -> 0 | BC26: =SUM(BC22:BC25) -> 0 | BD26: =SUM(BD22:BD25) -> 0 | BE26: =SUM(BE22:BE25) -> 0
A27: Díl: | B27: 94 | C27: Lešení a stavební výtahy | O27: 1
A28: 7 | B28: 941955001R00 | C28: Lešení lehké pomocné, výška podlahy do 1,2 m | D28: m2 | E28: 9.6 | G28: =E28*F28 -> 0 | H28: 0.00121 | I28: =E28*H28 -> 0.011616 | J28: 0 | K28: =E28*J28 -> 0 | O28: 2 | AA28: 1 | AB28: 1 | AC28: 1 | AZ28: 1 | BA28: =IF(AZ28=1,G28,0) -> 0 | BB28: =IF(AZ28=2,G28,0) -> 0 | BC28: =IF(AZ28=3,G28,0) -> 0 | BD28: =IF(AZ28=4,G28,0) -> 0 | BE28: =IF(AZ28=5,G28,0) -> 0 | CA28: 1 | CB28: 1
C29: Byt č. 3 90x160 cm:1,20*1,00*2*2 | E29: 4.8 | M29: Byt č. 3 90x160 cm:1,20*1,00*2*2
C30: Byt č. 3 210x160 cm:2,40*1,00*1*2 | E30: 4.8 | M30: Byt č. 3 210x160 cm:2,40*1,00*1*2
B31: Celkem za | C31: 94 Lešení a stavební výtahy | G31: =SUM(G27:G30) -> 0 | I31: =SUM(I27:I30) -> 0.011616 | K31: =SUM(K27:K30) -> 0 | O31: 4 | BA31: =SUM(BA27:BA30) -> 0 | BB31: =SUM(BB27:BB30) -> 0 | BC31: =SUM(BC27:BC30) -> 0 | BD31: =SUM(BD27:BD30) -> 0 | BE31: =SUM(BE27:BE30) -> 0
A32: Díl: | B32: 96 | C32: Bourání konstrukcí | O32: 1
A33: 8 | B33: 967031132R00 | C33: Přisekání rovných ostění cihelných na MVC | D33: m2 | E33: 4.05 | G33: =E33*F33 -> 0 | H33: 0 | I33: =E33*H33 -> 0 | J33: -0.055 | K33: =E33*J33 -> -0.22275 | O33: 2 | AA33: 1 | AB33: 1 | AC33: 1 | AZ33: 1 | BA33: =IF(AZ33=1,G33,0) -> 0 | BB33: =IF(AZ33=2,G33,0) -> 0 | BC33: =IF(AZ33=3,G33,0) -> 0 | BD33: =IF(AZ33=4,G33,0) -> 0 | BE33: =IF(AZ33=5,G33,0) -> 0 | CA33: 1 | CB33: 1
C34: Byt č. 3 90x160 cm:0,30*(0,90+2*1,60)*2 | E34: 2.46 | M34: Byt č. 3 90x160 cm:0,30*(0,90+2*1,60)*2
C35: Byt č. 3 210x160 cm:0,30*(2,10+2*1,60)*1 | E35: 1.59 | M35: Byt č. 3 210x160 cm:0,30*(2,10+2*1,60)*1
A36: 9 | B36: 968061112R00 | C36: Vyvěšení dřevěných okenních křídel pl. do 1,5 m2 | D36: kus | E36: 3 | G36: =E36*F36 -> 0 | H36: 0 | I36: =E36*H36 -> 0 | J36: 0 | K36: =E36*J36 -> 0 | O36: 2 | AA36: 1 | AB36: 1 | AC36: 1 | AZ36: 1 | BA36: =IF(AZ36=1,G36,0) -> 0 | BB36: =IF(AZ36=2,G36,0) -> 0 | BC36: =IF(AZ36=3,G36,0) -> 0 | BD36: =IF(AZ36=4,G36,0) -> 0 | BE36: =IF(AZ36=5,G36,0) -> 0 | CA36: 1 | CB36: 1
C37: Byt č. 3 90x160 cm:1*2 | E37: 2 | M37: Byt č. 3 90x160 cm:1*2
C38: Byt č. 3 210x160 cm:1*1 | E38: 1 | M38: Byt č. 3 210x160 cm:1*1
A39: 10 | B39: 968061113R00 | C39: Vyvěšení dřevěných okenních křídel pl. nad 1,5 m2 | D39: kus | E39: 1 | G39: =E39*F39 -> 0 | H39: 0 | I39: =E39*H39 -> 0 | J39: 0 | K39: =E39*J39 -> 0 | O39: 2 | AA39: 1 | AB39: 1 | AC39: 1 | AZ39: 1 | BA39: =IF(AZ39=1,G39,0) -> 0 | BB39: =IF(AZ39=2,G39,0) -> 0 | BC39: =IF(AZ39=3,G39,0) -> 0 | BD39: =IF(AZ39=4,G39,0) -> 0 | BE39: =IF(AZ39=5,G39,0) -> 0 | CA39: 1 | CB39: 1
C40: Byt č. 3 210x160 cm:1*1 | E40: 1 | M40: Byt č. 3 210x160 cm:1*1
A41: 11 | B41: 968062355RRX | C41: Vybourání dřevěných rámů oken dvojitých pl. 2 m2 včetně parapetů oken | D41: m2 | E41: 2.88 | G41: =E41*F41 -> 0 | H41: 0.001 | I41: =E41*H41 -> 0.00288 | J41: -0.062 | K41: =E41*J41 -> -0.17856 | O41: 2 | AA41: 1 | AB41: 1 | AC41: 1 | AZ41: 1 | BA41: =IF(AZ41=1,G41,0) -> 0 | BB41: =IF(AZ41=2,G41,0) -> 0 | BC41: =IF(AZ41=3,G41,0) -> 0 | BD41: =IF(AZ41=4,G41,0) -> 0 | BE41: =IF(AZ41=5,G41,0) -> 0 | CA41: 1 | CB41: 1
C42: Byt č. 3 90x160 cm:0,90*1,60*2 | E42: 2.88 | M42: Byt č. 3 90x160 cm:0,90*1,60*2
A43: 12 | B43: 968062356RRX | C43: Vybourání dřevěných rámů oken dvojitých pl. 4 m2 včetně parapetů oken | D43: m2 | E43: 3.36 | G43: =E43*F43 -> 0 | H43: 0.00092 | I43: =E43*H43 -> 0.0030912 | J43: -0.054 | K43: =E43*J43 -> -0.18144 | O43: 2 | AA43: 1 | AB43: 1 | AC43: 1 | AZ43: 1 | BA43: =IF(AZ43=1,G43,0) -> 0 | BB43: =IF(AZ43=2,G43,0) -> 0 | BC43: =IF(AZ43=3,G43,0) -> 0 | BD43: =IF(AZ43=4,G43,0) -> 0 | BE43: =IF(AZ43=5,G43,0) -> 0 | CA43: 1 | CB43: 1
C44: Byt č. 3 210x160 cm:2,10*1,60*1 | E44: 3.36 | M44: Byt č. 3 210x160 cm:2,10*1,60*1
B45: Celkem za | C45: 96 Bourání konstrukcí | G45: =SUM(G32:G44) -> 0 | I45: =SUM(I32:I44) -> 0.0059712 | K45: =SUM(K32:K44) -> -0.58275 | O45: 4 | BA45: =SUM(BA32:BA44) -> 0 | BB45: =SUM(BB32:BB44) -> 0 | BC45: =SUM(BC32:BC44) -> 0 | BD45: =SUM(BD32:BD44) -> 0 | BE45: =SUM(BE32:BE44) -> 0
A46: Díl: | B46: 99 | C46: Staveništní přesun hmot | O46: 1
A47: 13 | B47: 999281111R00 | C47: Přesun hmot pro opravy a údržbu do výšky 25 m | D47: t | E47: 0.2108961 | G47: =E47*F47 -> 0 | H47: 0 | I47: =E47*H47 -> 0 | K47: =E47*J47 -> 0 | O47: 2 | AA47: 7 | AB47: 1 | AC47: 2 | AZ47: 1 | BA47: =IF(AZ47=1,G47,0) -> 0 | BB47: =IF(AZ47=2,G47,0) -> 0 | BC47: =IF(AZ47=3,G47,0) -> 0 | BD47: =IF(AZ47=4,G47,0) -> 0 | BE47: =IF(AZ47=5,G47,0) -> 0 | CA47: 7 | CB47: 1
B48: Celkem za | C48: 99 Staveništní přesun hmot | G48: =SUM(G46:G47) -> 0 | I48: =SUM(I46:I47) -> 0 | K48: =SUM(K46:K47) -> 0 | O48: 4 | BA48: =SUM(BA46:BA47) -> 0 | BB48: =SUM(BB46:BB47) -> 0 | BC48: =SUM(BC46:BC47) -> 0 | BD48: =SUM(BD46:BD47) -> 0 | BE48: =SUM(BE46:BE47) -> 0
A49: Díl: | B49: 764 | C49: Konstrukce klempířské | O49: 1
A50: 14 | B50: 764231921RRX | C50: Oprava lemov. zdí Cu rš 250 mm Přichycení stávajícího oplechování k novému oknu | D50: m | E50: 8.2 | G50: =E50*F50 -> 0 | H50: 0.00157 | I50: =E50*H50 -> 0.012874 | J50: 0 | K50: =E50*J50 -> 0 | O50: 2 | AA50: 1 | AB50: 7 | AC50: 7 | AZ50: 2 | BA50: =IF(AZ50=1,G50,0) -> 0 | BB50: =IF(AZ50=2,G50,0) -> 0 | BC50: =IF(AZ50=3,G50,0) -> 0 | BD50: =IF(AZ50=4,G50,0) -> 0 | BE50: =IF(AZ50=5,G50,0) -> 0 | CA50: 1 | CB50: 7
C51: Byt č. 3 90x160 cm:(0,90+2*1,60)*2 | E51: 8.2 | M51: Byt č. 3 90x160 cm:(0,90+2*1,60)*2
A52: 15 | B52: 764510950RRX | C52: Oprava oplechování parapetů Cu,rš 330 mm Přichycení stávajícího parapetu k novému oknu | D52: m | E52: 3.9 | G52: =E52*F52 -> 0 | H52: 0.00361 | I52: =E52*H52 -> 0.014079 | J52: 0 | K52: =E52*J52 -> 0 | O52: 2 | AA52: 1 | AB52: 7 | AC52: 7 | AZ52: 2 | BA52: =IF(AZ52=1,G52,0) -> 0 | BB52: =IF(AZ52=2,G52,0) -> 0 | BC52: =IF(AZ52=3,G52,0) -> 0 | BD52: =IF(AZ52=4,G52,0) -> 0 | BE52: =IF(AZ52=5,G52,0) -> 0 | CA52: 1 | CB52: 7
C53: Byt č. 3 90x160 cm:0,90*2 | E53: 1.8 | M53: Byt č. 3 90x160 cm:0,90*2
C54: Byt č. 3 210x160 cm:2,10*1 | E54: 2.1 | M54: Byt č. 3 210x160 cm:2,10*1
A55: 16 | B55: 998764103R00 | C55: Přesun hmot pro klempířské konstr., výšky do 24 m | D55: t | E55: 0.026953 | G55: =E55*F55 -> 0 | H55: 0 | I55: =E55*H55 -> 0 | K55: =E55*J55 -> 0 | O55: 2 | AA55: 7 | AB55: 1001 | AC55: 5 | AZ55: 2 | BA55: =IF(AZ55=1,G55,0) -> 0 | BB55: =IF(AZ55=2,G55,0) -> 0 | BC55: =IF(AZ55=3,G55,0) -> 0 | BD55: =IF(AZ55=4,G55,0) -> 0 | BE55: =IF(AZ55=5,G55,0) -> 0 | CA55: 7 | CB55: 1001
B56: Celkem za | C56: 764 Konstrukce klempířské | G56: =SUM(G49:G55) -> 0 | I56: =SUM(I49:I55) -> 0.026953 | K56: =SUM(K49:K55) -> 0 | O56: 4 | BA56: =SUM(BA49:BA55) -> 0 | BB56: =SUM(BB49:BB55) -> 0 | BC56: =SUM(BC49:BC55) -> 0 | BD56: =SUM(BD49:BD55) -> 0 | BE56: =SUM(BE49:BE55) -> 0
A57: Díl: | B57: 766 | C57: Konstrukce truhlářské | O57: 1
A58: 17 | B58: 766601211RT1 | C58: Těsnění okenní spáry, ostění, PT fólie+ PP páska folie š. 70 mm, páska tl. 2 mm, š. 10 mm | D58: m | E58: 17.4 | G58: =E58*F58 -> 0 | H58: 0 | I58: =E58*H58 -> 0 | J58: 0 | K58: =E58*J58 -> 0 | O58: 2 | AA58: 1 | AB58: 7 | AC58: 7 | AZ58: 2 | BA58: =IF(AZ58=1,G58,0) -> 0 | BB58: =IF(AZ58=2,G58,0) -> 0 | BC58: =IF(AZ58=3,G58,0) -> 0 | BD58: =IF(AZ58=4,G58,0) -> 0 | BE58: =IF(AZ58=5,G58,0) -> 0 | CA58: 1 | CB58: 7
C59: Instalace a dodávka parotěsné okenní fólie a paropropustné expanzní pásky. | L59: Instalace a dodávka parotěsné okenní fólie a paropropustné expanzní pásky. | O59: 3
C60: Byt č. 3 90x160 cm:(0,90+1,60)*2*2 | E60: 10 | M60: Byt č. 3 90x160 cm:(0,90+1,60)*2*2
C61: Byt č. 3 210x160 cm:(2,10+1,60)*2*1 | E61: 7.4 | M61: Byt č. 3 210x160 cm:(2,10+1,60)*2*1
A62: 18 | B62: 766694111R00 | C62: Montáž parapetních desek š.do 30 cm,dl.do 100 cm | D62: kus | E62: 1.8 | G62: =E62*F62 -> 0 | H62: 1e-05 | I62: =E62*H62 -> 1.8e-05 | J62: 0 | K62: =E62*J62 -> 0 | O62: 2 | AA62: 1 | AB62: 7 | AC62: 7 | AZ62: 2 | BA62: =IF(AZ62=1,G62,0) -> 0 | BB62: =IF(AZ62=2,G62,0) -> 0 | BC62: =IF(AZ62=3,G62,0) -> 0 | BD62: =IF(AZ62=4,G62,0) -> 0 | BE62: =IF(AZ62=5,G62,0) -> 0 | CA62: 1 | CB62: 7
C63: Byt č. 3 90x160 cm:0,90*2 | E63: 1.8 | M63: Byt č. 3 90x160 cm:0,90*2
A64: 19 | B64: 766694113R00 | C64: Montáž parapetních desek š.do 30 cm,dl.do 260 cm | D64: kus | E64: 2.1 | G64: =E64*F64 -> 0 | H64: 2e-05 | I64: =E64*H64 -> 4.2e-05 | J64: 0 | K64: =E64*J64 -> 0 | O64: 2 | AA64: 1 | AB64: 7 | AC64: 7 | AZ64: 2 | BA64: =IF(AZ64=1,G64,0) -> 0 | BB64: =IF(AZ64=2,G64,0) -> 0 | BC64: =IF(AZ64=3,G64,0) -> 0 | BD64: =IF(AZ64=4,G64,0) -> 0 | BE64: =IF(AZ64=5,G64,0) -> 0 | CA64: 1 | CB64: 7
C65: Byt č. 3 210x160 cm:2,10*1 | E65: 2.1 | M65: Byt č. 3 210x160 cm:2,10*1
A66: 20 | B66: 766711001R00 | C66: Montáž oken a balkonových dveří s vypěněním | D66: m | E66: 17.4 | G66: =E66*F66 -> 0 | H66: 2e-05 | I66: =E66*H66 -> 0.000348 | J66: 0 | K66: =E66*J66 -> 0 | O66: 2 | AA66: 1 | AB66: 7 | AC66: 7 | AZ66: 2 | BA66: =IF(AZ66=1,G66,0) -> 0 | BB66: =IF(AZ66=2,G66,0) -> 0 | BC66: =IF(AZ66=3,G66,0) -> 0 | BD66: =IF(AZ66=4,G66,0) -> 0 | BE66: =IF(AZ66=5,G66,0) -> 0 | CA66: 1 | CB66: 7
C67: Montáž dřevěných oken a dveří včetně dodávky a montáže PU pěny a spojovacích prostředků. | L67: Montáž dřevěných oken a dveří včetně dodávky a montáže PU pěny a spojovacích prostředků. | O67: 3
C68: Byt č. 3 90x160 cm:(0,90+1,60)*2*2 | E68: 10 | M68: Byt č. 3 90x160 cm:(0,90+1,60)*2*2
C69: Byt č. 3 210x160 cm:(2,10+1,60)*2*1 | E69: 7.4 | M69: Byt č. 3 210x160 cm:(2,10+1,60)*2*1
A70: 21 | B70: 61111436 | C70: Okno dřevěné 1křídl. OS1A 90x160 cm Profilace rámů a příček dle požadavku NPÚ | D70: kus | E70: 2 | G70: =E70*F70 -> 0 | H70: 0.046 | I70: =E70*H70 -> 0.092 | K70: =E70*J70 -> 0 | O70: 2 | AA70: 3 | AB70: 7 | AC70: 61111436 | AZ70: 2 | BA70: =IF(AZ70=1,G70,0) -> 0 | BB70: =IF(AZ70=2,G70,0) -> 0 | BC70: =IF(AZ70=3,G70,0) -> 0 | BD70: =IF(AZ70=4,G70,0) -> 0 | BE70: =IF(AZ70=5,G70,0) -> 0 | CA70: 3 | CB70: 7
C71: profil EURO | L71: profil EURO | O71: 3
C72: jednokřídlové, otevíravé a sklápěcí | L72: jednokřídlové, otevíravé a sklápěcí | O72: 3
C73: materiál: třívrstvový hranolek SM | L73: materiál: třívrstvový hranolek SM | O73: 3
C74: sklo izolační - trojsklo | L74: sklo izolační - trojsklo | O74: 3
C75: okapnice: hliníková | L75: okapnice: hliníková | O75: 3
C76: nátěr dle stávající barvy v objektu | L76: nátěr dle stávající barvy v objektu | O76: 3
C77: Poznámka: | L77: Poznámka: | O77: 3
C78: Před výrobou oken si zhotovitel zaměří každý otvor pro dodávku nového okna | L78: Před výrobou oken si zhotovitel zaměří každý otvor pro dodávku nového okna | O78: 3
C79: Byt č. 3:2 | E79: 2 | M79: Byt č. 3:2
A80: 22 | B80: 61130951 | C80: Okno dřevěné 3křídl. OS3B 210x160 cm Profilace rámů a příček dle požadavku NPÚ | D80: kus | E80: 1 | G80: =E80*F80 -> 0 | H80: 0.127 | I80: =E80*H80 -> 0.127 | K80: =E80*J80 -> 0 | O80: 2 | AA80: 3 | AB80: 7 | AC80: 61130951 | AZ80: 2 | BA80: =IF(AZ80=1,G80,0) -> 0 | BB80: =IF(AZ80=2,G80,0) -> 0 | BC80: =IF(AZ80=3,G80,0) -> 0 | BD80: =IF(AZ80=4,G80,0) -> 0 | BE80: =IF(AZ80=5,G80,0) -> 0 | CA80: 3 | CB80: 7
C81: profil EURO | L81: profil EURO | O81: 3
C82: tříkřídlé, dvouřídlé otevíravé + jednokřídlé otevírací a sklápěcí | L82: tříkřídlé, dvouřídlé otevíravé + jednokřídlé otevírací a sklápěcí | O82: 3
C83: materiál: třívrstvový hranolek SM | L83: materiál: třívrstvový hranolek SM | O83: 3
C84: sklo izolační - trojsklo | L84: sklo izolační - trojsklo | O84: 3
C85: okapnice: hliníková | L85: okapnice: hliníková | O85: 3
C86: nátěr dle stávající barvy v objektu | L86: nátěr dle stávající barvy v objektu | O86: 3
C87: Poznámka: | L87: Poznámka: | O87: 3
C88: Před výrobou oken si zhotovitel zaměří každý otvor pro dodávku nového okna | L88: Před výrobou oken si zhotovitel zaměří každý otvor pro dodávku nového okna | O88: 3
C89: Byt č. 3:1 | E89: 1 | M89: Byt č. 3:1
A90: 23 | B90: 61187552 | C90: Deska parapetní šířka 30 cm | D90: m | E90: 4.29 | G90: =E90*F90 -> 0 | H90: 0.00495 | I90: =E90*H90 -> 0.0212355 | K90: =E90*J90 -> 0 | O90: 2 | AA90: 3 | AB90: 7 | AC90: 61187552 | AZ90: 2 | BA90: =IF(AZ90=1,G90,0) -> 0 | BB90: =IF(AZ90=2,G90,0) -> 0 | BC90: =IF(AZ90=3,G90,0) -> 0 | BD90: =IF(AZ90=4,G90,0) -> 0 | BE90: =IF(AZ90=5,G90,0) -> 0 | CA90: 3 | CB90: 7
C91: Byt č. 3 90x160 cm:0,90*2*1,1 | E91: 1.98 | M91: Byt č. 3 90x160 cm:0,90*2*1,1
C92: Byt č. 3 210x160 cm:2,10*1*1,1 | E92: 2.31 | M92: Byt č. 3 210x160 cm:2,10*1*1,1
A93: 24 | B93: 998766103R00 | C93: Přesun hmot pro truhlářské konstr., výšky do 24 m | D93: t | E93: 0.2406435 | G93: =E93*F93 -> 0 | H93: 0 | I93: =E93*H93 -> 0 | K93: =E93*J93 -> 0 | O93: 2 | AA93: 7 | AB93: 1001 | AC93: 5 | AZ93: 2 | BA93: =IF(AZ93=1,G93,0) -> 0 | BB93: =IF(AZ93=2,G93,0) -> 0 | BC93: =IF(AZ93=3,G93,0) -> 0 | BD93: =IF(AZ93=4,G93,0) -> 0 | BE93: =IF(AZ93=5,G93,0) -> 0 | CA93: 7 | CB93: 1001
B94: Celkem za | C94: 766 Konstrukce truhlářské | G94: =SUM(G57:G93) -> 0 | I94: =SUM(I57:I93) -> 0.2406435 | K94: =SUM(K57:K93) -> 0 | O94: 4 | BA94: =SUM(BA57:BA93) -> 0 | BB94: =SUM(BB57:BB93) -> 0 | BC94: =SUM(BC57:BC93) -> 0 | BD94: =SUM(BD57:BD93) -> 0 | BE94: =SUM(BE57:BE93) -> 0
A95: Díl: | B95: 784 | C95: Malby | O95: 1
A96: 25 | B96: 784195212RRX | C96: Malba Primalex Plus, bílá, s penetrací, 2 x ostění šířky do 50cm | D96: m | E96: 13.5 | G96: =E96*F96 -> 0 | H96: 0.00015 | I96: =E96*H96 -> 0.002025 | J96: 0 | K96: =E96*J96 -> 0 | O96: 2 | AA96: 1 | AB96: 7 | AC96: 7 | AZ96: 2 | BA96: =IF(AZ96=1,G96,0) -> 0 | BB96: =IF(AZ96=2,G96,0) -> 0 | BC96: =IF(AZ96=3,G96,0) -> 0 | BD96: =IF(AZ96=4,G96,0) -> 0 | BE96: =IF(AZ96=5,G96,0) -> 0 | CA96: 1 | CB96: 7
C97: Byt č. 3 90x160 cm:(0,90+2*1,60)*2 | E97: 8.2 | M97: Byt č. 3 90x160 cm:(0,90+2*1,60)*2
C98: Byt č. 3 210x160 cm:(2,10+2*1,60)*1 | E98: 5.3 | M98: Byt č. 3 210x160 cm:(2,10+2*1,60)*1
B99: Celkem za | C99: 784 Malby | G99: =SUM(G95:G98) -> 0 | I99: =SUM(I95:I98) -> 0.002025 | K99: =SUM(K95:K98) -> 0 | O99: 4 | BA99: =SUM(BA95:BA98) -> 0 | BB99: =SUM(BB95:BB98) -> 0 | BC99: =SUM(BC95:BC98) -> 0 | BD99: =SUM(BD95:BD98) -> 0 | BE99: =SUM(BE95:BE98) -> 0
A100: Díl: | B100: D96 | C100: Přesuny suti a vybouraných hmot | O100: 1
A101: 26 | B101: 979011211R00 | C101: Svislá doprava suti a vybour. hmot za 2.NP nošením | D101: t | E101: 0.58275 | G101: =E101*F101 -> 0 | H101: 0 | I101: =E101*H101 -> 0 | K101: =E101*J101 -> 0 | O101: 2 | AA101: 8 | AB101: 0 | AC101: 3 | AZ101: 1 | BA101: =IF(AZ101=1,G101,0) -> 0 | BB101: =IF(AZ101=2,G101,0) -> 0 | BC101: =IF(AZ101=3,G101,0) -> 0 | BD101: =IF(AZ101=4,G101,0) -> 0 | BE101: =IF(AZ101=5,G101,0) -> 0 | CA101: 8 | CB101: 0
A102: 27 | B102: 979011219R00 | C102: Přípl.k svislé dopr.suti za každé další NP nošením | D102: t | E102: 0.58275 | G102: 0 | H102: 0 | I102: 0 | K102: 0 | O102: 2 | AA102: 8 | AB102: 0 | AC102: 3 | AZ102: 1 | BA102: 0 | BB102: 0 | BC102: 0 | BD102: 0 | BE102: 0 | CA102: 8 | CB102: 0
A103: 28 | B103: 979081111R00 | C103: Odvoz suti a vybour. hmot na skládku zhotovitele | D103: t | E103: 0.58275 | G103: 0 | H103: 0 | I103: 0 | K103: 0 | O103: 2 | AA103: 8 | AB103: 0 | AC103: 3 | AZ103: 1 | BA103: 0 | BB103: 0 | BC103: 0 | BD103: 0 | BE103: 0 | CA103: 8 | CB103: 0
A104: 29 | B104: 979082111R00 | C104: Vnitrostaveništní doprava suti do 10 m | D104: t | E104: 0.58275 | G104: 0 | H104: 0 | I104: 0 | K104: 0 | O104: 2 | AA104: 8 | AB104: 0 | AC104: 3 | AZ104: 1 | BA104: 0 | BB104: 0 | BC104: 0 | BD104: 0 | BE104: 0 | CA104: 8 | CB104: 0
A105: 30 | B105: 979082121R00 | C105: Příplatek k vnitrost. dopravě suti za dalších 5 m | D105: t | E105: 7.57575 | G105: 0 | H105: 0 | I105: 0 | K105: 0 | O105: 2 | AA105: 8 | AB105: 0 | AC105: 3 | AZ105: 1 | BA105: 0 | BB105: 0 | BC105: 0 | BD105: 0 | BE105: 0 | CA105: 8 | CB105: 0
A106: 31 | B106: 979990107R00 | C106: Poplatek za skládku suti - směs betonu,cihel,dřeva | D106: t | E106: 0.58275 | G106: 0 | H106: 0 | I106: 0 | K106: 0 | O106: 2 | AA106: 8 | AB106: 0 | AC106: 3 | AZ106: 1 | BA106: 0 | BB106: 0 | BC106: 0 | BD106: 0 | BE106: 0 | CA106: 8 | CB106: 0
B107: Celkem za | C107: D96 Přesuny suti a vybouraných hmot | G107: =SUM(G100:G106) -> 0 | I107: =SUM(I100:I106) -> 0 | K107: =SUM(K100:K106) -> 0 | O107: 4 | BA107: =SUM(BA100:BA106) -> 0 | BB107: =SUM(BB100:BB106) -> 0 | BC107: =SUM(BC100:BC106) -> 0 | BD107: =SUM(BD100:BD106) -> 0 | BE107: =SUM(BE100:BE106) -> 0

Sheet 01 325701.4 KL
A1: POLOŽKOVÝ ROZPOČET
A2: Rozpočet | C2: 3257/01.4 | D2: Byt č. 4 - 3.NP | F2: JKSO | G2: 803.5
A4: Objekt | F4: SKP
A5: 01 | C5: Objekt ul. 5. května čp.26 | F5: Měrná jednotka | G5: m3
A6: Stavba | F6: Počet jednotek | G6: 0
A7: 3257 | C7: Turnov - objekt ul. 5. května čp.26 | F7: Náklady na m.j. | G7: =IF(G6=0,,ROUND((F30+F32)/G6,1)) -> 0
A8: Projektant | F8: Typ rozpočtu
A9: Zpracovatel projektu
A10: Objednatel | C10: Město TURNOV
A11: Dodavatel | C11: . | F11: Zakázkové číslo
A12: Rozpočtoval | F12: Počet listů
A13: ROZPOČTOVÉ NÁKLADY
A14: Základní rozpočtové náklady | D14: Ostatní náklady stavby
B15: HSV celkem | C15: ='01 325701.4 Rek'!E16 -> 0 | D15: ='01 325701.4 Rek'!A21 -> Zařízení staveniště | G15: ='01 325701.4 Rek'!I21 -> 0
A16: Z | B16: PSV celkem | C16: ='01 325701.4 Rek'!F16 -> 0 | D16: ='01 325701.4 Rek'!A22 -> Provoz investora | G16: ='01 325701.4 Rek'!I22 -> 0
A17: R | B17: M práce celkem | C17: ='01 325701.4 Rek'!H16 -> 0 | D17: ='01 325701.4 Rek'!A23 -> Kompletační činnost (IČD) | G17: ='01 325701.4 Rek'!I23 -> 0
A18: N | B18: M dodávky celkem | C18: ='01 325701.4 Rek'!G16 -> 0
A19: ZRN celkem | C19: =SUM(C15:C18) -> 0
A21: HZS | C21: ='01 325701.4 Rek'!I16 -> 0
A22: ZRN+HZS | C22: =C19+C21 -> 0
A23: ZRN+ost.náklady+HZS | C23: =C22+G23 -> 0 | D23: Ostatní náklady celkem | G23: ='01 325701.4 Rek'!H24 -> 0
A24: Vypracoval | D24: Za zhotovitele | F24: Za objednatele
A25: Jméno : | D25: Jméno : | F25: Jméno :
A26: Datum : | D26: Datum : | F26: Datum :
A28: Podpis : | D28: Podpis: | F28: Podpis:
A30: Základ pro DPH | C30: 15 | D30: % | F30: =C23-F32 -> 0
A31: DPH | C31: =C30 -> 15 | D31: % | F31: =ROUND(PRODUCT(F30,C31/100),0) -> 0
A32: Základ pro DPH | C32: 0 | D32: % | F32: 0
A33: DPH | C33: =C32 -> 0 | D33: % | F33: =ROUND(PRODUCT(F32,C33/100),0) -> 0
A34: CENA ZA OBJEKT CELKEM | F34: =ROUND(SUM(F30:F33),0) -> 0
A36: Poznámka :

Sheet 01 325701.4 Rek
A1: Stavba : | C1: 3257 Turnov - objekt ul. 5. května čp.26 | G1: Rozpočet : | H1: 3257/01.4
A2: Objekt : | C2: 01 Objekt ul. 5. května čp.26 | G2: Byt č. 4 - 3.NP
A4: REKAPITULACE STAVEBNÍCH DÍLŮ
B6: Stavební díl | E6: HSV | F6: PSV | G6: Dodávka | H6: Montáž | I6: HZS
A7: ='01 325701.4 Pol'!B7 -> 61 | B7: ='01 325701.4 Pol'!C7 -> Upravy povrchů vnitřní | E7: ='01 325701.4 Pol'!BA17 -> 0 | F7: ='01 325701.4 Pol'!BB17 -> 0 | G7: ='01 325701.4 Pol'!BC17 -> 0 | H7: ='01 325701.4 Pol'!BD17 -> 0 | I7: ='01 325701.4 Pol'!BE17 -> 0
A8: ='01 325701.4 Pol'!B18 -> 63 | B8: ='01 325701.4 Pol'!C18 -> Podlahy a podlahové konstrukce | E8: ='01 325701.4 Pol'!BA21 -> 0 | F8: ='01 325701.4 Pol'!BB21 -> 0 | G8: ='01 325701.4 Pol'!BC21 -> 0 | H8: ='01 325701.4 Pol'!BD21 -> 0 | I8: ='01 325701.4 Pol'!BE21 -> 0
A9: ='01 325701.4 Pol'!B22 -> 94 | B9: ='01 325701.4 Pol'!C22 -> Lešení a stavební výtahy | E9: ='01 325701.4 Pol'!BA25 -> 0 | F9: ='01 325701.4 Pol'!BB25 -> 0 | G9: ='01 325701.4 Pol'!BC25 -> 0 | H9: ='01 325701.4 Pol'!BD25 -> 0 | I9: ='01 325701.4 Pol'!BE25 -> 0
A10: ='01 325701.4 Pol'!B26 -> 96 | B10: ='01 325701.4 Pol'!C26 -> Bourání konstrukcí | E10: ='01 325701.4 Pol'!BA33 -> 0 | F10: ='01 325701.4 Pol'!BB33 -> 0 | G10: ='01 325701.4 Pol'!BC33 -> 0 | H10: ='01 325701.4 Pol'!BD33 -> 0 | I10: ='01 325701.4 Pol'!BE33 -> 0
A11: ='01 325701.4 Pol'!B34 -> 99 | B11: ='01 325701.4 Pol'!C34 -> Staveništní přesun hmot | E11: ='01 325701.4 Pol'!BA36 -> 0 | F11: ='01 325701.4 Pol'!BB36 -> 0 | G11: ='01 325701.4 Pol'!BC36 -> 0 | H11: ='01 325701.4 Pol'!BD36 -> 0 | I11: ='01 325701.4 Pol'!BE36 -> 0
A12: ='01 325701.4 Pol'!B37 -> 764 | B12: ='01 325701.4 Pol'!C37 -> Konstrukce klempířské | E12: ='01 325701.4 Pol'!BA43 -> 0 | F12: ='01 325701.4 Pol'!BB43 -> 0 | G12: ='01 325701.4 Pol'!BC43 -> 0 | H12: ='01 325701.4 Pol'!BD43 -> 0 | I12: ='01 325701.4 Pol'!BE43 -> 0
A13: ='01 325701.4 Pol'!B44 -> 766 | B13: ='01 325701.4 Pol'!C44 -> Konstrukce truhlářské | E13: ='01 325701.4 Pol'!BA66 -> 0 | F13: ='01 325701.4 Pol'!BB66 -> 0 | G13: ='01 325701.4 Pol'!BC66 -> 0 | H13: ='01 325701.4 Pol'!BD66 -> 0 | I13: ='01 325701.4 Pol'!BE66 -> 0
A14: ='01 325701.4 Pol'!B67 -> 784 | B14: ='01 325701.4 Pol'!C67 -> Malby | E14: ='01 325701.4 Pol'!BA70 -> 0 | F14: ='01 325701.4 Pol'!BB70 -> 0 | G14: ='01 325701.4 Pol'!BC70 -> 0 | H14: ='01 325701.4 Pol'!BD70 -> 0 | I14: ='01 325701.4 Pol'!BE70 -> 0
A15: ='01 325701.4 Pol'!B71 -> D96 | B15: ='01 325701.4 Pol'!C71 -> Přesuny suti a vybouraných hmot | E15: ='01 325701.4 Pol'!BA78 -> 0 | F15: ='01 325701.4 Pol'!BB78 -> 0 | G15: ='01 325701.4 Pol'!BC78 -> 0 | H15: ='01 325701.4 Pol'!BD78 -> 0 | I15: ='01 325701.4 Pol'!BE78 -> 0
B16: CELKEM OBJEKT | E16: =SUM(E7:E15) -> 0 | F16: =SUM(F7:F15) -> 0 | G16: =SUM(G7:G15) -> 0 | H16: =SUM(H7:H15) -> 0 | I16: =SUM(I7:I15) -> 0
A18: OSTATNÍ NÁKLADY STAVBY
A20: Název ONS | E20: Kč | I20: Kč
A21: Zařízení staveniště | E21: 0 | I21: =E21+F21*G21/100 -> 0 | BA21: 2
A22: Provoz investora | E22: 0 | I22: =E22+F22*G22/100 -> 0 | BA22: 1
A23: Kompletační činnost (IČD) | E23: 0 | I23: =E23+F23*G23/100 -> 0 | BA23: 2
B24: CELKEM ONS | H24: =SUM(I21:I23) -> 0

Sheet 01 325701.4 Pol
A1: Položkový rozpočet
A3: Stavba : | C3: 3257 Turnov - objekt ul. 5. května čp.26 | E3: Rozpočet: | F3: ='01 325701.4 Rek'!H1 -> 3257/01.4
A4: Objekt : | C4: 01 Objekt ul. 5. května čp.26 | E4: ='01 325701.4 Rek'!G2 -> Byt č. 4 - 3.NP
A6: P.č. | B6: Číslo položky | C6: Název položky | D6: MJ | E6: množství | F6: cena / MJ | G6: celkem (Kč) | H6: Jednotková hmotnost | I6: Celková hmotnost | J6: Jednotková dem.hmot. | K6: Celková dem.hmot.
A7: Díl: | B7: 61 | C7: Upravy povrchů vnitřní | O7: 1
A8: 1 | B8: 610991111R00 | C8: Zakrývání výplní vnitřních otvorů | D8: m2 | E8: 5.13 | G8: =E8*F8 -> 0 | H8: 4e-05 | I8: =E8*H8 -> 0.0002052 | J8: 0 | K8: =E8*J8 -> 0 | O8: 2 | AA8: 1 | AB8: 1 | AC8: 1 | AZ8: 1 | BA8: =IF(AZ8=1,G8,0) -> 0 | BB8: =IF(AZ8=2,G8,0) -> 0 | BC8: =IF(AZ8=3,G8,0) -> 0 | BD8: =IF(AZ8=4,G8,0) -> 0 | BE8: =IF(AZ8=5,G8,0) -> 0 | CA8: 1 | CB8: 1
C9: Byt č. 4 90x160 cm:0,90*(1,60+0,30)*3 | E9: 5.13 | M9: Byt č. 4 90x160 cm:0,90*(1,60+0,30)*3
A10: 2 | B10: 610991199RRX | C10: Zakrývání vybavení částí bytu dle potřeb zhotovitele pro realizaci výměny oken | D10: soubor | E10: 1 | G10: =E10*F10 -> 0 | H10: 0 | I10: =E10*H10 -> 0 | J10: 0 | K10: =E10*J10 -> 0 | O10: 2 | AA10: 1 | AB10: 0 | AC10: 0 | AZ10: 1 | BA10: =IF(AZ10=1,G10,0) -> 0 | BB10: =IF(AZ10=2,G10,0) -> 0 | BC10: =IF(AZ10=3,G10,0) -> 0 | BD10: =IF(AZ10=4,G10,0) -> 0 | BE10: =IF(AZ10=5,G10,0) -> 0 | CA10: 1 | CB10: 0
A11: 3 | B11: 612409991RT2 | C11: Začištění omítek kolem oken,dveří apod. s použitím suché maltové směsi | D11: m | E11: 15 | G11: =E11*F11 -> 0 | H11: 0.00238 | I11: =E11*H11 -> 0.0357 | J11: 0 | K11: =E11*J11 -> 0 | O11: 2 | AA11: 1 | AB11: 1 | AC11: 1 | AZ11: 1 | BA11: =IF(AZ11=1,G11,0) -> 0 | BB11: =IF(AZ11=2,G11,0) -> 0 | BC11: =IF(AZ11=3,G11,0) -> 0 | BD11: =IF(AZ11=4,G11,0) -> 0 | BE11: =IF(AZ11=5,G11,0) -> 0 | CA11: 1 | CB11: 1
C12: Byt č. 4 90x160 cm:(0,90+1,60)*2*3 | E12: 15 | M12: Byt č. 4 90x160 cm:(0,90+1,60)*2*3
A13: 4 | B13: 612425931RT2 | C13: Omítka vápenná vnitřního ostění - štuková s použitím suché maltové směsi | D13: m2 | E13: 3.69 | G13: =E13*F13 -> 0 | H13: 0.03491 | I13: =E13*H13 -> 0.1288179 | J13: 0 | K13: =E13*J13 -> 0 | O13: 2 | AA13: 1 | AB13: 1 | AC13: 1 | AZ13: 1 | BA13: =IF(AZ13=1,G13,0) -> 0 | BB13: =IF(AZ13=2,G13,0) -> 0 | BC13: =IF(AZ13=3,G13,0) -> 0 | BD13: =IF(AZ13=4,G13,0) -> 0 | BE13: =IF(AZ13=5,G13,0) -> 0 | CA13: 1 | CB13: 1
C14: Byt č. 4 90x160 cm:0,30*(0,90+2*1,60)*3 | E14: 3.69 | M14: Byt č. 4 90x160 cm:0,30*(0,90+2*1,60)*3
A15: 5 | B15: 622473187RT2 | C15: Příplatek za okenní lištu (APU) - montáž včetně dodávky lišty | D15: m | E15: 12.3 | G15: =E15*F15 -> 0 | H15: 0.00015 | I15: =E15*H15 -> 0.001845 | J15: 0 | K15: =E15*J15 -> 0 | O15: 2 | AA15: 1 | AB15: 1 | AC15: 1 | AZ15: 1 | BA15: =IF(AZ15=1,G15,0) -> 0 | BB15: =IF(AZ15=2,G15,0) -> 0 | BC15: =IF(AZ15=3,G15,0) -> 0 | BD15: =IF(AZ15=4,G15,0) -> 0 | BE15: =IF(AZ15=5,G15,0) -> 0 | CA15: 1 | CB15: 1
C16: Byt č. 4 90x160 cm:(0,90+2*1,60)*3 | E16: 12.3 | M16: Byt č. 4 90x160 cm:(0,90+2*1,60)*3
B17: Celkem za | C17: 61 Upravy povrchů vnitřní | G17: =SUM(G7:G16) -> 0 | I17: =SUM(I7:I16) -> 0.1665681 | K17: =SUM(K7:K16) -> 0 | O17: 4 | BA17: =SUM(BA7:BA16) -> 0 | BB17: =SUM(BB7:BB16) -> 0 | BC17: =SUM(BC7:BC16) -> 0 | BD17: =SUM(BD7:BD16) -> 0 | BE17: =SUM(BE7:BE16) -> 0
A18: Díl: | B18: 63 | C18: Podlahy a podlahové konstrukce | O18: 1
A19: 6 | B19: 632411104R00 | C19: Vyrovnávací stěrka, ruční zprac. tl.4 mm | D19: m2 | E19: 0.81 | G19: =E19*F19 -> 0 | H19: 0.007 | I19: =E19*H19 -> 0.00567 | J19: 0 | K19: =E19*J19 -> 0 | O19: 2 | AA19: 1 | AB19: 1 | AC19: 1 | AZ19: 1 | BA19: =IF(AZ19=1,G19,0) -> 0 | BB19: =IF(AZ19=2,G19,0) -> 0 | BC19: =IF(AZ19=3,G19,0) -> 0 | BD19: =IF(AZ19=4,G19,0) -> 0 | BE19: =IF(AZ19=5,G19,0) -> 0 | CA19: 1 | CB19: 1
C20: Byt č. 4 90x160 cm - parapet:0,90*0,30*3 | E20: 0.81 | M20: Byt č. 4 90x160 cm - parapet:0,90*0,30*3
B21: Celkem za | C21: 63 Podlahy a podlahové konstrukce | G21: =SUM(G18:G20) -> 0 | I21: =SUM(I18:I20) -> 0.00567 | K21: =SUM(K18:K20) -> 0 | O21: 4 | BA21: =SUM(BA18:BA20) -> 0 | BB21: =SUM(BB18:BB20) -> 0 | BC21: =SUM(BC18:BC20) -> 0 | BD21: =SUM(BD18:BD20) -> 0 | BE21: =SUM(BE18:BE20) -> 0
A22: Díl: | B22: 94 | C22: Lešení a stavební výtahy | O22: 1
A23: 7 | B23: 941955001R00 | C23: Lešení lehké pomocné, výška podlahy do 1,2 m | D23: m2 | E23: 7.2 | G23: =E23*F23 -> 0 | H23: 0.00121 | I23: =E23*H23 -> 0.008712 | J23: 0 | K23: =E23*J23 -> 0 | O23: 2 | AA23: 1 | AB23: 1 | AC23: 1 | AZ23: 1 | BA23: =IF(AZ23=1,G23,0) -> 0 | BB23: =IF(AZ23=2,G23,0) -> 0 | BC23: =IF(AZ23=3,G23,0) -> 0 | BD23: =IF(AZ23=4,G23,0) -> 0 | BE23: =IF(AZ23=5,G23,0) -> 0 | CA23: 1 | CB23: 1
C24: Byt č. 4 90x160 cm:1,20*1,00*2*3 | E24: 7.2 | M24: Byt č. 4 90x160 cm:1,20*1,00*2*3
B25: Celkem za | C25: 94 Lešení a stavební výtahy | G25: =SUM(G22:G24) -> 0 | I25: =SUM(I22:I24) -> 0.008712 | K25: =SUM(K22:K24) -> 0 | O25: 4 | BA25: =SUM(BA22:BA24) -> 0 | BB25: =SUM(BB22:BB24) -> 0 | BC25: =SUM(BC22:BC24) -> 0 | BD25: =SUM(BD22:BD24) -> 0 | BE25: =SUM(BE22:BE24) -> 0
A26: Díl: | B26: 96 | C26: Bourání konstrukcí | O26: 1
A27: 8 | B27: 967031132R00 | C27: Přisekání rovných ostění cihelných na MVC | D27: m2 | E27: 3.69 | G27: =E27*F27 -> 0 | H27: 0 | I27: =E27*H27 -> 0 | J27: -0.055 | K27: =E27*J27 -> -0.20295 | O27: 2 | AA27: 1 | AB27: 1 | AC27: 1 | AZ27: 1 | BA27: =IF(AZ27=1,G27,0) -> 0 | BB27: =IF(AZ27=2,G27,0) -> 0 | BC27: =IF(AZ27=3,G27,0) -> 0 | BD27: =IF(AZ27=4,G27,0) -> 0 | BE27: =IF(AZ27=5,G27,0) -> 0 | CA27: 1 | CB27: 1
C28: Byt č. 4 90x160 cm:0,30*(0,90+2*1,60)*3 | E28: 3.69 | M28: Byt č. 4 90x160 cm:0,30*(0,90+2*1,60)*3
A29: 9 | B29: 968061112R00 | C29: Vyvěšení dřevěných okenních křídel pl. do 1,5 m2 | D29: kus | E29: 3 | G29: =E29*F29 -> 0 | H29: 0 | I29: =E29*H29 -> 0 | J29: 0 | K29: =E29*J29 -> 0 | O29: 2 | AA29: 1 | AB29: 1 | AC29: 1 | AZ29: 1 | BA29: =IF(AZ29=1,G29,0) -> 0 | BB29: =IF(AZ29=2,G29,0) -> 0 | BC29: =IF(AZ29=3,G29,0) -> 0 | BD29: =IF(AZ29=4,G29,0) -> 0 | BE29: =IF(AZ29=5,G29,0) -> 0 | CA29: 1 | CB29: 1
C30: Byt č. 4 90x160 cm:1*3 | E30: 3 | M30: Byt č. 4 90x160 cm:1*3
A31: 10 | B31: 968062355RRX | C31: Vybourání dřevěných rámů oken dvojitých pl. 2 m2 včetně parapetů oken | D31: m2 | E31: 4.32 | G31: =E31*F31 -> 0 | H31: 0.001 | I31: =E31*H31 -> 0.00432 | J31: -0.062 | K31: =E31*J31 -> -0.26784 | O31: 2 | AA31: 1 | AB31: 1 | AC31: 1 | AZ31: 1 | BA31: =IF(AZ31=1,G31,0) -> 0 | BB31: =IF(AZ31=2,G31,0) -> 0 | BC31: =IF(AZ31=3,G31,0) -> 0 | BD31: =IF(AZ31=4,G31,0) -> 0 | BE31: =IF(AZ31=5,G31,0) -> 0 | CA31: 1 | CB31: 1
C32: Byt č. 4 90x160 cm:0,90*1,60*3 | E32: 4.32 | M32: Byt č. 4 90x160 cm:0,90*1,60*3
B33: Celkem za | C33: 96 Bourání konstrukcí | G33: =SUM(G26:G32) -> 0 | I33: =SUM(I26:I32) -> 0.00432 | K33: =SUM(K26:K32) -> -0.47079 | O33: 4 | BA33: =SUM(BA26:BA32) -> 0 | BB33: =SUM(BB26:BB32) -> 0 | BC33: =SUM(BC26:BC32) -> 0 | BD33: =SUM(BD26:BD32) -> 0 | BE33: =SUM(BE26:BE32) -> 0
A34: Díl: | B34: 99 | C34: Staveništní přesun hmot | O34: 1
A35: 11 | B35: 999281111R00 | C35: Přesun hmot pro opravy a údržbu do výšky 25 m | D35: t | E35: 0.1852701 | G35: =E35*F35 -> 0 | H35: 0 | I35: =E35*H35 -> 0 | K35: =E35*J35 -> 0 | O35: 2 | AA35: 7 | AB35: 1 | AC35: 2 | AZ35: 1 | BA35: =IF(AZ35=1,G35,0) -> 0 | BB35: =IF(AZ35=2,G35,0) -> 0 | BC35: =IF(AZ35=3,G35,0) -> 0 | BD35: =IF(AZ35=4,G35,0) -> 0 | BE35: =IF(AZ35=5,G35,0) -> 0 | CA35: 7 | CB35: 1
B36: Celkem za | C36: 99 Staveništní přesun hmot | G36: =SUM(G34:G35) -> 0 | I36: =SUM(I34:I35) -> 0 | K36: =SUM(K34:K35) -> 0 | O36: 4 | BA36: =SUM(BA34:BA35) -> 0 | BB36: =SUM(BB34:BB35) -> 0 | BC36: =SUM(BC34:BC35) -> 0 | BD36: =SUM(BD34:BD35) -> 0 | BE36: =SUM(BE34:BE35) -> 0
A37: Díl: | B37: 764 | C37: Konstrukce klempířské | O37: 1
A38: 12 | B38: 764231921RRX | C38: Oprava lemov. zdí Cu rš 250 mm Přichycení stávajícího oplechování k novému oknu | D38: m | E38: 12.3 | G38: =E38*F38 -> 0 | H38: 0.00157 | I38: =E38*H38 -> 0.019311 | J38: 0 | K38: =E38*J38 -> 0 | O38: 2 | AA38: 1 | AB38: 7 | AC38: 7 | AZ38: 2 | BA38: =IF(AZ38=1,G38,0) -> 0 | BB38: =IF(AZ38=2,G38,0) -> 0 | BC38: =IF(AZ38=3,G38,0) -> 0 | BD38: =IF(AZ38=4,G38,0) -> 0 | BE38: =IF(AZ38=5,G38,0) -> 0 | CA38: 1 | CB38: 7
C39: Byt č. 4 90x160 cm:(0,90+2*1,60)*3 | E39: 12.3 | M39: Byt č. 4 90x160 cm:(0,90+2*1,60)*3
A40: 13 | B40: 764510950RRX | C40: Oprava oplechování parapetů Cu,rš 330 mm Přichycení stávajícího parapetu k novému oknu | D40: m | E40: 2.7 | G40: =E40*F40 -> 0 | H40: 0.00361 | I40: =E40*H40 -> 0.009747 | J40: 0 | K40: =E40*J40 -> 0 | O40: 2 | AA40: 1 | AB40: 7 | AC40: 7 | AZ40: 2 | BA40: =IF(AZ40=1,G40,0) -> 0 | BB40: =IF(AZ40=2,G40,0) -> 0 | BC40: =IF(AZ40=3,G40,0) -> 0 | BD40: =IF(AZ40=4,G40,0) -> 0 | BE40: =IF(AZ40=5,G40,0) -> 0 | CA40: 1 | CB40: 7
C41: Byt č. 4 90x160 cm:0,90*3 | E41: 2.7 | M41: Byt č. 4 90x160 cm:0,90*3
A42: 14 | B42: 998764103R00 | C42: Přesun hmot pro klempířské konstr., výšky do 24 m | D42: t | E42: 0.029058 | G42: =E42*F42 -> 0 | H42: 0 | I42: =E42*H42 -> 0 | K42: =E42*J42 -> 0 | O42: 2 | AA42: 7 | AB42: 1001 | AC42: 5 | AZ42: 2 | BA42: =IF(AZ42=1,G42,0) -> 0 | BB42: =IF(AZ42=2,G42,0) -> 0 | BC42: =IF(AZ42=3,G42,0) -> 0 | BD42: =IF(AZ42=4,G42,0) -> 0 | BE42: =IF(AZ42=5,G42,0) -> 0 | CA42: 7 | CB42: 1001
B43: Celkem za | C43: 764 Konstrukce klempířské | G43: =SUM(G37:G42) -> 0 | I43: =SUM(I37:I42) -> 0.029058 | K43: =SUM(K37:K42) -> 0 | O43: 4 | BA43: =SUM(BA37:BA42) -> 0 | BB43: =SUM(BB37:BB42) -> 0 | BC43: =SUM(BC37:BC42) -> 0 | BD43: =SUM(BD37:BD42) -> 0 | BE43: =SUM(BE37:BE42) -> 0
A44: Díl: | B44: 766 | C44: Konstrukce truhlářské | O44: 1
A45: 15 | B45: 766601211RT1 | C45: Těsnění okenní spáry, ostění, PT fólie+ PP páska folie š. 70 mm, páska tl. 2 mm, š. 10 mm | D45: m | E45: 15 | G45: =E45*F45 -> 0 | H45: 0 | I45: =E45*H45 -> 0 | J45: 0 | K45: =E45*J45 -> 0 | O45: 2 | AA45: 1 | AB45: 7 | AC45: 7 | AZ45: 2 | BA45: =IF(AZ45=1,G45,0) -> 0 | BB45: =IF(AZ45=2,G45,0) -> 0 | BC45: =IF(AZ45=3,G45,0) -> 0 | BD45: =IF(AZ45=4,G45,0) -> 0 | BE45: =IF(AZ45=5,G45,0) -> 0 | CA45: 1 | CB45: 7
C46: Instalace a dodávka parotěsné okenní fólie a paropropustné expanzní pásky. | L46: Instalace a dodávka parotěsné okenní fólie a paropropustné expanzní pásky. | O46: 3
C47: Byt č. 4 90x160 cm:(0,90+1,60)*2*3 | E47: 15 | M47: Byt č. 4 90x160 cm:(0,90+1,60)*2*3
A48: 16 | B48: 766694111R00 | C48: Montáž parapetních desek š.do 30 cm,dl.do 100 cm | D48: kus | E48: 2.7 | G48: =E48*F48 -> 0 | H48: 1e-05 | I48: =E48*H48 -> 2.7e-05 | J48: 0 | K48: =E48*J48 -> 0 | O48: 2 | AA48: 1 | AB48: 7 | AC48: 7 | AZ48: 2 | BA48: =IF(AZ48=1,G48,0) -> 0 | BB48: =IF(AZ48=2,G48,0) -> 0 | BC48: =IF(AZ48=3,G48,0) -> 0 | BD48: =IF(AZ48=4,G48,0) -> 0 | BE48: =IF(AZ48=5,G48,0) -> 0 | CA48: 1 | CB48: 7
C49: Byt č. 4 90x160 cm:0,90*3 | E49: 2.7 | M49: Byt č. 4 90x160 cm:0,90*3
A50: 17 | B50: 766711001R00 | C50: Montáž oken a balkonových dveří s vypěněním | D50: m | E50: 15 | G50: =E50*F50 -> 0 | H50: 2e-05 | I50: =E50*H50 -> 0.0003 | J50: 0 | K50: =E50*J50 -> 0 | O50: 2 | AA50: 1 | AB50: 7 | AC50: 7 | AZ50: 2 | BA50: =IF(AZ50=1,G50,0) -> 0 | BB50: =IF(AZ50=2,G50,0) -> 0 | BC50: =IF(AZ50=3,G50,0) -> 0 | BD50: =IF(AZ50=4,G50,0) -> 0 | BE50: =IF(AZ50=5,G50,0) -> 0 | CA50: 1 | CB50: 7
C51: Montáž dřevěných oken a dveří včetně dodávky a montáže PU pěny a spojovacích prostředků. | L51: Montáž dřevěných oken a dveří včetně dodávky a montáže PU pěny a spojovacích prostředků. | O51: 3
C52: Byt č. 4 90x160 cm:(0,90+1,60)*2*3 | E52: 15 | M52: Byt č. 4 90x160 cm:(0,90+1,60)*2*3
A53: 18 | B53: 61111436 | C53: Okno dřevěné 1křídl. OS1A 90x160 cm Profilace rámů a příček dle požadavku NPÚ | D53: kus | E53: 3 | G53: =E53*F53 -> 0 | H53: 0.046 | I53: =E53*H53 -> 0.138 | K53: =E53*J53 -> 0 | O53: 2 | AA53: 3 | AB53: 7 | AC53: 61111436 | AZ53: 2 | BA53: =IF(AZ53=1,G53,0) -> 0 | BB53: =IF(AZ53=2,G53,0) -> 0 | BC53: =IF(AZ53=3,G53,0) -> 0 | BD53: =IF(AZ53=4,G53,0) -> 0 | BE53: =IF(AZ53=5,G53,0) -> 0 | CA53: 3 | CB53: 7
C54: profil EURO | L54: profil EURO | O54: 3
C55: jednokřídlové, otevíravé a sklápěcí | L55: jednokřídlové, otevíravé a sklápěcí | O55: 3
C56: materiál: třívrstvový hranolek SM | L56: materiál: třívrstvový hranolek SM | O56: 3
C57: sklo izolační - trojsklo | L57: sklo izolační - trojsklo | O57: 3
C58: okapnice: hliníková | L58: okapnice: hliníková | O58: 3
C59: nátěr dle stávající barvy v objektu | L59: nátěr dle stávající barvy v objektu | O59: 3
C60: Poznámka: | L60: Poznámka: | O60: 3
C61: Před výrobou oken si zhotovitel zaměří každý otvor pro dodávku nového okna | L61: Před výrobou oken si zhotovitel zaměří každý otvor pro dodávku nového okna | O61: 3
C62: Byt č. 4:3 | E62: 3 | M62: Byt č. 4:3
A63: 19 | B63: 61187552 | C63: Deska parapetní šířka 30 cm | D63: m | E63: 2.97 | G63: =E63*F63 -> 0 | H63: 0.00495 | I63: =E63*H63 -> 0.0147015 | K63: =E63*J63 -> 0 | O63: 2 | AA63: 3 | AB63: 7 | AC63: 61187552 | AZ63: 2 | BA63: =IF(AZ63=1,G63,0) -> 0 | BB63: =IF(AZ63=2,G63,0) -> 0 | BC63: =IF(AZ63=3,G63,0) -> 0 | BD63: =IF(AZ63=4,G63,0) -> 0 | BE63: =IF(AZ63=5,G63,0) -> 0 | CA63: 3 | CB63: 7
C64: Byt č. 4 90x160 cm:0,90*3*1,1 | E64: 2.97 | M64: Byt č. 4 90x160 cm:0,90*3*1,1
A65: 20 | B65: 998766103R00 | C65: Přesun hmot pro truhlářské konstr., výšky do 24 m | D65: t | E65: 0.1530285 | G65: =E65*F65 -> 0 | H65: 0 | I65: =E65*H65 -> 0 | K65: =E65*J65 -> 0 | O65: 2 | AA65: 7 | AB65: 1001 | AC65: 5 | AZ65: 2 | BA65: =IF(AZ65=1,G65,0) -> 0 | BB65: =IF(AZ65=2,G65,0) -> 0 | BC65: =IF(AZ65=3,G65,0) -> 0 | BD65: =IF(AZ65=4,G65,0) -> 0 | BE65: =IF(AZ65=5,G65,0) -> 0 | CA65: 7 | CB65: 1001
B66: Celkem za | C66: 766 Konstrukce truhlářské | G66: =SUM(G44:G65) -> 0 | I66: =SUM(I44:I65) -> 0.1530285 | K66: =SUM(K44:K65) -> 0 | O66: 4 | BA66: =SUM(BA44:BA65) -> 0 | BB66: =SUM(BB44:BB65) -> 0 | BC66: =SUM(BC44:BC65) -> 0 | BD66: =SUM(BD44:BD65) -> 0 | BE66: =SUM(BE44:BE65) -> 0
A67: Díl: | B67: 784 | C67: Malby | O67: 1
A68: 21 | B68: 784195212RRX | C68: Malba Primalex Plus, bílá, s penetrací, 2 x ostění šířky do 50cm | D68: m | E68: 12.3 | G68: =E68*F68 -> 0 | H68: 0.00015 | I68: =E68*H68 -> 0.001845 | J68: 0 | K68: =E68*J68 -> 0 | O68: 2 | AA68: 1 | AB68: 7 | AC68: 7 | AZ68: 2 | BA68: =IF(AZ68=1,G68,0) -> 0 | BB68: =IF(AZ68=2,G68,0) -> 0 | BC68: =IF(AZ68=3,G68,0) -> 0 | BD68: =IF(AZ68=4,G68,0) -> 0 | BE68: =IF(AZ68=5,G68,0) -> 0 | CA68: 1 | CB68: 7
C69: Byt č. 4 90x160 cm:(0,90+2*1,60)*3 | E69: 12.3 | M69: Byt č. 4 90x160 cm:(0,90+2*1,60)*3
B70: Celkem za | C70: 784 Malby | G70: =SUM(G67:G69) -> 0 | I70: =SUM(I67:I69) -> 0.001845 | K70: =SUM(K67:K69) -> 0 | O70: 4 | BA70: =SUM(BA67:BA69) -> 0 | BB70: =SUM(BB67:BB69) -> 0 | BC70: =SUM(BC67:BC69) -> 0 | BD70: =SUM(BD67:BD69) -> 0 | BE70: =SUM(BE67:BE69) -> 0
A71: Díl: | B71: D96 | C71: Přesuny suti a vybouraných hmot | O71: 1
A72: 22 | B72: 979011211R00 | C72: Svislá doprava suti a vybour. hmot za 2.NP nošením | D72: t | E72: 0.47079 | G72: =E72*F72 -> 0 | H72: 0 | I72: =E72*H72 -> 0 | K72: =E72*J72 -> 0 | O72: 2 | AA72: 8 | AB72: 0 | AC72: 3 | AZ72: 1 | BA72: =IF(AZ72=1,G72,0) -> 0 | BB72: =IF(AZ72=2,G72,0) -> 0 | BC72: =IF(AZ72=3,G72,0) -> 0 | BD72: =IF(AZ72=4,G72,0) -> 0 | BE72: =IF(AZ72=5,G72,0) -> 0 | CA72: 8 | CB72: 0
A73: 23 | B73: 979011219R00 | C73: Přípl.k svislé dopr.suti za každé další NP nošením | D73: t | E73: 0.47079 | G73: 0 | H73: 0 | I73: 0 | K73: 0 | O73: 2 | AA73: 8 | AB73: 0 | AC73: 3 | AZ73: 1 | BA73: 0 | BB73: 0 | BC73: 0 | BD73: 0 | BE73: 0 | CA73: 8 | CB73: 0
A74: 24 | B74: 979081111R00 | C74: Odvoz suti a vybour. hmot na skládku zhotovitele | D74: t | E74: 0.47079 | G74: 0 | H74: 0 | I74: 0 | K74: 0 | O74: 2 | AA74: 8 | AB74: 0 | AC74: 3 | AZ74: 1 | BA74: 0 | BB74: 0 | BC74: 0 | BD74: 0 | BE74: 0 | CA74: 8 | CB74: 0
A75: 25 | B75: 979082111R00 | C75: Vnitrostaveništní doprava suti do 10 m | D75: t | E75: 0.47079 | G75: 0 | H75: 0 | I75: 0 | K75: 0 | O75: 2 | AA75: 8 | AB75: 0 | AC75: 3 | AZ75: 1 | BA75: 0 | BB75: 0 | BC75: 0 | BD75: 0 | BE75: 0 | CA75: 8 | CB75: 0
A76: 26 | B76: 979082121R00 | C76: Příplatek k vnitrost. dopravě suti za dalších 5 m | D76: t | E76: 6.12027 | G76: 0 | H76: 0 | I76: 0 | K76: 0 | O76: 2 | AA76: 8 | AB76: 0 | AC76: 3 | AZ76: 1 | BA76: 0 | BB76: 0 | BC76: 0 | BD76: 0 | BE76: 0 | CA76: 8 | CB76: 0
A77: 27 | B77: 979990107R00 | C77: Poplatek za skládku suti - směs betonu,cihel,dřeva | D77: t | E77: 0.47079 | G77: 0 | H77: 0 | I77: 0 | K77: 0 | O77: 2 | AA77: 8 | AB77: 0 | AC77: 3 | AZ77: 1 | BA77: 0 | BB77: 0 | BC77: 0 | BD77: 0 | BE77: 0 | CA77: 8 | CB77: 0
B78: Celkem za | C78: D96 Přesuny suti a vybouraných hmot | G78: =SUM(G71:G77) -> 0 | I78: =SUM(I71:I77) -> 0 | K78: =SUM(K71:K77) -> 0 | O78: 4 | BA78: =SUM(BA71:BA77) -> 0 | BB78: =SUM(BB71:BB77) -> 0 | BC78: =SUM(BC71:BC77) -> 0 | BD78: =SUM(BD71:BD77) -> 0 | BE78: =SUM(BE71:BE77) -> 0

Sheet 01 325701.5 KL
A1: POLOŽKOVÝ ROZPOČET
A2: Rozpočet | C2: 3257/01.5 | D2: Byt č. 5 - 3.NP | F2: JKSO | G2: 803.5
A4: Objekt | F4: SKP
A5: 01 | C5: Objekt ul. 5. května čp.26 | F5: Měrná jednotka | G5: m3
A6: Stavba | F6: Počet jednotek | G6: 0
A7: 3257 | C7: Turnov - objekt ul. 5. května čp.26 | F7: Náklady na m.j. | G7: =IF(G6=0,,ROUND((F30+F32)/G6,1)) -> 0
A8: Projektant | F8: Typ rozpočtu
A9: Zpracovatel projektu
A10: Objednatel | C10: Město TURNOV
A11: Dodavatel | C11: . | F11: Zakázkové číslo
A12: Rozpočtoval | F12: Počet listů
A13: ROZPOČTOVÉ NÁKLADY
A14: Základní rozpočtové náklady | D14: Ostatní náklady stavby
B15: HSV celkem | C15: ='01 325701.5 Rek'!E16 -> 0 | D15: ='01 325701.5 Rek'!A21 -> Zařízení staveniště | G15: ='01 325701.5 Rek'!I21 -> 0
A16: Z | B16: PSV celkem | C16: ='01 325701.5 Rek'!F16 -> 0 | D16: ='01 325701.5 Rek'!A22 -> Provoz investora | G16: ='01 325701.5 Rek'!I22 -> 0
A17: R | B17: M práce celkem | C17: ='01 325701.5 Rek'!H16 -> 0 | D17: ='01 325701.5 Rek'!A23 -> Kompletační činnost (IČD) | G17: ='01 325701.5 Rek'!I23 -> 0
A18: N | B18: M dodávky celkem | C18: ='01 325701.5 Rek'!G16 -> 0
A19: ZRN celkem | C19: =SUM(C15:C18) -> 0
A21: HZS | C21: ='01 325701.5 Rek'!I16 -> 0
A22: ZRN+HZS | C22: =C19+C21 -> 0
A23: ZRN+ost.náklady+HZS | C23: =C22+G23 -> 0 | D23: Ostatní náklady celkem | G23: ='01 325701.5 Rek'!H24 -> 0
A24: Vypracoval | D24: Za zhotovitele | F24: Za objednatele
A25: Jméno : | D25: Jméno : | F25: Jméno :
A26: Datum : | D26: Datum : | F26: Datum :
A28: Podpis : | D28: Podpis: | F28: Podpis:
A30: Základ pro DPH | C30: 15 | D30: % | F30: =C23-F32 -> 0
A31: DPH | C31: =C30 -> 15 | D31: % | F31: =ROUND(PRODUCT(F30,C31/100),0) -> 0
A32: Základ pro DPH | C32: 0 | D32: % | F32: 0
A33: DPH | C33: =C32 -> 0 | D33: % | F33: =ROUND(PRODUCT(F32,C33/100),0) -> 0
A34: CENA ZA OBJEKT CELKEM | F34: =ROUND(SUM(F30:F33),0) -> 0
A36: Poznámka :

Sheet 01 325701.5 Rek
A1: Stavba : | C1: 3257 Turnov - objekt ul. 5. května čp.26 | G1: Rozpočet : | H1: 3257/01.5
A2: Objekt : | C2: 01 Objekt ul. 5. května čp.26 | G2: Byt č. 5 - 3.NP
A4: REKAPITULACE STAVEBNÍCH DÍLŮ
B6: Stavební díl | E6: HSV | F6: PSV | G6: Dodávka | H6: Montáž | I6: HZS
A7: ='01 325701.5 Pol'!B7 -> 61 | B7: ='01 325701.5 Pol'!C7 -> Upravy povrchů vnitřní | E7: ='01 325701.5 Pol'!BA17 -> 0 | F7: ='01 325701.5 Pol'!BB17 -> 0 | G7: ='01 325701.5 Pol'!BC17 -> 0 | H7: ='01 325701.5 Pol'!BD17 -> 0 | I7: ='01 325701.5 Pol'!BE17 -> 0
A8: ='01 325701.5 Pol'!B18 -> 63 | B8: ='01 325701.5 Pol'!C18 -> Podlahy a podlahové konstrukce | E8: ='01 325701.5 Pol'!BA21 -> 0 | F8: ='01 325701.5 Pol'!BB21 -> 0 | G8: ='01 325701.5 Pol'!BC21 -> 0 | H8: ='01 325701.5 Pol'!BD21 -> 0 | I8: ='01 325701.5 Pol'!BE21 -> 0
A9: ='01 325701.5 Pol'!B22 -> 94 | B9: ='01 325701.5 Pol'!C22 -> Lešení a stavební výtahy | E9: ='01 325701.5 Pol'!BA25 -> 0 | F9: ='01 325701.5 Pol'!BB25 -> 0 | G9: ='01 325701.5 Pol'!BC25 -> 0 | H9: ='01 325701.5 Pol'!BD25 -> 0 | I9: ='01 325701.5 Pol'!BE25 -> 0
A10: ='01 325701.5 Pol'!B26 -> 96 | B10: ='01 325701.5 Pol'!C26 -> Bourání konstrukcí | E10: ='01 325701.5 Pol'!BA33 -> 0 | F10: ='01 325701.5 Pol'!BB33 -> 0 | G10: ='01 325701.5 Pol'!BC33 -> 0 | H10: ='01 325701.5 Pol'!BD33 -> 0 | I10: ='01 325701.5 Pol'!BE33 -> 0
A11: ='01 325701.5 Pol'!B34 -> 99 | B11: ='01 325701.5 Pol'!C34 -> Staveništní přesun hmot | E11: ='01 325701.5 Pol'!BA36 -> 0 | F11: ='01 325701.5 Pol'!BB36 -> 0 | G11: ='01 325701.5 Pol'!BC36 -> 0 | H11: ='01 325701.5 Pol'!BD36 -> 0 | I11: ='01 325701.5 Pol'!BE36 -> 0
A12: ='01 325701.5 Pol'!B37 -> 764 | B12: ='01 325701.5 Pol'!C37 -> Konstrukce klempířské | E12: ='01 325701.5 Pol'!BA43 -> 0 | F12: ='01 325701.5 Pol'!BB43 -> 0 | G12: ='01 325701.5 Pol'!BC43 -> 0 | H12: ='01 325701.5 Pol'!BD43 -> 0 | I12: ='01 325701.5 Pol'!BE43 -> 0
A13: ='01 325701.5 Pol'!B44 -> 766 | B13: ='01 325701.5 Pol'!C44 -> Konstrukce truhlářské | E13: ='01 325701.5 Pol'!BA66 -> 0 | F13: ='01 325701.5 Pol'!BB66 -> 0 | G13: ='01 325701.5 Pol'!BC66 -> 0 | H13: ='01 325701.5 Pol'!BD66 -> 0 | I13: ='01 325701.5 Pol'!BE66 -> 0
A14: ='01 325701.5 Pol'!B67 -> 784 | B14: ='01 325701.5 Pol'!C67 -> Malby | E14: ='01 325701.5 Pol'!BA70 -> 0 | F14: ='01 325701.5 Pol'!BB70 -> 0 | G14: ='01 325701.5 Pol'!BC70 -> 0 | H14: ='01 325701.5 Pol'!BD70 -> 0 | I14: ='01 325701.5 Pol'!BE70 -> 0
A15: ='01 325701.5 Pol'!B71 -> D96 | B15: ='01 325701.5 Pol'!C71 -> Přesuny suti a vybouraných hmot | E15: ='01 325701.5 Pol'!BA78 -> 0 | F15: ='01 325701.5 Pol'!BB78 -> 0 | G15: ='01 325701.5 Pol'!BC78 -> 0 | H15: ='01 325701.5 Pol'!BD78 -> 0 | I15: ='01 325701.5 Pol'!BE78 -> 0
B16: CELKEM OBJEKT | E16: =SUM(E7:E15) -> 0 | F16: =SUM(F7:F15) -> 0 | G16: =SUM(G7:G15) -> 0 | H16: =SUM(H7:H15) -> 0 | I16: =SUM(I7:I15) -> 0
A18: OSTATNÍ NÁKLADY STAVBY
A20: Název ONS | E20: Kč | I20: Kč
A21: Zařízení staveniště | E21: 0 | I21: =E21+F21*G21/100 -> 0 | BA21: 2
A22: Provoz investora | E22: 0 | I22: =E22+F22*G22/100 -> 0 | BA22: 1
A23: Kompletační činnost (IČD) | E23: 0 | I23: =E23+F23*G23/100 -> 0 | BA23: 2
B24: CELKEM ONS | H24: =SUM(I21:I23) -> 0

Sheet 01 325701.5 Pol
A1: Položkový rozpočet
A3: Stavba : | C3: 3257 Turnov - objekt ul. 5. května čp.26 | E3: Rozpočet: | F3: ='01 325701.5 Rek'!H1 -> 3257/01.5
A4: Objekt : | C4: 01 Objekt ul. 5. května čp.26 | E4: ='01 325701.5 Rek'!G2 -> Byt č. 5 - 3.NP
A6: P.č. | B6: Číslo položky | C6: Název položky | D6: MJ | E6: množství | F6: cena / MJ | G6: celkem (Kč) | H6: Jednotková hmotnost | I6: Celková hmotnost | J6: Jednotková dem.hmot. | K6: Celková dem.hmot.
A7: Díl: | B7: 61 | C7: Upravy povrchů vnitřní | O7: 1
A8: 1 | B8: 610991111R00 | C8: Zakrývání výplní vnitřních otvorů | D8: m2 | E8: 8.55 | G8: =E8*F8 -> 0 | H8: 4e-05 | I8: =E8*H8 -> 0.000342 | J8: 0 | K8: =E8*J8 -> 0 | O8: 2 | AA8: 1 | AB8: 1 | AC8: 1 | AZ8: 1 | BA8: =IF(AZ8=1,G8,0) -> 0 | BB8: =IF(AZ8=2,G8,0) -> 0 | BC8: =IF(AZ8=3,G8,0) -> 0 | BD8: =IF(AZ8=4,G8,0) -> 0 | BE8: =IF(AZ8=5,G8,0) -> 0 | CA8: 1 | CB8: 1
C9: Byt č. 5 90x160 cm:0,90*(1,60+0,30)*5 | E9: 8.55 | M9: Byt č. 5 90x160 cm:0,90*(1,60+0,30)*5
A10: 2 | B10: 610991199RRX | C10: Zakrývání vybavení částí bytu dle potřeb zhotovitele pro realizaci výměny oken | D10: soubor | E10: 1 | G10: =E10*F10 -> 0 | H10: 0 | I10: =E10*H10 -> 0 | J10: 0 | K10: =E10*J10 -> 0 | O10: 2 | AA10: 1 | AB10: 0 | AC10: 0 | AZ10: 1 | BA10: =IF(AZ10=1,G10,0) -> 0 | BB10: =IF(AZ10=2,G10,0) -> 0 | BC10: =IF(AZ10=3,G10,0) -> 0 | BD10: =IF(AZ10=4,G10,0) -> 0 | BE10: =IF(AZ10=5,G10,0) -> 0 | CA10: 1 | CB10: 0
A11: 3 | B11: 612409991RT2 | C11: Začištění omítek kolem oken,dveří apod. s použitím suché maltové směsi | D11: m | E11: 25 | G11: =E11*F11 -> 0 | H11: 0.00238 | I11: =E11*H11 -> 0.0595 | J11: 0 | K11: =E11*J11 -> 0 | O11: 2 | AA11: 1 | AB11: 1 | AC11: 1 | AZ11: 1 | BA11: =IF(AZ11=1,G11,0) -> 0 | BB11: =IF(AZ11=2,G11,0) -> 0 | BC11: =IF(AZ11=3,G11,0) -> 0 | BD11: =IF(AZ11=4,G11,0) -> 0 | BE11: =IF(AZ11=5,G11,0) -> 0 | CA11: 1 | CB11: 1
C12: Byt č. 5 90x160 cm:(0,90+1,60)*2*5 | E12: 25 | M12: Byt č. 5 90x160 cm:(0,90+1,60)*2*5
A13: 4 | B13: 612425931RT2 | C13: Omítka vápenná vnitřního ostění - štuková s použitím suché maltové směsi | D13: m2 | E13: 6.15 | G13: =E13*F13 -> 0 | H13: 0.03491 | I13: =E13*H13 -> 0.2146965 | J13: 0 | K13: =E13*J13 -> 0 | O13: 2 | AA13: 1 | AB13: 1 | AC13: 1 | AZ13: 1 | BA13: =IF(AZ13=1,G13,0) -> 0 | BB13: =IF(AZ13=2,G13,0) -> 0 | BC13: =IF(AZ13=3,G13,0) -> 0 | BD13: =IF(AZ13=4,G13,0) -> 0 | BE13: =IF(AZ13=5,G13,0) -> 0 | CA13: 1 | CB13: 1
C14: Byt č. 5 90x160 cm:0,30*(0,90+2*1,60)*5 | E14: 6.15 | M14: Byt č. 5 90x160 cm:0,30*(0,90+2*1,60)*5
A15: 5 | B15: 622473187RT2 | C15: Příplatek za okenní lištu (APU) - montáž včetně dodávky lišty | D15: m | E15: 20.5 | G15: =E15*F15 -> 0 | H15: 0.00015 | I15: =E15*H15 -> 0.003075 | J15: 0 | K15: =E15*J15 -> 0 | O15: 2 | AA15: 1 | AB15: 1 | AC15: 1 | AZ15: 1 | BA15: =IF(AZ15=1,G15,0) -> 0 | BB15: =IF(AZ15=2,G15,0) -> 0 | BC15: =IF(AZ15=3,G15,0) -> 0 | BD15: =IF(AZ15=4,G15,0) -> 0 | BE15: =IF(AZ15=5,G15,0) -> 0 | CA15: 1 | CB15: 1
C16: Byt č. 5 90x160 cm:(0,90+2*1,60)*5 | E16: 20.5 | M16: Byt č. 5 90x160 cm:(0,90+2*1,60)*5
B17: Celkem za | C17: 61 Upravy povrchů vnitřní | G17: =SUM(G7:G16) -> 0 | I17: =SUM(I7:I16) -> 0.2776135 | K17: =SUM(K7:K16) -> 0 | O17: 4 | BA17: =SUM(BA7:BA16) -> 0 | BB17: =SUM(BB7:BB16) -> 0 | BC17: =SUM(BC7:BC16) -> 0 | BD17: =SUM(BD7:BD16) -> 0 | BE17: =SUM(BE7:BE16) -> 0
A18: Díl: | B18: 63 | C18: Podlahy a podlahové konstrukce | O18: 1
A19: 6 | B19: 632411104R00 | C19: Vyrovnávací stěrka, ruční zprac. tl.4 mm | D19: m2 | E19: 1.35 | G19: =E19*F19 -> 0 | H19: 0.007 | I19: =E19*H19 -> 0.00945 | J19: 0 | K19: =E19*J19 -> 0 | O19: 2 | AA19: 1 | AB19: 1 | AC19: 1 | AZ19: 1 | BA19: =IF(AZ19=1,G19,0) -> 0 | BB19: =IF(AZ19=2,G19,0) -> 0 | BC19: =IF(AZ19=3,G19,0) -> 0 | BD19: =IF(AZ19=4,G19,0) -> 0 | BE19: =IF(AZ19=5,G19,0) -> 0 | CA19: 1 | CB19: 1
C20: Byt č. 5 90x160 cm - parapet:0,90*0,30*5 | E20: 1.35 | M20: Byt č. 5 90x160 cm - parapet:0,90*0,30*5
B21: Celkem za | C21: 63 Podlahy a podlahové konstrukce | G21: =SUM(G18:G20) -> 0 | I21: =SUM(I18:I20) -> 0.00945 | K21: =SUM(K18:K20) -> 0 | O21: 4 | BA21: =SUM(BA18:BA20) -> 0 | BB21: =SUM(BB18:BB20) -> 0 | BC21: =SUM(BC18:BC20) -> 0 | BD21: =SUM(BD18:BD20) -> 0 | BE21: =SUM(BE18:BE20) -> 0
A22: Díl: | B22: 94 | C22: Lešení a stavební výtahy | O22: 1
A23: 7 | B23: 941955001R00 | C23: Lešení lehké pomocné, výška podlahy do 1,2 m | D23: m2 | E23: 12 | G23: =E23*F23 -> 0 | H23: 0.00121 | I23: =E23*H23 -> 0.01452 | J23: 0 | K23: =E23*J23 -> 0 | O23: 2 | AA23: 1 | AB23: 1 | AC23: 1 | AZ23: 1 | BA23: =IF(AZ23=1,G23,0) -> 0 | BB23: =IF(AZ23=2,G23,0) -> 0 | BC23: =IF(AZ23=3,G23,0) -> 0 | BD23: =IF(AZ23=4,G23,0) -> 0 | BE23: =IF(AZ23=5,G23,0) -> 0 | CA23: 1 | CB23: 1
C24: Byt č. 5 90x160 cm:1,20*1,00*2*5 | E24: 12 | M24: Byt č. 5 90x160 cm:1,20*1,00*2*5
B25: Celkem za | C25: 94 Lešení a stavební výtahy | G25: =SUM(G22:G24) -> 0 | I25: =SUM(I22:I24) -> 0.01452 | K25: =SUM(K22:K24) -> 0 | O25: 4 | BA25: =SUM(BA22:BA24) -> 0 | BB25: =SUM(BB22:BB24) -> 0 | BC25: =SUM(BC22:BC24) -> 0 | BD25: =SUM(BD22:BD24) -> 0 | BE25: =SUM(BE22:BE24) -> 0
A26: Díl: | B26: 96 | C26: Bourání konstrukcí | O26: 1
A27: 8 | B27: 967031132R00 | C27: Přisekání rovných ostění cihelných na MVC | D27: m2 | E27: 6.15 | G27: =E27*F27 -> 0 | H27: 0 | I27: =E27*H27 -> 0 | J27: -0.055 | K27: =E27*J27 -> -0.33825 | O27: 2 | AA27: 1 | AB27: 1 | AC27: 1 | AZ27: 1 | BA27: =IF(AZ27=1,G27,0) -> 0 | BB27: =IF(AZ27=2,G27,0) -> 0 | BC27: =IF(AZ27=3,G27,0) -> 0 | BD27: =IF(AZ27=4,G27,0) -> 0 | BE27: =IF(AZ27=5,G27,0) -> 0 | CA27: 1 | CB27: 1
C28: Byt č. 5 90x160 cm:0,30*(0,90+2*1,60)*5 | E28: 6.15 | M28: Byt č. 5 90x160 cm:0,30*(0,90+2*1,60)*5
A29: 9 | B29: 968061112R00 | C29: Vyvěšení dřevěných okenních křídel pl. do 1,5 m2 | D29: kus | E29: 5 | G29: =E29*F29 -> 0 | H29: 0 | I29: =E29*H29 -> 0 | J29: 0 | K29: =E29*J29 -> 0 | O29: 2 | AA29: 1 | AB29: 1 | AC29: 1 | AZ29: 1 | BA29: =IF(AZ29=1,G29,0) -> 0 | BB29: =IF(AZ29=2,G29,0) -> 0 | BC29: =IF(AZ29=3,G29,0) -> 0 | BD29: =IF(AZ29=4,G29,0) -> 0 | BE29: =IF(AZ29=5,G29,0) -> 0 | CA29: 1 | CB29: 1
C30: Byt č. 5 90x160 cm:1*5 | E30: 5 | M30: Byt č. 5 90x160 cm:1*5
A31: 10 | B31: 968062355RRX | C31: Vybourání dřevěných rámů oken dvojitých pl. 2 m2 včetně parapetů oken | D31: m2 | E31: 7.2 | G31: =E31*F31 -> 0 | H31: 0.001 | I31: =E31*H31 -> 0.0072 | J31: -0.062 | K31: =E31*J31 -> -0.4464 | O31: 2 | AA31: 1 | AB31: 1 | AC31: 1 | AZ31: 1 | BA31: =IF(AZ31=1,G31,0) -> 0 | BB31: =IF(AZ31=2,G31,0) -> 0 | BC31: =IF(AZ31=3,G31,0) -> 0 | BD31: =IF(AZ31=4,G31,0) -> 0 | BE31: =IF(AZ31=5,G31,0) -> 0 | CA31: 1 | CB31: 1
C32: Byt č. 5 90x160 cm:0,90*1,60*5 | E32: 7.2 | M32: Byt č. 5 90x160 cm:0,90*1,60*5
B33: Celkem za | C33: 96 Bourání konstrukcí | G33: =SUM(G26:G32) -> 0 | I33: =SUM(I26:I32) -> 0.0072 | K33: =SUM(K26:K32) -> -0.78465 | O33: 4 | BA33: =SUM(BA26:BA32) -> 0 | BB33: =SUM(BB26:BB32) -> 0 | BC33: =SUM(BC26:BC32) -> 0 | BD33: =SUM(BD26:BD32) -> 0 | BE33: =SUM(BE26:BE32) -> 0
A34: Díl: | B34: 99 | C34: Staveništní přesun hmot | O34: 1
A35: 11 | B35: 999281111R00 | C35: Přesun hmot pro opravy a údržbu do výšky 25 m | D35: t | E35: 0.3087835 | G35: =E35*F35 -> 0 | H35: 0 | I35: =E35*H35 -> 0 | K35: =E35*J35 -> 0 | O35: 2 | AA35: 7 | AB35: 1 | AC35: 2 | AZ35: 1 | BA35: =IF(AZ35=1,G35,0) -> 0 | BB35: =IF(AZ35=2,G35,0) -> 0 | BC35: =IF(AZ35=3,G35,0) -> 0 | BD35: =IF(AZ35=4,G35,0) -> 0 | BE35: =IF(AZ35=5,G35,0) -> 0 | CA35: 7 | CB35: 1
B36: Celkem za | C36: 99 Staveništní přesun hmot | G36: =SUM(G34:G35) -> 0 | I36: =SUM(I34:I35) -> 0 | K36: =SUM(K34:K35) -> 0 | O36: 4 | BA36: =SUM(BA34:BA35) -> 0 | BB36: =SUM(BB34:BB35) -> 0 | BC36: =SUM(BC34:BC35) -> 0 | BD36: =SUM(BD34:BD35) -> 0 | BE36: =SUM(BE34:BE35) -> 0
A37: Díl: | B37: 764 | C37: Konstrukce klempířské | O37: 1
A38: 12 | B38: 764231921RRX | C38: Oprava lemov. zdí Cu rš 250 mm Přichycení stávajícího oplechování k novému oknu | D38: m | E38: 20.5 | G38: =E38*F38 -> 0 | H38: 0.00157 | I38: =E38*H38 -> 0.032185 | J38: 0 | K38: =E38*J38 -> 0 | O38: 2 | AA38: 1 | AB38: 7 | AC38: 7 | AZ38: 2 | BA38: =IF(AZ38=1,G38,0) -> 0 | BB38: =IF(AZ38=2,G38,0) -> 0 | BC38: =IF(AZ38=3,G38,0) -> 0 | BD38: =IF(AZ38=4,G38,0) -> 0 | BE38: =IF(AZ38=5,G38,0) -> 0 | CA38: 1 | CB38: 7
C39: Byt č. 5 90x160 cm:(0,90+2*1,60)*5 | E39: 20.5 | M39: Byt č. 5 90x160 cm:(0,90+2*1,60)*5
A40: 13 | B40: 764510950RRX | C40: Oprava oplechování parapetů Cu,rš 330 mm Přichycení stávajícího parapetu k novému oknu | D40: m | E40: 4.5 | G40: =E40*F40 -> 0 | H40: 0.00361 | I40: =E40*H40 -> 0.016245 | J40: 0 | K40: =E40*J40 -> 0 | O40: 2 | AA40: 1 | AB40: 7 | AC40: 7 | AZ40: 2 | BA40: =IF(AZ40=1,G40,0) -> 0 | BB40: =IF(AZ40=2,G40,0) -> 0 | BC40: =IF(AZ40=3,G40,0) -> 0 | BD40: =IF(AZ40=4,G40,0) -> 0 | BE40: =IF(AZ40=5,G40,0) -> 0 | CA40: 1 | CB40: 7
C41: Byt č. 5 90x160 cm:0,90*5 | E41: 4.5 | M41: Byt č. 5 90x160 cm:0,90*5
A42: 14 | B42: 998764103R00 | C42: Přesun hmot pro klempířské konstr., výšky do 24 m | D42: t | E42: 0.04843 | G42: =E42*F42 -> 0 | H42: 0 | I42: =E42*H42 -> 0 | K42: =E42*J42 -> 0 | O42: 2 | AA42: 7 | AB42: 1001 | AC42: 5 | AZ42: 2 | BA42: =IF(AZ42=1,G42,0) -> 0 | BB42: =IF(AZ42=2,G42,0) -> 0 | BC42: =IF(AZ42=3,G42,0) -> 0 | BD42: =IF(AZ42=4,G42,0) -> 0 | BE42: =IF(AZ42=5,G42,0) -> 0 | CA42: 7 | CB42: 1001
B43: Celkem za | C43: 764 Konstrukce klempířské | G43: =SUM(G37:G42) -> 0 | I43: =SUM(I37:I42) -> 0.04843 | K43: =SUM(K37:K42) -> 0 | O43: 4 | BA43: =SUM(BA37:BA42) -> 0 | BB43: =SUM(BB37:BB42) -> 0 | BC43: =SUM(BC37:BC42) -> 0 | BD43: =SUM(BD37:BD42) -> 0 | BE43: =SUM(BE37:BE42) -> 0
A44: Díl: | B44: 766 | C44: Konstrukce truhlářské | O44: 1
A45: 15 | B45: 766601211RT1 | C45: Těsnění okenní spáry, ostění, PT fólie+ PP páska folie š. 70 mm, páska tl. 2 mm, š. 10 mm | D45: m | E45: 25 | G45: =E45*F45 -> 0 | H45: 0 | I45: =E45*H45 -> 0 | J45: 0 | K45: =E45*J45 -> 0 | O45: 2 | AA45: 1 | AB45: 7 | AC45: 7 | AZ45: 2 | BA45: =IF(AZ45=1,G45,0) -> 0 | BB45: =IF(AZ45=2,G45,0) -> 0 | BC45: =IF(AZ45=3,G45,0) -> 0 | BD45: =IF(AZ45=4,G45,0) -> 0 | BE45: =IF(AZ45=5,G45,0) -> 0 | CA45: 1 | CB45: 7
C46: Instalace a dodávka parotěsné okenní fólie a paropropustné expanzní pásky. | L46: Instalace a dodávka parotěsné okenní fólie a paropropustné expanzní pásky. | O46: 3
C47: Byt č. 5 90x160 cm:(0,90+1,60)*2*5 | E47: 25 | M47: Byt č. 5 90x160 cm:(0,90+1,60)*2*5
A48: 16 | B48: 766694111R00 | C48: Montáž parapetních desek š.do 30 cm,dl.do 100 cm | D48: kus | E48: 4.5 | G48: =E48*F48 -> 0 | H48: 1e-05 | I48: =E48*H48 -> 4.5e-05 | J48: 0 | K48: =E48*J48 -> 0 | O48: 2 | AA48: 1 | AB48: 7 | AC48: 7 | AZ48: 2 | BA48: =IF(AZ48=1,G48,0) -> 0 | BB48: =IF(AZ48=2,G48,0) -> 0 | BC48: =IF(AZ48=3,G48,0) -> 0 | BD48: =IF(AZ48=4,G48,0) -> 0 | BE48: =IF(AZ48=5,G48,0) -> 0 | CA48: 1 | CB48: 7
C49: Byt č. 5 90x160 cm:0,90*5 | E49: 4.5 | M49: Byt č. 5 90x160 cm:0,90*5
A50: 17 | B50: 766711001R00 | C50: Montáž oken a balkonových dveří s vypěněním | D50: m | E50: 25 | G50: =E50*F50 -> 0 | H50: 2e-05 | I50: =E50*H50 -> 0.0005 | J50: 0 | K50: =E50*J50 -> 0 | O50: 2 | AA50: 1 | AB50: 7 | AC50: 7 | AZ50: 2 | BA50: =IF(AZ50=1,G50,0) -> 0 | BB50: =IF(AZ50=2,G50,0) -> 0 | BC50: =IF(AZ50=3,G50,0) -> 0 | BD50: =IF(AZ50=4,G50,0) -> 0 | BE50: =IF(AZ50=5,G50,0) -> 0 | CA50: 1 | CB50: 7
C51: Montáž dřevěných oken a dveří včetně dodávky a montáže PU pěny a spojovacích prostředků. | L51: Montáž dřevěných oken a dveří včetně dodávky a montáže PU pěny a spojovacích prostředků. | O51: 3
C52: Byt č. 5 90x160 cm:(0,90+1,60)*2*5 | E52: 25 | M52: Byt č. 5 90x160 cm:(0,90+1,60)*2*5
A53: 18 | B53: 61111436 | C53: Okno dřevěné 1křídl. OS1A 90x160 cm Profilace rámů a příček dle požadavku NPÚ | D53: kus | E53: 5 | G53: =E53*F53 -> 0 | H53: 0.046 | I53: =E53*H53 -> 0.23 | K53: =E53*J53 -> 0 | O53: 2 | AA53: 3 | AB53: 7 | AC53: 61111436 | AZ53: 2 | BA53: =IF(AZ53=1,G53,0) -> 0 | BB53: =IF(AZ53=2,G53,0) -> 0 | BC53: =IF(AZ53=3,G53,0) -> 0 | BD53: =IF(AZ53=4,G53,0) -> 0 | BE53: =IF(AZ53=5,G53,0) -> 0 | CA53: 3 | CB53: 7
C54: profil EURO | L54: profil EURO | O54: 3
C55: jednokřídlové, otevíravé a sklápěcí | L55: jednokřídlové, otevíravé a sklápěcí | O55: 3
C56: materiál: třívrstvový hranolek SM | L56: materiál: třívrstvový hranolek SM | O56: 3
C57: sklo izolační - trojsklo | L57: sklo izolační - trojsklo | O57: 3
C58: okapnice: hliníková | L58: okapnice: hliníková | O58: 3
C59: nátěr dle stávající barvy v objektu | L59: nátěr dle stávající barvy v objektu | O59: 3
C60: Poznámka: | L60: Poznámka: | O60: 3
C61: Před výrobou oken si zhotovitel zaměří každý otvor pro dodávku nového okna | L61: Před výrobou oken si zhotovitel zaměří každý otvor pro dodávku nového okna | O61: 3
C62: Byt č. 5:5 | E62: 5 | M62: Byt č. 5:5
A63: 19 | B63: 61187552 | C63: Deska parapetní šířka 30 cm | D63: m | E63: 4.95 | G63: =E63*F63 -> 0 | H63: 0.00495 | I63: =E63*H63 -> 0.0245025 | K63: =E63*J63 -> 0 | O63: 2 | AA63: 3 | AB63: 7 | AC63: 61187552 | AZ63: 2 | BA63: =IF(AZ63=1,G63,0) -> 0 | BB63: =IF(AZ63=2,G63,0) -> 0 | BC63: =IF(AZ63=3,G63,0) -> 0 | BD63: =IF(AZ63=4,G63,0) -> 0 | BE63: =IF(AZ63=5,G63,0) -> 0 | CA63: 3 | CB63: 7
C64: Byt č. 5 90x160 cm:0,90*5*1,1 | E64: 4.95 | M64: Byt č. 5 90x160 cm:0,90*5*1,1
A65: 20 | B65: 998766103R00 | C65: Přesun hmot pro truhlářské konstr., výšky do 24 m | D65: t | E65: 0.2550475 | G65: =E65*F65 -> 0 | H65: 0 | I65: =E65*H65 -> 0 | K65: =E65*J65 -> 0 | O65: 2 | AA65: 7 | AB65: 1001 | AC65: 5 | AZ65: 2 | BA65: =IF(AZ65=1,G65,0) -> 0 | BB65: =IF(AZ65=2,G65,0) -> 0 | BC65: =IF(AZ65=3,G65,0) -> 0 | BD65: =IF(AZ65=4,G65,0) -> 0 | BE65: =IF(AZ65=5,G65,0) -> 0 | CA65: 7 | CB65: 1001
B66: Celkem za | C66: 766 Konstrukce truhlářské | G66: =SUM(G44:G65) -> 0 | I66: =SUM(I44:I65) -> 0.2550475 | K66: =SUM(K44:K65) -> 0 | O66: 4 | BA66: =SUM(BA44:BA65) -> 0 | BB66: =SUM(BB44:BB65) -> 0 | BC66: =SUM(BC44:BC65) -> 0 | BD66: =SUM(BD44:BD65) -> 0 | BE66: =SUM(BE44:BE65) -> 0
A67: Díl: | B67: 784 | C67: Malby | O67: 1
A68: 21 | B68: 784195212RRX | C68: Malba Primalex Plus, bílá, s penetrací, 2 x ostění šířky do 50cm | D68: m | E68: 20.5 | G68: =E68*F68 -> 0 | H68: 0.00015 | I68: =E68*H68 -> 0.003075 | J68: 0 | K68: =E68*J68 -> 0 | O68: 2 | AA68: 1 | AB68: 7 | AC68: 7 | AZ68: 2 | BA68: =IF(AZ68=1,G68,0) -> 0 | BB68: =IF(AZ68=2,G68,0) -> 0 | BC68: =IF(AZ68=3,G68,0) -> 0 | BD68: =IF(AZ68=4,G68,0) -> 0 | BE68: =IF(AZ68=5,G68,0) -> 0 | CA68: 1 | CB68: 7
C69: Byt č. 5 90x160 cm:(0,90+2*1,60)*5 | E69: 20.5 | M69: Byt č. 5 90x160 cm:(0,90+2*1,60)*5
B70: Celkem za | C70: 784 Malby | G70: =SUM(G67:G69) -> 0 | I70: =SUM(I67:I69) -> 0.003075 | K70: =SUM(K67:K69) -> 0 | O70: 4 | BA70: =SUM(BA67:BA69) -> 0 | BB70: =SUM(BB67:BB69) -> 0 | BC70: =SUM(BC67:BC69) -> 0 | BD70: =SUM(BD67:BD69) -> 0 | BE70: =SUM(BE67:BE69) -> 0
A71: Díl: | B71: D96 | C71: Přesuny suti a vybouraných hmot | O71: 1
A72: 22 | B72: 979011211R00 | C72: Svislá doprava suti a vybour. hmot za 2.NP nošením | D72: t | E72: 0.78465 | G72: =E72*F72 -> 0 | H72: 0 | I72: =E72*H72 -> 0 | K72: =E72*J72 -> 0 | O72: 2 | AA72: 8 | AB72: 0 | AC72: 3 | AZ72: 1 | BA72: =IF(AZ72=1,G72,0) -> 0 | BB72: =IF(AZ72=2,G72,0) -> 0 | BC72: =IF(AZ72=3,G72,0) -> 0 | BD72: =IF(AZ72=4,G72,0) -> 0 | BE72: =IF(AZ72=5,G72,0) -> 0 | CA72: 8 | CB72: 0
A73: 23 | B73: 979011219R00 | C73: Přípl.k svislé dopr.suti za každé další NP nošením | D73: t | E73: 0.78465 | G73: 0 | H73: 0 | I73: 0 | K73: 0 | O73: 2 | AA73: 8 | AB73: 0 | AC73: 3 | AZ73: 1 | BA73: 0 | BB73: 0 | BC73: 0 | BD73: 0 | BE73: 0 | CA73: 8 | CB73: 0
A74: 24 | B74: 979081111R00 | C74: Odvoz suti a vybour. hmot na skládku zhotovitele | D74: t | E74: 0.78465 | G74: 0 | H74: 0 | I74: 0 | K74: 0 | O74: 2 | AA74: 8 | AB74: 0 | AC74: 3 | AZ74: 1 | BA74: 0 | BB74: 0 | BC74: 0 | BD74: 0 | BE74: 0 | CA74: 8 | CB74: 0
A75: 25 | B75: 979082111R00 | C75: Vnitrostaveništní doprava suti do 10 m | D75: t | E75: 0.78465 | G75: 0 | H75: 0 | I75: 0 | K75: 0 | O75: 2 | AA75: 8 | AB75: 0 | AC75: 3 | AZ75: 1 | BA75: 0 | BB75: 0 | BC75: 0 | BD75: 0 | BE75: 0 | CA75: 8 | CB75: 0
A76: 26 | B76: 979082121R00 | C76: Příplatek k vnitrost. dopravě suti za dalších 5 m | D76: t | E76: 10.20045 | G76: 0 | H76: 0 | I76: 0 | K76: 0 | O76: 2 | AA76: 8 | AB76: 0 | AC76: 3 | AZ76: 1 | BA76: 0 | BB76: 0 | BC76: 0 | BD76: 0 | BE76: 0 | CA76: 8 | CB76: 0
A77: 27 | B77: 979990107R00 | C77: Poplatek za skládku suti - směs betonu,cihel,dřeva | D77: t | E77: 0.78465 | G77: 0 | H77: 0 | I77: 0 | K77: 0 | O77: 2 | AA77: 8 | AB77: 0 | AC77: 3 | AZ77: 1 | BA77: 0 | BB77: 0 | BC77: 0 | BD77: 0 | BE77: 0 | CA77: 8 | CB77: 0
B78: Celkem za | C78: D96 Přesuny suti a vybouraných hmot | G78: =SUM(G71:G77) -> 0 | I78: =SUM(I71:I77) -> 0 | K78: =SUM(K71:K77) -> 0 | O78: 4 | BA78: =SUM(BA71:BA77) -> 0 | BB78: =SUM(BB71:BB77) -> 0 | BC78: =SUM(BC71:BC77) -> 0 | BD78: =SUM(BD71:BD77) -> 0 | BE78: =SUM(BE71:BE77) -> 0

Sheet 01 325701.6 KL
A1: POLOŽKOVÝ ROZPOČET
A2: Rozpočet | C2: 3257/01.6 | D2: Byt č. 6 - 3.NP | F2: JKSO | G2: 803.5
A4: Objekt | F4: SKP
A5: 01 | C5: Objekt ul. 5. května čp.26 | F5: Měrná jednotka | G5: m3
A6: Stavba | F6: Počet jednotek | G6: 0
A7: 3257 | C7: Turnov - objekt ul. 5. května čp.26 | F7: Náklady na m.j. | G7: =IF(G6=0,,ROUND((F30+F32)/G6,1)) -> 0
A8: Projektant | F8: Typ rozpočtu
A9: Zpracovatel projektu
A10: Objednatel | C10: Město TURNOV
A11: Dodavatel | C11: . | F11: Zakázkové číslo
A12: Rozpočtoval | F12: Počet listů
A13: ROZPOČTOVÉ NÁKLADY
A14: Základní rozpočtové náklady | D14: Ostatní náklady stavby
B15: HSV celkem | C15: ='01 325701.6 Rek'!E16 -> 0 | D15: ='01 325701.6 Rek'!A21 -> Zařízení staveniště | G15: ='01 325701.6 Rek'!I21 -> 0
A16: Z | B16: PSV celkem | C16: ='01 325701.6 Rek'!F16 -> 0 | D16: ='01 325701.6 Rek'!A22 -> Provoz investora | G16: ='01 325701.6 Rek'!I22 -> 0
A17: R | B17: M práce celkem | C17: ='01 325701.6 Rek'!H16 -> 0 | D17: ='01 325701.6 Rek'!A23 -> Kompletační činnost (IČD) | G17: ='01 325701.6 Rek'!I23 -> 0
A18: N | B18: M dodávky celkem | C18: ='01 325701.6 Rek'!G16 -> 0
A19: ZRN celkem | C19: =SUM(C15:C18) -> 0
A21: HZS | C21: ='01 325701.6 Rek'!I16 -> 0
A22: ZRN+HZS | C22: =C19+C21 -> 0
A23: ZRN+ost.náklady+HZS | C23: =C22+G23 -> 0 | D23: Ostatní náklady celkem | G23: ='01 325701.6 Rek'!H24 -> 0
A24: Vypracoval | D24: Za zhotovitele | F24: Za objednatele
A25: Jméno : | D25: Jméno : | F25: Jméno :
A26: Datum : | D26: Datum : | F26: Datum :
A28: Podpis : | D28: Podpis: | F28: Podpis:
A30: Základ pro DPH | C30: 15 | D30: % | F30: =C23-F32 -> 0
A31: DPH | C31: =C30 -> 15 | D31: % | F31: =ROUND(PRODUCT(F30,C31/100),0) -> 0
A32: Základ pro DPH | C32: 0 | D32: % | F32: 0
A33: DPH | C33: =C32 -> 0 | D33: % | F33: =ROUND(PRODUCT(F32,C33/100),0) -> 0
A34: CENA ZA OBJEKT CELKEM | F34: =ROUND(SUM(F30:F33),0) -> 0
A36: Poznámka :

Sheet 01 325701.6 Rek
A1: Stavba : | C1: 3257 Turnov - objekt ul. 5. května čp.26 | G1: Rozpočet : | H1: 3257/01.6
A2: Objekt : | C2: 01 Objekt ul. 5. května čp.26 | G2: Byt č. 6 - 3.NP
A4: REKAPITULACE STAVEBNÍCH DÍLŮ
B6: Stavební díl | E6: HSV | F6: PSV | G6: Dodávka | H6: Montáž | I6: HZS
A7: ='01 325701.6 Pol'!B7 -> 61 | B7: ='01 325701.6 Pol'!C7 -> Upravy povrchů vnitřní | E7: ='01 325701.6 Pol'!BA17 -> 0 | F7: ='01 325701.6 Pol'!BB17 -> 0 | G7: ='01 325701.6 Pol'!BC17 -> 0 | H7: ='01 325701.6 Pol'!BD17 -> 0 | I7: ='01 325701.6 Pol'!BE17 -> 0
A8: ='01 325701.6 Pol'!B18 -> 63 | B8: ='01 325701.6 Pol'!C18 -> Podlahy a podlahové konstrukce | E8: ='01 325701.6 Pol'!BA21 -> 0 | F8: ='01 325701.6 Pol'!BB21 -> 0 | G8: ='01 325701.6 Pol'!BC21 -> 0 | H8: ='01 325701.6 Pol'!BD21 -> 0 | I8: ='01 325701.6 Pol'!BE21 -> 0
A9: ='01 325701.6 Pol'!B22 -> 94 | B9: ='01 325701.6 Pol'!C22 -> Lešení a stavební výtahy | E9: ='01 325701.6 Pol'!BA25 -> 0 | F9: ='01 325701.6 Pol'!BB25 -> 0 | G9: ='01 325701.6 Pol'!BC25 -> 0 | H9: ='01 325701.6 Pol'!BD25 -> 0 | I9: ='01 325701.6 Pol'!BE25 -> 0
A10: ='01 325701.6 Pol'!B26 -> 96 | B10: ='01 325701.6 Pol'!C26 -> Bourání konstrukcí | E10: ='01 325701.6 Pol'!BA33 -> 0 | F10: ='01 325701.6 Pol'!BB33 -> 0 | G10: ='01 325701.6 Pol'!BC33 -> 0 | H10: ='01 325701.6 Pol'!BD33 -> 0 | I10: ='01 325701.6 Pol'!BE33 -> 0
A11: ='01 325701.6 Pol'!B34 -> 99 | B11: ='01 325701.6 Pol'!C34 -> Staveništní přesun hmot | E11: ='01 325701.6 Pol'!BA36 -> 0 | F11: ='01 325701.6 Pol'!BB36 -> 0 | G11: ='01 325701.6 Pol'!BC36 -> 0 | H11: ='01 325701.6 Pol'!BD36 -> 0 | I11: ='01 325701.6 Pol'!BE36 -> 0
A12: ='01 325701.6 Pol'!B37 -> 764 | B12: ='01 325701.6 Pol'!C37 -> Konstrukce klempířské | E12: ='01 325701.6 Pol'!BA43 -> 0 | F12: ='01 325701.6 Pol'!BB43 -> 0 | G12: ='01 325701.6 Pol'!BC43 -> 0 | H12: ='01 325701.6 Pol'!BD43 -> 0 | I12: ='01 325701.6 Pol'!BE43 -> 0
A13: ='01 325701.6 Pol'!B44 -> 766 | B13: ='01 325701.6 Pol'!C44 -> Konstrukce truhlářské | E13: ='01 325701.6 Pol'!BA66 -> 0 | F13: ='01 325701.6 Pol'!BB66 -> 0 | G13: ='01 325701.6 Pol'!BC66 -> 0 | H13: ='01 325701.6 Pol'!BD66 -> 0 | I13: ='01 325701.6 Pol'!BE66 -> 0
A14: ='01 325701.6 Pol'!B67 -> 784 | B14: ='01 325701.6 Pol'!C67 -> Malby | E14: ='01 325701.6 Pol'!BA70 -> 0 | F14: ='01 325701.6 Pol'!BB70 -> 0 | G14: ='01 325701.6 Pol'!BC70 -> 0 | H14: ='01 325701.6 Pol'!BD70 -> 0 | I14: ='01 325701.6 Pol'!BE70 -> 0
A15: ='01 325701.6 Pol'!B71 -> D96 | B15: ='01 325701.6 Pol'!C71 -> Přesuny suti a vybouraných hmot | E15: ='01 325701.6 Pol'!BA78 -> 0 | F15: ='01 325701.6 Pol'!BB78 -> 0 | G15: ='01 325701.6 Pol'!BC78 -> 0 | H15: ='01 325701.6 Pol'!BD78 -> 0 | I15: ='01 325701.6 Pol'!BE78 -> 0
B16: CELKEM OBJEKT | E16: =SUM(E7:E15) -> 0 | F16: =SUM(F7:F15) -> 0 | G16: =SUM(G7:G15) -> 0 | H16: =SUM(H7:H15) -> 0 | I16: =SUM(I7:I15) -> 0
A18: OSTATNÍ NÁKLADY STAVBY
A20: Název ONS | E20: Kč | I20: Kč
A21: Zařízení staveniště | E21: 0 | I21: =E21+F21*G21/100 -> 0 | BA21: 2
A22: Provoz investora | E22: 0 | I22: =E22+F22*G22/100 -> 0 | BA22: 1
A23: Kompletační činnost (IČD) | E23: 0 | I23: =E23+F23*G23/100 -> 0 | BA23: 2
B24: CELKEM ONS | H24: =SUM(I21:I23) -> 0

Sheet 01 325701.6 Pol
A1: Položkový rozpočet
A3: Stavba : | C3: 3257 Turnov - objekt ul. 5. května čp.26 | E3: Rozpočet: | F3: ='01 325701.6 Rek'!H1 -> 3257/01.6
A4: Objekt : | C4: 01 Objekt ul. 5. května čp.26 | E4: ='01 325701.6 Rek'!G2 -> Byt č. 6 - 3.NP
A6: P.č. | B6: Číslo položky | C6: Název položky | D6: MJ | E6: množství | F6: cena / MJ | G6: celkem (Kč) | H6: Jednotková hmotnost | I6: Celková hmotnost | J6: Jednotková dem.hmot. | K6: Celková dem.hmot.
A7: Díl: | B7: 61 | C7: Upravy povrchů vnitřní | O7: 1
A8: 1 | B8: 610991111R00 | C8: Zakrývání výplní vnitřních otvorů | D8: m2 | E8: 6.84 | G8: =E8*F8 -> 0 | H8: 4e-05 | I8: =E8*H8 -> 0.0002736 | J8: 0 | K8: =E8*J8 -> 0 | O8: 2 | AA8: 1 | AB8: 1 | AC8: 1 | AZ8: 1 | BA8: =IF(AZ8=1,G8,0) -> 0 | BB8: =IF(AZ8=2,G8,0) -> 0 | BC8: =IF(AZ8=3,G8,0) -> 0 | BD8: =IF(AZ8=4,G8,0) -> 0 | BE8: =IF(AZ8=5,G8,0) -> 0 | CA8: 1 | CB8: 1
C9: Byt č. 6 90x160 cm:0,90*(1,60+0,30)*4 | E9: 6.84 | M9: Byt č. 6 90x160 cm:0,90*(1,60+0,30)*4
A10: 2 | B10: 610991199RRX | C10: Zakrývání vybavení částí bytu dle potřeb zhotovitele pro realizaci výměny oken | D10: soubor | E10: 1 | G10: =E10*F10 -> 0 | H10: 0 | I10: =E10*H10 -> 0 | J10: 0 | K10: =E10*J10 -> 0 | O10: 2 | AA10: 1 | AB10: 0 | AC10: 0 | AZ10: 1 | BA10: =IF(AZ10=1,G10,0) -> 0 | BB10: =IF(AZ10=2,G10,0) -> 0 | BC10: =IF(AZ10=3,G10,0) -> 0 | BD10: =IF(AZ10=4,G10,0) -> 0 | BE10: =IF(AZ10=5,G10,0) -> 0 | CA10: 1 | CB10: 0
A11: 3 | B11: 612409991RT2 | C11: Začištění omítek kolem oken,dveří apod. s použitím suché maltové směsi | D11: m | E11: 20 | G11: =E11*F11 -> 0 | H11: 0.00238 | I11: =E11*H11 -> 0.0476 | J11: 0 | K11: =E11*J11 -> 0 | O11: 2 | AA11: 1 | AB11: 1 | AC11: 1 | AZ11: 1 | BA11: =IF(AZ11=1,G11,0) -> 0 | BB11: =IF(AZ11=2,G11,0) -> 0 | BC11: =IF(AZ11=3,G11,0) -> 0 | BD11: =IF(AZ11=4,G11,0) -> 0 | BE11: =IF(AZ11=5,G11,0) -> 0 | CA11: 1 | CB11: 1
C12: Byt č. 6 90x160 cm:(0,90+1,60)*2*4 | E12: 20 | M12: Byt č. 6 90x160 cm:(0,90+1,60)*2*4
A13: 4 | B13: 612425931RT2 | C13: Omítka vápenná vnitřního ostění - štuková s použitím suché maltové směsi | D13: m2 | E13: 4.92 | G13: =E13*F13 -> 0 | H13: 0.03491 | I13: =E13*H13 -> 0.1717572 | J13: 0 | K13: =E13*J13 -> 0 | O13: 2 | AA13: 1 | AB13: 1 | AC13: 1 | AZ13: 1 | BA13: =IF(AZ13=1,G13,0) -> 0 | BB13: =IF(AZ13=2,G13,0) -> 0 | BC13: =IF(AZ13=3,G13,0) -> 0 | BD13: =IF(AZ13=4,G13,0) -> 0 | BE13: =IF(AZ13=5,G13,0) -> 0 | CA13: 1 | CB13: 1
C14: Byt č. 6 90x160 cm:0,30*(0,90+2*1,60)*4 | E14: 4.92 | M14: Byt č. 6 90x160 cm:0,30*(0,90+2*1,60)*4
A15: 5 | B15: 622473187RT2 | C15: Příplatek za okenní lištu (APU) - montáž včetně dodávky lišty | D15: m | E15: 16.4 | G15: =E15*F15 -> 0 | H15: 0.00015 | I15: =E15*H15 -> 0.00246 | J15: 0 | K15: =E15*J15 -> 0 | O15: 2 | AA15: 1 | AB15: 1 | AC15: 1 | AZ15: 1 | BA15: =IF(AZ15=1,G15,0) -> 0 | BB15: =IF(AZ15=2,G15,0) -> 0 | BC15: =IF(AZ15=3,G15,0) -> 0 | BD15: =IF(AZ15=4,G15,0) -> 0 | BE15: =IF(AZ15=5,G15,0) -> 0 | CA15: 1 | CB15: 1
C16: Byt č. 6 90x160 cm:(0,90+2*1,60)*4 | E16: 16.4 | M16: Byt č. 6 90x160 cm:(0,90+2*1,60)*4
B17: Celkem za | C17: 61 Upravy povrchů vnitřní | G17: =SUM(G7:G16) -> 0 | I17: =SUM(I7:I16) -> 0.2220908 | K17: =SUM(K7:K16) -> 0 | O17: 4 | BA17: =SUM(BA7:BA16) -> 0 | BB17: =SUM(BB7:BB16) -> 0 | BC17: =SUM(BC7:BC16) -> 0 | BD17: =SUM(BD7:BD16) -> 0 | BE17: =SUM(BE7:BE16) -> 0
A18: Díl: | B18: 63 | C18: Podlahy a podlahové konstrukce | O18: 1
A19: 6 | B19: 632411104R00 | C19: Vyrovnávací stěrka, ruční zprac. tl.4 mm | D19: m2 | E19: 1.08 | G19: =E19*F19 -> 0 | H19: 0.007 | I19: =E19*H19 -> 0.00756 | J19: 0 | K19: =E19*J19 -> 0 | O19: 2 | AA19: 1 | AB19: 1 | AC19: 1 | AZ19: 1 | BA19: =IF(AZ19=1,G19,0) -> 0 | BB19: =IF(AZ19=2,G19,0) -> 0 | BC19: =IF(AZ19=3,G19,0) -> 0 | BD19: =IF(AZ19=4,G19,0) -> 0 | BE19: =IF(AZ19=5,G19,0) -> 0 | CA19: 1 | CB19: 1
C20: Byt č. 6 90x160 cm - parapet:0,90*0,30*4 | E20: 1.08 | M20: Byt č. 6 90x160 cm - parapet:0,90*0,30*4
B21: Celkem za | C21: 63 Podlahy a podlahové konstrukce | G21: =SUM(G18:G20) -> 0 | I21: =SUM(I18:I20) -> 0.00756 | K21: =SUM(K18:K20) -> 0 | O21: 4 | BA21: =SUM(BA18:BA20) -> 0 | BB21: =SUM(BB18:BB20) -> 0 | BC21: =SUM(BC18:BC20) -> 0 | BD21: =SUM(BD18:BD20) -> 0 | BE21: =SUM(BE18:BE20) -> 0
A22: Díl: | B22: 94 | C22: Lešení a stavební výtahy | O22: 1
A23: 7 | B23: 941955001R00 | C23: Lešení lehké pomocné, výška podlahy do 1,2 m | D23: m2 | E23: 9.6 | G23: =E23*F23 -> 0 | H23: 0.00121 | I23: =E23*H23 -> 0.011616 | J23: 0 | K23: =E23*J23 -> 0 | O23: 2 | AA23: 1 | AB23: 1 | AC23: 1 | AZ23: 1 | BA23: =IF(AZ23=1,G23,0) -> 0 | BB23: =IF(AZ23=2,G23,0) -> 0 | BC23: =IF(AZ23=3,G23,0) -> 0 | BD23: =IF(AZ23=4,G23,0) -> 0 | BE23: =IF(AZ23=5,G23,0) -> 0 | CA23: 1 | CB23: 1
C24: Byt č. 6 90x160 cm:1,20*1,00*2*4 | E24: 9.6 | M24: Byt č. 6 90x160 cm:1,20*1,00*2*4
B25: Celkem za | C25: 94 Lešení a stavební výtahy | G25: =SUM(G22:G24) -> 0 | I25: =SUM(I22:I24) -> 0.011616 | K25: =SUM(K22:K24) -> 0 | O25: 4 | BA25: =SUM(BA22:BA24) -> 0 | BB25: =SUM(BB22:BB24) -> 0 | BC25: =SUM(BC22:BC24) -> 0 | BD25: =SUM(BD22:BD24) -> 0 | BE25: =SUM(BE22:BE24) -> 0
A26: Díl: | B26: 96 | C26: Bourání konstrukcí | O26: 1
A27: 8 | B27: 967031132R00 | C27: Přisekání rovných ostění cihelných na MVC | D27: m2 | E27: 4.92 | G27: =E27*F27 -> 0 | H27: 0 | I27: =E27*H27 -> 0 | J27: -0.055 | K27: =E27*J27 -> -0.2706 | O27: 2 | AA27: 1 | AB27: 1 | AC27: 1 | AZ27: 1 | BA27: =IF(AZ27=1,G27,0) -> 0 | BB27: =IF(AZ27=2,G27,0) -> 0 | BC27: =IF(AZ27=3,G27,0) -> 0 | BD27: =IF(AZ27=4,G27,0) -> 0 | BE27: =IF(AZ27=5,G27,0) -> 0 | CA27: 1 | CB27: 1
C28: Byt č. 6 90x160 cm:0,30*(0,90+2*1,60)*4 | E28: 4.92 | M28: Byt č. 6 90x160 cm:0,30*(0,90+2*1,60)*4
A29: 9 | B29: 968061112R00 | C29: Vyvěšení dřevěných okenních křídel pl. do 1,5 m2 | D29: kus | E29: 4 | G29: =E29*F29 -> 0 | H29: 0 | I29: =E29*H29 -> 0 | J29: 0 | K29: =E29*J29 -> 0 | O29: 2 | AA29: 1 | AB29: 1 | AC29: 1 | AZ29: 1 | BA29: =IF(AZ29=1,G29,0) -> 0 | BB29: =IF(AZ29=2,G29,0) -> 0 | BC29: =IF(AZ29=3,G29,0) -> 0 | BD29: =IF(AZ29=4,G29,0) -> 0 | BE29: =IF(AZ29=5,G29,0) -> 0 | CA29: 1 | CB29: 1
C30: Byt č. 6 90x160 cm:1*4 | E30: 4 | M30: Byt č. 6 90x160 cm:1*4
A31: 10 | B31: 968062355RRX | C31: Vybourání dřevěných rámů oken dvojitých pl. 2 m2 včetně parapetů oken | D31: m2 | E31: 5.76 | G31: =E31*F31 -> 0 | H31: 0.001 | I31: =E31*H31 -> 0.00576 | J31: -0.062 | K31: =E31*J31 -> -0.35712 | O31: 2 | AA31: 1 | AB31: 1 | AC31: 1 | AZ31: 1 | BA31: =IF(AZ31=1,G31,0) -> 0 | BB31: =IF(AZ31=2,G31,0) -> 0 | BC31: =IF(AZ31=3,G31,0) -> 0 | BD31: =IF(AZ31=4,G31,0) -> 0 | BE31: =IF(AZ31=5,G31,0) -> 0 | CA31: 1 | CB31: 1
C32: Byt č. 6 90x160 cm:0,90*1,60*4 | E32: 5.76 | M32: Byt č. 6 90x160 cm:0,90*1,60*4
B33: Celkem za | C33: 96 Bourání konstrukcí | G33: =SUM(G26:G32) -> 0 | I33: =SUM(I26:I32) -> 0.00576 | K33: =SUM(K26:K32) -> -0.62772 | O33: 4 | BA33: =SUM(BA26:BA32) -> 0 | BB33: =SUM(BB26:BB32) -> 0 | BC33: =SUM(BC26:BC32) -> 0 | BD33: =SUM(BD26:BD32) -> 0 | BE33: =SUM(BE26:BE32) -> 0
A34: Díl: | B34: 99 | C34: Staveništní přesun hmot | O34: 1
A35: 11 | B35: 999281111R00 | C35: Přesun hmot pro opravy a údržbu do výšky 25 m | D35: t | E35: 0.2470268 | G35: =E35*F35 -> 0 | H35: 0 | I35: =E35*H35 -> 0 | K35: =E35*J35 -> 0 | O35: 2 | AA35: 7 | AB35: 1 | AC35: 2 | AZ35: 1 | BA35: =IF(AZ35=1,G35,0) -> 0 | BB35: =IF(AZ35=2,G35,0) -> 0 | BC35: =IF(AZ35=3,G35,0) -> 0 | BD35: =IF(AZ35=4,G35,0) -> 0 | BE35: =IF(AZ35=5,G35,0) -> 0 | CA35: 7 | CB35: 1
B36: Celkem za | C36: 99 Staveništní přesun hmot | G36: =SUM(G34:G35) -> 0 | I36: =SUM(I34:I35) -> 0 | K36: =SUM(K34:K35) -> 0 | O36: 4 | BA36: =SUM(BA34:BA35) -> 0 | BB36: =SUM(BB34:BB35) -> 0 | BC36: =SUM(BC34:BC35) -> 0 | BD36: =SUM(BD34:BD35) -> 0 | BE36: =SUM(BE34:BE35) -> 0
A37: Díl: | B37: 764 | C37: Konstrukce klempířské | O37: 1
A38: 12 | B38: 764231921RRX | C38: Oprava lemov. zdí Cu rš 250 mm Přichycení stávajícího oplechování k novému oknu | D38: m | E38: 16.4 | G38: =E38*F38 -> 0 | H38: 0.00157 | I38: =E38*H38 -> 0.025748 | J38: 0 | K38: =E38*J38 -> 0 | O38: 2 | AA38: 1 | AB38: 7 | AC38: 7 | AZ38: 2 | BA38: =IF(AZ38=1,G38,0) -> 0 | BB38: =IF(AZ38=2,G38,0) -> 0 | BC38: =IF(AZ38=3,G38,0) -> 0 | BD38: =IF(AZ38=4,G38,0) -> 0 | BE38: =IF(AZ38=5,G38,0) -> 0 | CA38: 1 | CB38: 7
C39: Byt č. 6 90x160 cm:(0,90+2*1,60)*4 | E39: 16.4 | M39: Byt č. 6 90x160 cm:(0,90+2*1,60)*4
A40: 13 | B40: 764510950RRX | C40: Oprava oplechování parapetů Cu,rš 330 mm Přichycení stávajícího parapetu k novému oknu | D40: m | E40: 3.6 | G40: =E40*F40 -> 0 | H40: 0.00361 | I40: =E40*H40 -> 0.012996 | J40: 0 | K40: =E40*J40 -> 0 | O40: 2 | AA40: 1 | AB40: 7 | AC40: 7 | AZ40: 2 | BA40: =IF(AZ40=1,G40,0) -> 0 | BB40: =IF(AZ40=2,G40,0) -> 0 | BC40: =IF(AZ40=3,G40,0) -> 0 | BD40: =IF(AZ40=4,G40,0) -> 0 | BE40: =IF(AZ40=5,G40,0) -> 0 | CA40: 1 | CB40: 7
C41: Byt č. 6 90x160 cm:0,90*4 | E41: 3.6 | M41: Byt č. 6 90x160 cm:0,90*4
A42: 14 | B42: 998764103R00 | C42: Přesun hmot pro klempířské konstr., výšky do 24 m | D42: t | E42: 0.038744 | G42: =E42*F42 -> 0 | H42: 0 | I42: =E42*H42 -> 0 | K42: =E42*J42 -> 0 | O42: 2 | AA42: 7 | AB42: 1001 | AC42: 5 | AZ42: 2 | BA42: =IF(AZ42=1,G42,0) -> 0 | BB42: =IF(AZ42=2,G42,0) -> 0 | BC42: =IF(AZ42=3,G42,0) -> 0 | BD42: =IF(AZ42=4,G42,0) -> 0 | BE42: =IF(AZ42=5,G42,0) -> 0 | CA42: 7 | CB42: 1001
B43: Celkem za | C43: 764 Konstrukce klempířské | G43: =SUM(G37:G42) -> 0 | I43: =SUM(I37:I42) -> 0.038744 | K43: =SUM(K37:K42) -> 0 | O43: 4 | BA43: =SUM(BA37:BA42) -> 0 | BB43: =SUM(BB37:BB42) -> 0 | BC43: =SUM(BC37:BC42) -> 0 | BD43: =SUM(BD37:BD42) -> 0 | BE43: =SUM(BE37:BE42) -> 0
A44: Díl: | B44: 766 | C44: Konstrukce truhlářské | O44: 1
A45: 15 | B45: 766601211RT1 | C45: Těsnění okenní spáry, ostění, PT fólie+ PP páska folie š. 70 mm, páska tl. 2 mm, š. 10 mm | D45: m | E45: 20 | G45: =E45*F45 -> 0 | H45: 0 | I45: =E45*H45 -> 0 | J45: 0 | K45: =E45*J45 -> 0 | O45: 2 | AA45: 1 | AB45: 7 | AC45: 7 | AZ45: 2 | BA45: =IF(AZ45=1,G45,0) -> 0 | BB45: =IF(AZ45=2,G45,0) -> 0 | BC45: =IF(AZ45=3,G45,0) -> 0 | BD45: =IF(AZ45=4,G45,0) -> 0 | BE45: =IF(AZ45=5,G45,0) -> 0 | CA45: 1 | CB45: 7
C46: Instalace a dodávka parotěsné okenní fólie a paropropustné expanzní pásky. | L46: Instalace a dodávka parotěsné okenní fólie a paropropustné expanzní pásky. | O46: 3
C47: Byt č. 6 90x160 cm:(0,90+1,60)*2*4 | E47: 20 | M47: Byt č. 6 90x160 cm:(0,90+1,60)*2*4
A48: 16 | B48: 766694111R00 | C48: Montáž parapetních desek š.do 30 cm,dl.do 100 cm | D48: kus | E48: 3.6 | G48: =E48*F48 -> 0 | H48: 1e-05 | I48: =E48*H48 -> 3.6e-05 | J48: 0 | K48: =E48*J48 -> 0 | O48: 2 | AA48: 1 | AB48: 7 | AC48: 7 | AZ48: 2 | BA48: =IF(AZ48=1,G48,0) -> 0 | BB48: =IF(AZ48=2,G48,0) -> 0 | BC48: =IF(AZ48=3,G48,0) -> 0 | BD48: =IF(AZ48=4,G48,0) -> 0 | BE48: =IF(AZ48=5,G48,0) -> 0 | CA48: 1 | CB48: 7
C49: Byt č. 6 90x160 cm:0,90*4 | E49: 3.6 | M49: Byt č. 6 90x160 cm:0,90*4
A50: 17 | B50: 766711001R00 | C50: Montáž oken a balkonových dveří s vypěněním | D50: m | E50: 20 | G50: =E50*F50 -> 0 | H50: 2e-05 | I50: =E50*H50 -> 0.0004 | J50: 0 | K50: =E50*J50 -> 0 | O50: 2 | AA50: 1 | AB50: 7 | AC50: 7 | AZ50: 2 | BA50: =IF(AZ50=1,G50,0) -> 0 | BB50: =IF(AZ50=2,G50,0) -> 0 | BC50: =IF(AZ50=3,G50,0) -> 0 | BD50: =IF(AZ50=4,G50,0) -> 0 | BE50: =IF(AZ50=5,G50,0) -> 0 | CA50: 1 | CB50: 7
C51: Montáž dřevěných oken a dveří včetně dodávky a montáže PU pěny a spojovacích prostředků. | L51: Montáž dřevěných oken a dveří včetně dodávky a montáže PU pěny a spojovacích prostředků. | O51: 3
C52: Byt č. 6 90x160 cm:(0,90+1,60)*2*4 | E52: 20 | M52: Byt č. 6 90x160 cm:(0,90+1,60)*2*4
A53: 18 | B53: 61111436 | C53: Okno dřevěné 1křídl. OS1A 90x160 cm Profilace rámů a příček dle požadavku NPÚ | D53: kus | E53: 4 | G53: =E53*F53 -> 0 | H53: 0.046 | I53: =E53*H53 -> 0.184 | K53: =E53*J53 -> 0 | O53: 2 | AA53: 3 | AB53: 7 | AC53: 61111436 | AZ53: 2 | BA53: =IF(AZ53=1,G53,0) -> 0 | BB53: =IF(AZ53=2,G53,0) -> 0 | BC53: =IF(AZ53=3,G53,0) -> 0 | BD53: =IF(AZ53=4,G53,0) -> 0 | BE53: =IF(AZ53=5,G53,0) -> 0 | CA53: 3 | CB53: 7
C54: profil EURO | L54: profil EURO | O54: 3
C55: jednokřídlové, otevíravé a sklápěcí | L55: jednokřídlové, otevíravé a sklápěcí | O55: 3
C56: materiál: třívrstvový hranolek SM | L56: materiál: třívrstvový hranolek SM | O56: 3
C57: sklo izolační - trojsklo | L57: sklo izolační - trojsklo | O57: 3
C58: okapnice: hliníková | L58: okapnice: hliníková | O58: 3
C59: nátěr dle stávající barvy v objektu | L59: nátěr dle stávající barvy v objektu | O59: 3
C60: Poznámka: | L60: Poznámka: | O60: 3
C61: Před výrobou oken si zhotovitel zaměří každý otvor pro dodávku nového okna | L61: Před výrobou oken si zhotovitel zaměří každý otvor pro dodávku nového okna | O61: 3
C62: Byt č. 6:4 | E62: 4 | M62: Byt č. 6:4
A63: 19 | B63: 61187552 | C63: Deska parapetní šířka 30 cm | D63: m | E63: 3.96 | G63: =E63*F63 -> 0 | H63: 0.00495 | I63: =E63*H63 -> 0.019602 | K63: =E63*J63 -> 0 | O63: 2 | AA63: 3 | AB63: 7 | AC63: 61187552 | AZ63: 2 | BA63: =IF(AZ63=1,G63,0) -> 0 | BB63: =IF(AZ63=2,G63,0) -> 0 | BC63: =IF(AZ63=3,G63,0) -> 0 | BD63: =IF(AZ63=4,G63,0) -> 0 | BE63: =IF(AZ63=5,G63,0) -> 0 | CA63: 3 | CB63: 7
C64: Byt č. 6 90x160 cm:0,90*4*1,1 | E64: 3.96 | M64: Byt č. 6 90x160 cm:0,90*4*1,1
A65: 20 | B65: 998766103R00 | C65: Přesun hmot pro truhlářské konstr., výšky do 24 m | D65: t | E65: 0.204038 | G65: =E65*F65 -> 0 | H65: 0 | I65: =E65*H65 -> 0 | K65: =E65*J65 -> 0 | O65: 2 | AA65: 7 | AB65: 1001 | AC65: 5 | AZ65: 2 | BA65: =IF(AZ65=1,G65,0) -> 0 | BB65: =IF(AZ65=2,G65,0) -> 0 | BC65: =IF(AZ65=3,G65,0) -> 0 | BD65: =IF(AZ65=4,G65,0) -> 0 | BE65: =IF(AZ65=5,G65,0) -> 0 | CA65: 7 | CB65: 1001
B66: Celkem za | C66: 766 Konstrukce truhlářské | G66: =SUM(G44:G65) -> 0 | I66: =SUM(I44:I65) -> 0.204038 | K66: =SUM(K44:K65) -> 0 | O66: 4 | BA66: =SUM(BA44:BA65) -> 0 | BB66: =SUM(BB44:BB65) -> 0 | BC66: =SUM(BC44:BC65) -> 0 | BD66: =SUM(BD44:BD65) -> 0 | BE66: =SUM(BE44:BE65) -> 0
A67: Díl: | B67: 784 | C67: Malby | O67: 1
A68: 21 | B68: 784195212RRX | C68: Malba Primalex Plus, bílá, s penetrací, 2 x ostění šířky do 50cm | D68: m | E68: 16.4 | G68: =E68*F68 -> 0 | H68: 0.00015 | I68: =E68*H68 -> 0.00246 | J68: 0 | K68: =E68*J68 -> 0 | O68: 2 | AA68: 1 | AB68: 7 | AC68: 7 | AZ68: 2 | BA68: =IF(AZ68=1,G68,0) -> 0 | BB68: =IF(AZ68=2,G68,0) -> 0 | BC68: =IF(AZ68=3,G68,0) -> 0 | BD68: =IF(AZ68=4,G68,0) -> 0 | BE68: =IF(AZ68=5,G68,0) -> 0 | CA68: 1 | CB68: 7
C69: Byt č. 6 90x160 cm:(0,90+2*1,60)*4 | E69: 16.4 | M69: Byt č. 6 90x160 cm:(0,90+2*1,60)*4
B70: Celkem za | C70: 784 Malby | G70: =SUM(G67:G69) -> 0 | I70: =SUM(I67:I69) -> 0.00246 | K70: =SUM(K67:K69) -> 0 | O70: 4 | BA70: =SUM(BA67:BA69) -> 0 | BB70: =SUM(BB67:BB69) -> 0 | BC70: =SUM(BC67:BC69) -> 0 | BD70: =SUM(BD67:BD69) -> 0 | BE70: =SUM(BE67:BE69) -> 0
A71: Díl: | B71: D96 | C71: Přesuny suti a vybouraných hmot | O71: 1
A72: 22 | B72: 979011211R00 | C72: Svislá doprava suti a vybour. hmot za 2.NP nošením | D72: t | E72: 0.62772 | G72: =E72*F72 -> 0 | H72: 0 | I72: =E72*H72 -> 0 | K72: =E72*J72 -> 0 | O72: 2 | AA72: 8 | AB72: 0 | AC72: 3 | AZ72: 1 | BA72: =IF(AZ72=1,G72,0) -> 0 | BB72: =IF(AZ72=2,G72,0) -> 0 | BC72: =IF(AZ72=3,G72,0) -> 0 | BD72: =IF(AZ72=4,G72,0) -> 0 | BE72: =IF(AZ72=5,G72,0) -> 0 | CA72: 8 | CB72: 0
A73: 23 | B73: 979011219R00 | C73: Přípl.k svislé dopr.suti za každé další NP nošením | D73: t | E73: 0.62772 | G73: 0 | H73: 0 | I73: 0 | K73: 0 | O73: 2 | AA73: 8 | AB73: 0 | AC73: 3 | AZ73: 1 | BA73: 0 | BB73: 0 | BC73: 0 | BD73: 0 | BE73: 0 | CA73: 8 | CB73: 0
A74: 24 | B74: 979081111R00 | C74: Odvoz suti a vybour. hmot na skládku zhotovitele | D74: t | E74: 0.62772 | G74: 0 | H74: 0 | I74: 0 | K74: 0 | O74: 2 | AA74: 8 | AB74: 0 | AC74: 3 | AZ74: 1 | BA74: 0 | BB74: 0 | BC74: 0 | BD74: 0 | BE74: 0 | CA74: 8 | CB74: 0
A75: 25 | B75: 979082111R00 | C75: Vnitrostaveništní doprava suti do 10 m | D75: t | E75: 0.62772 | G75: 0 | H75: 0 | I75: 0 | K75: 0 | O75: 2 | AA75: 8 | AB75: 0 | AC75: 3 | AZ75: 1 | BA75: 0 | BB75: 0 | BC75: 0 | BD75: 0 | BE75: 0 | CA75: 8 | CB75: 0
A76: 26 | B76: 979082121R00 | C76: Příplatek k vnitrost. dopravě suti za dalších 5 m | D76: t | E76: 9.4158 | G76: 0 | H76: 0 | I76: 0 | K76: 0 | O76: 2 | AA76: 8 | AB76: 0 | AC76: 3 | AZ76: 1 | BA76: 0 | BB76: 0 | BC76: 0 | BD76: 0 | BE76: 0 | CA76: 8 | CB76: 0
A77: 27 | B77: 979990107R00 | C77: Poplatek za skládku suti - směs betonu,cihel,dřeva | D77: t | E77: 0.62772 | G77: 0 | H77: 0 | I77: 0 | K77: 0 | O77: 2 | AA77: 8 | AB77: 0 | AC77: 3 | AZ77: 1 | BA77: 0 | BB77: 0 | BC77: 0 | BD77: 0 | BE77: 0 | CA77: 8 | CB77: 0
B78: Celkem za | C78: D96 Přesuny suti a vybouraných hmot | G78: =SUM(G71:G77) -> 0 | I78: =SUM(I71:I77) -> 0 | K78: =SUM(K71:K77) -> 0 | O78: 4 | BA78: =SUM(BA71:BA77) -> 0 | BB78: =SUM(BB71:BB77) -> 0 | BC78: =SUM(BC71:BC77) -> 0 | BD78: =SUM(BD71:BD77) -> 0 | BE78: =SUM(BE71:BE77) -> 0

Sheet 01 325701.7 KL
A1: POLOŽKOVÝ ROZPOČET
A2: Rozpočet | C2: 3257/01.7 | D2: Byt č. 7 - 4.NP | F2: JKSO | G2: 803.5
A4: Objekt | F4: SKP
A5: 01 | C5: Objekt ul. 5. května čp.26 | F5: Měrná jednotka | G5: m3
A6: Stavba | F6: Počet jednotek | G6: 0
A7: 3257 | C7: Turnov - objekt ul. 5. května čp.26 | F7: Náklady na m.j. | G7: =IF(G6=0,,ROUND((F30+F32)/G6,1)) -> 0
A8: Projektant | F8: Typ rozpočtu
A9: Zpracovatel projektu
A10: Objednatel | C10: Město TURNOV
A11: Dodavatel | C11: . | F11: Zakázkové číslo
A12: Rozpočtoval | F12: Počet listů
A13: ROZPOČTOVÉ NÁKLADY
A14: Základní rozpočtové náklady | D14: Ostatní náklady stavby
B15: HSV celkem | C15: ='01 325701.7 Rek'!E16 -> 0 | D15: ='01 325701.7 Rek'!A21 -> Zařízení staveniště | G15: ='01 325701.7 Rek'!I21 -> 0
A16: Z | B16: PSV celkem | C16: ='01 325701.7 Rek'!F16 -> 0 | D16: ='01 325701.7 Rek'!A22 -> Provoz investora | G16: ='01 325701.7 Rek'!I22 -> 0
A17: R | B17: M práce celkem | C17: ='01 325701.7 Rek'!H16 -> 0 | D17: ='01 325701.7 Rek'!A23 -> Kompletační činnost (IČD) | G17: ='01 325701.7 Rek'!I23 -> 0
A18: N | B18: M dodávky celkem | C18: ='01 325701.7 Rek'!G16 -> 0
A19: ZRN celkem | C19: =SUM(C15:C18) -> 0
A21: HZS | C21: ='01 325701.7 Rek'!I16 -> 0
A22: ZRN+HZS | C22: =C19+C21 -> 0
A23: ZRN+ost.náklady+HZS | C23: =C22+G23 -> 0 | D23: Ostatní náklady celkem | G23: ='01 325701.7 Rek'!H24 -> 0
A24: Vypracoval | D24: Za zhotovitele | F24: Za objednatele
A25: Jméno : | D25: Jméno : | F25: Jméno :
A26: Datum : | D26: Datum : | F26: Datum :
A28: Podpis : | D28: Podpis: | F28: Podpis:
A30: Základ pro DPH | C30: 15 | D30: % | F30: =C23-F32 -> 0
A31: DPH | C31: =C30 -> 15 | D31: % | F31: =ROUND(PRODUCT(F30,C31/100),0) -> 0
A32: Základ pro DPH | C32: 0 | D32: % | F32: 0
A33: DPH | C33: =C32 -> 0 | D33: % | F33: =ROUND(PRODUCT(F32,C33/100),0) -> 0
A34: CENA ZA OBJEKT CELKEM | F34: =ROUND(SUM(F30:F33),0) -> 0
A36: Poznámka :

Sheet 01 325701.7 Rek
A1: Stavba : | C1: 3257 Turnov - objekt ul. 5. května čp.26 | G1: Rozpočet : | H1: 3257/01.7
A2: Objekt : | C2: 01 Objekt ul. 5. května čp.26 | G2: Byt č. 7 - 4.NP
A4: REKAPITULACE STAVEBNÍCH DÍLŮ
B6: Stavební díl | E6: HSV | F6: PSV | G6: Dodávka | H6: Montáž | I6: HZS
A7: ='01 325701.7 Pol'!B7 -> 61 | B7: ='01 325701.7 Pol'!C7 -> Upravy povrchů vnitřní | E7: ='01 325701.7 Pol'!BA21 -> 0 | F7: ='01 325701.7 Pol'!BB21 -> 0 | G7: ='01 325701.7 Pol'!BC21 -> 0 | H7: ='01 325701.7 Pol'!BD21 -> 0 | I7: ='01 325701.7 Pol'!BE21 -> 0
A8: ='01 325701.7 Pol'!B22 -> 63 | B8: ='01 325701.7 Pol'!C22 -> Podlahy a podlahové konstrukce | E8: ='01 325701.7 Pol'!BA26 -> 0 | F8: ='01 325701.7 Pol'!BB26 -> 0 | G8: ='01 325701.7 Pol'!BC26 -> 0 | H8: ='01 325701.7 Pol'!BD26 -> 0 | I8: ='01 325701.7 Pol'!BE26 -> 0
A9: ='01 325701.7 Pol'!B27 -> 94 | B9: ='01 325701.7 Pol'!C27 -> Lešení a stavební výtahy | E9: ='01 325701.7 Pol'!BA31 -> 0 | F9: ='01 325701.7 Pol'!BB31 -> 0 | G9: ='01 325701.7 Pol'!BC31 -> 0 | H9: ='01 325701.7 Pol'!BD31 -> 0 | I9: ='01 325701.7 Pol'!BE31 -> 0
A10: ='01 325701.7 Pol'!B32 -> 96 | B10: ='01 325701.7 Pol'!C32 -> Bourání konstrukcí | E10: ='01 325701.7 Pol'!BA45 -> 0 | F10: ='01 325701.7 Pol'!BB45 -> 0 | G10: ='01 325701.7 Pol'!BC45 -> 0 | H10: ='01 325701.7 Pol'!BD45 -> 0 | I10: ='01 325701.7 Pol'!BE45 -> 0
A11: ='01 325701.7 Pol'!B46 -> 99 | B11: ='01 325701.7 Pol'!C46 -> Staveništní přesun hmot | E11: ='01 325701.7 Pol'!BA48 -> 0 | F11: ='01 325701.7 Pol'!BB48 -> 0 | G11: ='01 325701.7 Pol'!BC48 -> 0 | H11: ='01 325701.7 Pol'!BD48 -> 0 | I11: ='01 325701.7 Pol'!BE48 -> 0
A12: ='01 325701.7 Pol'!B49 -> 764 | B12: ='01 325701.7 Pol'!C49 -> Konstrukce klempířské | E12: ='01 325701.7 Pol'!BA57 -> 0 | F12: ='01 325701.7 Pol'!BB57 -> 0 | G12: ='01 325701.7 Pol'!BC57 -> 0 | H12: ='01 325701.7 Pol'!BD57 -> 0 | I12: ='01 325701.7 Pol'!BE57 -> 0
A13: ='01 325701.7 Pol'!B58 -> 766 | B13: ='01 325701.7 Pol'!C58 -> Konstrukce truhlářské | E13: ='01 325701.7 Pol'!BA95 -> 0 | F13: ='01 325701.7 Pol'!BB95 -> 0 | G13: ='01 325701.7 Pol'!BC95 -> 0 | H13: ='01 325701.7 Pol'!BD95 -> 0 | I13: ='01 325701.7 Pol'!BE95 -> 0
A14: ='01 325701.7 Pol'!B96 -> 784 | B14: ='01 325701.7 Pol'!C96 -> Malby | E14: ='01 325701.7 Pol'!BA100 -> 0 | F14: ='01 325701.7 Pol'!BB100 -> 0 | G14: ='01 325701.7 Pol'!BC100 -> 0 | H14: ='01 325701.7 Pol'!BD100 -> 0 | I14: ='01 325701.7 Pol'!BE100 -> 0
A15: ='01 325701.7 Pol'!B101 -> D96 | B15: ='01 325701.7 Pol'!C101 -> Přesuny suti a vybouraných hmot | E15: ='01 325701.7 Pol'!BA108 -> 0 | F15: ='01 325701.7 Pol'!BB108 -> 0 | G15: ='01 325701.7 Pol'!BC108 -> 0 | H15: ='01 325701.7 Pol'!BD108 -> 0 | I15: ='01 325701.7 Pol'!BE108 -> 0
B16: CELKEM OBJEKT | E16: =SUM(E7:E15) -> 0 | F16: =SUM(F7:F15) -> 0 | G16: =SUM(G7:G15) -> 0 | H16: =SUM(H7:H15) -> 0 | I16: =SUM(I7:I15) -> 0
A18: OSTATNÍ NÁKLADY STAVBY
A20: Název ONS | E20: Kč | I20: Kč
A21: Zařízení staveniště | E21: 0 | I21: =E21+F21*G21/100 -> 0 | BA21: 2
A22: Provoz investora | E22: 0 | I22: =E22+F22*G22/100 -> 0 | BA22: 1
A23: Kompletační činnost (IČD) | E23: 0 | I23: =E23+F23*G23/100 -> 0 | BA23: 2
B24: CELKEM ONS | H24: =SUM(I21:I23) -> 0

Sheet 01 325701.7 Pol
A1: Položkový rozpočet
A3: Stavba : | C3: 3257 Turnov - objekt ul. 5. května čp.26 | E3: Rozpočet: | F3: ='01 325701.7 Rek'!H1 -> 3257/01.7
A4: Objekt : | C4: 01 Objekt ul. 5. května čp.26 | E4: ='01 325701.7 Rek'!G2 -> Byt č. 7 - 4.NP
A6: P.č. | B6: Číslo položky | C6: Název položky | D6: MJ | E6: množství | F6: cena / MJ | G6: celkem (Kč) | H6: Jednotková hmotnost | I6: Celková hmotnost | J6: Jednotková dem.hmot. | K6: Celková dem.hmot.
A7: Díl: | B7: 61 | C7: Upravy povrchů vnitřní | O7: 1
A8: 1 | B8: 610991111R00 | C8: Zakrývání výplní vnitřních otvorů | D8: m2 | E8: 9.12 | G8: =E8*F8 -> 0 | H8: 4e-05 | I8: =E8*H8 -> 0.0003648 | J8: 0 | K8: =E8*J8 -> 0 | O8: 2 | AA8: 1 | AB8: 1 | AC8: 1 | AZ8: 1 | BA8: =IF(AZ8=1,G8,0) -> 0 | BB8: =IF(AZ8=2,G8,0) -> 0 | BC8: =IF(AZ8=3,G8,0) -> 0 | BD8: =IF(AZ8=4,G8,0) -> 0 | BE8: =IF(AZ8=5,G8,0) -> 0 | CA8: 1 | CB8: 1
C9: Byt č. 7 90x160 cm:0,90*(1,60+0,30)*3 | E9: 5.13 | M9: Byt č. 7 90x160 cm:0,90*(1,60+0,30)*3
C10: Byt č. 7 210x160 cm:2,10*(1,60+0,30)*1 | E10: 3.99 | M10: Byt č. 7 210x160 cm:2,10*(1,60+0,30)*1
A11: 2 | B11: 610991199RRX | C11: Zakrývání vybavení částí bytu dle potřeb zhotovitele pro realizaci výměny oken | D11: soubor | E11: 1 | G11: =E11*F11 -> 0 | H11: 0 | I11: =E11*H11 -> 0 | J11: 0 | K11: =E11*J11 -> 0 | O11: 2 | AA11: 1 | AB11: 0 | AC11: 0 | AZ11: 1 | BA11: =IF(AZ11=1,G11,0) -> 0 | BB11: =IF(AZ11=2,G11,0) -> 0 | BC11: =IF(AZ11=3,G11,0) -> 0 | BD11: =IF(AZ11=4,G11,0) -> 0 | BE11: =IF(AZ11=5,G11,0) -> 0 | CA11: 1 | CB11: 0
A12: 3 | B12: 612409991RT2 | C12: Začištění omítek kolem oken,dveří apod. s použitím suché maltové směsi | D12: m | E12: 22.4 | G12: =E12*F12 -> 0 | H12: 0.00238 | I12: =E12*H12 -> 0.053312 | J12: 0 | K12: =E12*J12 -> 0 | O12: 2 | AA12: 1 | AB12: 1 | AC12: 1 | AZ12: 1 | BA12: =IF(AZ12=1,G12,0) -> 0 | BB12: =IF(AZ12=2,G12,0) -> 0 | BC12: =IF(AZ12=3,G12,0) -> 0 | BD12: =IF(AZ12=4,G12,0) -> 0 | BE12: =IF(AZ12=5,G12,0) -> 0 | CA12: 1 | CB12: 1
C13: Byt č. 7 90x160 cm:(0,90+1,60)*2*3 | E13: 15 | M13: Byt č. 7 90x160 cm:(0,90+1,60)*2*3
C14: Byt č. 7 210x160 cm:(2,10+1,60)*2*1 | E14: 7.4 | M14: Byt č. 7 210x160 cm:(2,10+1,60)*2*1
A15: 4 | B15: 612425931RT2 | C15: Omítka vápenná vnitřního ostění - štuková s použitím suché maltové směsi | D15: m2 | E15: 5.28 | G15: =E15*F15 -> 0 | H15: 0.03491 | I15: =E15*H15 -> 0.1843248 | J15: 0 | K15: =E15*J15 -> 0 | O15: 2 | AA15: 1 | AB15: 1 | AC15: 1 | AZ15: 1 | BA15: =IF(AZ15=1,G15,0) -> 0 | BB15: =IF(AZ15=2,G15,0) -> 0 | BC15: =IF(AZ15=3,G15,0) -> 0 | BD15: =IF(AZ15=4,G15,0) -> 0 | BE15: =IF(AZ15=5,G15,0) -> 0 | CA15: 1 | CB15: 1
C16: Byt č. 7 90x160 cm:0,30*(0,90+2*1,60)*3 | E16: 3.69 | M16: Byt č. 7 90x160 cm:0,30*(0,90+2*1,60)*3
C17: Byt č. 7 210x160 cm:0,30*(2,10+2*1,60)*1 | E17: 1.59 | M17: Byt č. 7 210x160 cm:0,30*(2,10+2*1,60)*1
A18: 5 | B18: 622473187RT2 | C18: Příplatek za okenní lištu (APU) - montáž včetně dodávky lišty | D18: m | E18: 17.6 | G18: =E18*F18 -> 0 | H18: 0.00015 | I18: =E18*H18 -> 0.00264 | J18: 0 | K18: =E18*J18 -> 0 | O18: 2 | AA18: 1 | AB18: 1 | AC18: 1 | AZ18: 1 | BA18: =IF(AZ18=1,G18,0) -> 0 | BB18: =IF(AZ18=2,G18,0) -> 0 | BC18: =IF(AZ18=3,G18,0) -> 0 | BD18: =IF(AZ18=4,G18,0) -> 0 | BE18: =IF(AZ18=5,G18,0) -> 0 | CA18: 1 | CB18: 1
C19: Byt č. 7 90x160 cm:(0,90+2*1,60)*3 | E19: 12.3 | M19: Byt č. 7 90x160 cm:(0,90+2*1,60)*3
C20: Byt č. 7 210x160 cm:(2,10+2*1,60)*1 | E20: 5.3 | M20: Byt č. 7 210x160 cm:(2,10+2*1,60)*1
B21: Celkem za | C21: 61 Upravy povrchů vnitřní | G21: =SUM(G7:G20) -> 0 | I21: =SUM(I7:I20) -> 0.2406416 | K21: =SUM(K7:K20) -> 0 | O21: 4 | BA21: =SUM(BA7:BA20) -> 0 | BB21: =SUM(BB7:BB20) -> 0 | BC21: =SUM(BC7:BC20) -> 0 | BD21: =SUM(BD7:BD20) -> 0 | BE21: =SUM(BE7:BE20) -> 0
A22: Díl: | B22: 63 | C22: Podlahy a podlahové konstrukce | O22: 1
A23: 6 | B23: 632411104R00 | C23: Vyrovnávací stěrka, ruční zprac. tl.4 mm | D23: m2 | E23: 1.44 | G23: =E23*F23 -> 0 | H23: 0.007 | I23: =E23*H23 -> 0.01008 | J23: 0 | K23: =E23*J23 -> 0 | O23: 2 | AA23: 1 | AB23: 1 | AC23: 1 | AZ23: 1 | BA23: =IF(AZ23=1,G23,0) -> 0 | BB23: =IF(AZ23=2,G23,0) -> 0 | BC23: =IF(AZ23=3,G23,0) -> 0 | BD23: =IF(AZ23=4,G23,0) -> 0 | BE23: =IF(AZ23=5,G23,0) -> 0 | CA23: 1 | CB23: 1
C24: Byt č. 7 90x160 cm - parapet:0,90*0,30*3 | E24: 0.81 | M24: Byt č. 7 90x160 cm - parapet:0,90*0,30*3
C25: Byt č. 7 210x160 cm - parapet:2,10*0,30*1 | E25: 0.63 | M25: Byt č. 7 210x160 cm - parapet:2,10*0,30*1
B26: Celkem za | C26: 63 Podlahy a podlahové konstrukce | G26: =SUM(G22:G25) -> 0 | I26: =SUM(I22:I25) -> 0.01008 | K26: =SUM(K22:K25) -> 0 | O26: 4 | BA26: =SUM(BA22:BA25) -> 0 | BB26: =SUM(BB22:BB25) -> 0 | BC26: =SUM(BC22:BC25) -> 0 | BD26: =SUM(BD22:BD25) -> 0 | BE26: =SUM(BE22:BE25) -> 0
A27: Díl: | B27: 94 | C27: Lešení a stavební výtahy | O27: 1
A28: 7 | B28: 941955001R00 | C28: Lešení lehké pomocné, výška podlahy do 1,2 m | D28: m2 | E28: 12 | G28: =E28*F28 -> 0 | H28: 0.00121 | I28: =E28*H28 -> 0.01452 | J28: 0 | K28: =E28*J28 -> 0 | O28: 2 | AA28: 1 | AB28: 1 | AC28: 1 | AZ28: 1 | BA28: =IF(AZ28=1,G28,0) -> 0 | BB28: =IF(AZ28=2,G28,0) -> 0 | BC28: =IF(AZ28=3,G28,0) -> 0 | BD28: =IF(AZ28=4,G28,0) -> 0 | BE28: =IF(AZ28=5,G28,0) -> 0 | CA28: 1 | CB28: 1
C29: Byt č. 7 90x160 cm:1,20*1,00*3*2 | E29: 7.2 | M29: Byt č. 7 90x160 cm:1,20*1,00*3*2
C30: Byt č. 7 210x160 cm:2,40*1,00*1*2 | E30: 4.8 | M30: Byt č. 7 210x160 cm:2,40*1,00*1*2
B31: Celkem za | C31: 94 Lešení a stavební výtahy | G31: =SUM(G27:G30) -> 0 | I31: =SUM(I27:I30) -> 0.01452 | K31: =SUM(K27:K30) -> 0 | O31: 4 | BA31: =SUM(BA27:BA30) -> 0 | BB31: =SUM(BB27:BB30) -> 0 | BC31: =SUM(BC27:BC30) -> 0 | BD31: =SUM(BD27:BD30) -> 0 | BE31: =SUM(BE27:BE30) -> 0
A32: Díl: | B32: 96 | C32: Bourání konstrukcí | O32: 1
A33: 8 | B33: 967031132R00 | C33: Přisekání rovných ostění cihelných na MVC | D33: m2 | E33: 5.28 | G33: =E33*F33 -> 0 | H33: 0 | I33: =E33*H33 -> 0 | J33: -0.055 | K33: =E33*J33 -> -0.2904 | O33: 2 | AA33: 1 | AB33: 1 | AC33: 1 | AZ33: 1 | BA33: =IF(AZ33=1,G33,0) -> 0 | BB33: =IF(AZ33=2,G33,0) -> 0 | BC33: =IF(AZ33=3,G33,0) -> 0 | BD33: =IF(AZ33=4,G33,0) -> 0 | BE33: =IF(AZ33=5,G33,0) -> 0 | CA33: 1 | CB33: 1
C34: Byt č. 7 90x160 cm:0,30*(0,90+2*1,60)*3 | E34: 3.69 | M34: Byt č. 7 90x160 cm:0,30*(0,90+2*1,60)*3
C35: Byt č. 7 210x160 cm:0,30*(2,10+2*1,60)*1 | E35: 1.59 | M35: Byt č. 7 210x160 cm:0,30*(2,10+2*1,60)*1
A36: 9 | B36: 968061112R00 | C36: Vyvěšení dřevěných okenních křídel pl. do 1,5 m2 | D36: kus | E36: 4 | G36: =E36*F36 -> 0 | H36: 0 | I36: =E36*H36 -> 0 | J36: 0 | K36: =E36*J36 -> 0 | O36: 2 | AA36: 1 | AB36: 1 | AC36: 1 | AZ36: 1 | BA36: =IF(AZ36=1,G36,0) -> 0 | BB36: =IF(AZ36=2,G36,0) -> 0 | BC36: =IF(AZ36=3,G36,0) -> 0 | BD36: =IF(AZ36=4,G36,0) -> 0 | BE36: =IF(AZ36=5,G36,0) -> 0 | CA36: 1 | CB36: 1
C37: Byt č. 7 90x160 cm:1*3 | E37: 3 | M37: Byt č. 7 90x160 cm:1*3
C38: Byt č. 7 210x160 cm:1*1 | E38: 1 | M38: Byt č. 7 210x160 cm:1*1
A39: 10 | B39: 968061113R00 | C39: Vyvěšení dřevěných okenních křídel pl. nad 1,5 m2 | D39: kus | E39: 1 | G39: =E39*F39 -> 0 | H39: 0 | I39: =E39*H39 -> 0 | J39: 0 | K39: =E39*J39 -> 0 | O39: 2 | AA39: 1 | AB39: 1 | AC39: 1 | AZ39: 1 | BA39: =IF(AZ39=1,G39,0) -> 0 | BB39: =IF(AZ39=2,G39,0) -> 0 | BC39: =IF(AZ39=3,G39,0) -> 0 | BD39: =IF(AZ39=4,G39,0) -> 0 | BE39: =IF(AZ39=5,G39,0) -> 0 | CA39: 1 | CB39: 1
C40: Byt č. 7 210x160 cm:1*1 | E40: 1 | M40: Byt č. 7 210x160 cm:1*1
A41: 11 | B41: 968062355RRX | C41: Vybourání dřevěných rámů oken dvojitých pl. 2 m2 včetně parapetů oken | D41: m2 | E41: 4.32 | G41: =E41*F41 -> 0 | H41: 0.001 | I41: =E41*H41 -> 0.00432 | J41: -0.062 | K41: =E41*J41 -> -0.26784 | O41: 2 | AA41: 1 | AB41: 1 | AC41: 1 | AZ41: 1 | BA41: =IF(AZ41=1,G41,0) -> 0 | BB41: =IF(AZ41=2,G41,0) -> 0 | BC41: =IF(AZ41=3,G41,0) -> 0 | BD41: =IF(AZ41=4,G41,0) -> 0 | BE41: =IF(AZ41=5,G41,0) -> 0 | CA41: 1 | CB41: 1
C42: Byt č. 7 90x160 cm:0,90*1,60*3 | E42: 4.32 | M42: Byt č. 7 90x160 cm:0,90*1,60*3
A43: 12 | B43: 968062356RRX | C43: Vybourání dřevěných rámů oken dvojitých pl. 4 m2 včetně parapetů oken | D43: m2 | E43: 3.36 | G43: =E43*F43 -> 0 | H43: 0.00092 | I43: =E43*H43 -> 0.0030912 | J43: -0.054 | K43: =E43*J43 -> -0.18144 | O43: 2 | AA43: 1 | AB43: 1 | AC43: 1 | AZ43: 1 | BA43: =IF(AZ43=1,G43,0) -> 0 | BB43: =IF(AZ43=2,G43,0) -> 0 | BC43: =IF(AZ43=3,G43,0) -> 0 | BD43: =IF(AZ43=4,G43,0) -> 0 | BE43: =IF(AZ43=5,G43,0) -> 0 | CA43: 1 | CB43: 1
C44: Byt č. 7 210x160 cm:2,10*1,60*1 | E44: 3.36 | M44: Byt č. 7 210x160 cm:2,10*1,60*1
B45: Celkem za | C45: 96 Bourání konstrukcí | G45: =SUM(G32:G44) -> 0 | I45: =SUM(I32:I44) -> 0.0074112 | K45: =SUM(K32:K44) -> -0.73968 | O45: 4 | BA45: =SUM(BA32:BA44) -> 0 | BB45: =SUM(BB32:BB44) -> 0 | BC45: =SUM(BC32:BC44) -> 0 | BD45: =SUM(BD32:BD44) -> 0 | BE45: =SUM(BE32:BE44) -> 0
A46: Díl: | B46: 99 | C46: Staveništní přesun hmot | O46: 1
A47: 13 | B47: 999281111R00 | C47: Přesun hmot pro opravy a údržbu do výšky 25 m | D47: t | E47: 0.2726528 | G47: =E47*F47 -> 0 | H47: 0 | I47: =E47*H47 -> 0 | K47: =E47*J47 -> 0 | O47: 2 | AA47: 7 | AB47: 1 | AC47: 2 | AZ47: 1 | BA47: =IF(AZ47=1,G47,0) -> 0 | BB47: =IF(AZ47=2,G47,0) -> 0 | BC47: =IF(AZ47=3,G47,0) -> 0 | BD47: =IF(AZ47=4,G47,0) -> 0 | BE47: =IF(AZ47=5,G47,0) -> 0 | CA47: 7 | CB47: 1
B48: Celkem za | C48: 99 Staveništní přesun hmot | G48: =SUM(G46:G47) -> 0 | I48: =SUM(I46:I47) -> 0 | K48: =SUM(K46:K47) -> 0 | O48: 4 | BA48: =SUM(BA46:BA47) -> 0 | BB48: =SUM(BB46:BB47) -> 0 | BC48: =SUM(BC46:BC47) -> 0 | BD48: =SUM(BD46:BD47) -> 0 | BE48: =SUM(BE46:BE47) -> 0
A49: Díl: | B49: 764 | C49: Konstrukce klempířské | O49: 1
A50: 14 | B50: 764231921RRX | C50: Oprava lemov. zdí Cu rš 250 mm Přichycení stávajícího oplechování k novému oknu | D50: m | E50: 17.6 | G50: =E50*F50 -> 0 | H50: 0.00157 | I50: =E50*H50 -> 0.027632 | J50: 0 | K50: =E50*J50 -> 0 | O50: 2 | AA50: 1 | AB50: 7 | AC50: 7 | AZ50: 2 | BA50: =IF(AZ50=1,G50,0) -> 0 | BB50: =IF(AZ50=2,G50,0) -> 0 | BC50: =IF(AZ50=3,G50,0) -> 0 | BD50: =IF(AZ50=4,G50,0) -> 0 | BE50: =IF(AZ50=5,G50,0) -> 0 | CA50: 1 | CB50: 7
C51: Byt č. 7 90x160 cm:(0,90+2*1,60)*3 | E51: 12.3 | M51: Byt č. 7 90x160 cm:(0,90+2*1,60)*3
C52: Byt č. 7 210x160 cm:(2,10+2*1,60)*1 | E52: 5.3 | M52: Byt č. 7 210x160 cm:(2,10+2*1,60)*1
A53: 15 | B53: 764510950RRX | C53: Oprava oplechování parapetů Cu,rš 330 mm Přichycení stávajícího parapetu k novému oknu | D53: m | E53: 4.8 | G53: =E53*F53 -> 0 | H53: 0.00361 | I53: =E53*H53 -> 0.017328 | J53: 0 | K53: =E53*J53 -> 0 | O53: 2 | AA53: 1 | AB53: 7 | AC53: 7 | AZ53: 2 | BA53: =IF(AZ53=1,G53,0) -> 0 | BB53: =IF(AZ53=2,G53,0) -> 0 | BC53: =IF(AZ53=3,G53,0) -> 0 | BD53: =IF(AZ53=4,G53,0) -> 0 | BE53: =IF(AZ53=5,G53,0) -> 0 | CA53: 1 | CB53: 7
C54: Byt č. 7 90x160 cm:0,90*3 | E54: 2.7 | M54: Byt č. 7 90x160 cm:0,90*3
C55: Byt č. 7 210x160 cm:2,10*1 | E55: 2.1 | M55: Byt č. 7 210x160 cm:2,10*1
A56: 16 | B56: 998764103R00 | C56: Přesun hmot pro klempířské konstr., výšky do 24 m | D56: t | E56: 0.04496 | G56: =E56*F56 -> 0 | H56: 0 | I56: =E56*H56 -> 0 | K56: =E56*J56 -> 0 | O56: 2 | AA56: 7 | AB56: 1001 | AC56: 5 | AZ56: 2 | BA56: =IF(AZ56=1,G56,0) -> 0 | BB56: =IF(AZ56=2,G56,0) -> 0 | BC56: =IF(AZ56=3,G56,0) -> 0 | BD56: =IF(AZ56=4,G56,0) -> 0 | BE56: =IF(AZ56=5,G56,0) -> 0 | CA56: 7 | CB56: 1001
B57: Celkem za | C57: 764 Konstrukce klempířské | G57: =SUM(G49:G56) -> 0 | I57: =SUM(I49:I56) -> 0.04496 | K57: =SUM(K49:K56) -> 0 | O57: 4 | BA57: =SUM(BA49:BA56) -> 0 | BB57: =SUM(BB49:BB56) -> 0 | BC57: =SUM(BC49:BC56) -> 0 | BD57: =SUM(BD49:BD56) -> 0 | BE57: =SUM(BE49:BE56) -> 0
A58: Díl: | B58: 766 | C58: Konstrukce truhlářské | O58: 1
A59: 17 | B59: 766601211RT1 | C59: Těsnění okenní spáry, ostění, PT fólie+ PP páska folie š. 70 mm, páska tl. 2 mm, š. 10 mm | D59: m | E59: 22.4 | G59: =E59*F59 -> 0 | H59: 0 | I59: =E59*H59 -> 0 | J59: 0 | K59: =E59*J59 -> 0 | O59: 2 | AA59: 1 | AB59: 7 | AC59: 7 | AZ59: 2 | BA59: =IF(AZ59=1,G59,0) -> 0 | BB59: =IF(AZ59=2,G59,0) -> 0 | BC59: =IF(AZ59=3,G59,0) -> 0 | BD59: =IF(AZ59=4,G59,0) -> 0 | BE59: =IF(AZ59=5,G59,0) -> 0 | CA59: 1 | CB59: 7
C60: Instalace a dodávka parotěsné okenní fólie a paropropustné expanzní pásky. | L60: Instalace a dodávka parotěsné okenní fólie a paropropustné expanzní pásky. | O60: 3
C61: Byt č. 7 90x160 cm:(0,90+1,60)*2*3 | E61: 15 | M61: Byt č. 7 90x160 cm:(0,90+1,60)*2*3
C62: Byt č. 7 210x160 cm:(2,10+1,60)*2*1 | E62: 7.4 | M62: Byt č. 7 210x160 cm:(2,10+1,60)*2*1
A63: 18 | B63: 766694111R00 | C63: Montáž parapetních desek š.do 30 cm,dl.do 100 cm | D63: kus | E63: 2.7 | G63: =E63*F63 -> 0 | H63: 1e-05 | I63: =E63*H63 -> 2.7e-05 | J63: 0 | K63: =E63*J63 -> 0 | O63: 2 | AA63: 1 | AB63: 7 | AC63: 7 | AZ63: 2 | BA63: =IF(AZ63=1,G63,0) -> 0 | BB63: =IF(AZ63=2,G63,0) -> 0 | BC63: =IF(AZ63=3,G63,0) -> 0 | BD63: =IF(AZ63=4,G63,0) -> 0 | BE63: =IF(AZ63=5,G63,0) -> 0 | CA63: 1 | CB63: 7
C64: Byt č. 7 90x160 cm:0,90*3 | E64: 2.7 | M64: Byt č. 7 90x160 cm:0,90*3
A65: 19 | B65: 766694113R00 | C65: Montáž parapetních desek š.do 30 cm,dl.do 260 cm | D65: kus | E65: 2.1 | G65: =E65*F65 -> 0 | H65: 2e-05 | I65: =E65*H65 -> 4.2e-05 | J65: 0 | K65: =E65*J65 -> 0 | O65: 2 | AA65: 1 | AB65: 7 | AC65: 7 | AZ65: 2 | BA65: =IF(AZ65=1,G65,0) -> 0 | BB65: =IF(AZ65=2,G65,0) -> 0 | BC65: =IF(AZ65=3,G65,0) -> 0 | BD65: =IF(AZ65=4,G65,0) -> 0 | BE65: =IF(AZ65=5,G65,0) -> 0 | CA65: 1 | CB65: 7
C66: Byt č. 7 210x160 cm:2,10*1 | E66: 2.1 | M66: Byt č. 7 210x160 cm:2,10*1
A67: 20 | B67: 766711001R00 | C67: Montáž oken a balkonových dveří s vypěněním | D67: m | E67: 22.4 | G67: =E67*F67 -> 0 | H67: 2e-05 | I67: =E67*H67 -> 0.000448 | J67: 0 | K67: =E67*J67 -> 0 | O67: 2 | AA67: 1 | AB67: 7 | AC67: 7 | AZ67: 2 | BA67: =IF(AZ67=1,G67,0) -> 0 | BB67: =IF(AZ67=2,G67,0) -> 0 | BC67: =IF(AZ67=3,G67,0) -> 0 | BD67: =IF(AZ67=4,G67,0) -> 0 | BE67: =IF(AZ67=5,G67,0) -> 0 | CA67: 1 | CB67: 7
C68: Montáž dřevěných oken a dveří včetně dodávky a montáže PU pěny a spojovacích prostředků. | L68: Montáž dřevěných oken a dveří včetně dodávky a montáže PU pěny a spojovacích prostředků. | O68: 3
C69: Byt č. 7 90x160 cm:(0,90+1,60)*2*3 | E69: 15 | M69: Byt č. 7 90x160 cm:(0,90+1,60)*2*3
C70: Byt č. 7 210x160 cm:(2,10+1,60)*2*1 | E70: 7.4 | M70: Byt č. 7 210x160 cm:(2,10+1,60)*2*1
A71: 21 | B71: 61111436 | C71: Okno dřevěné 1křídl. OS1A 90x160 cm Profilace rámů a příček dle požadavku NPÚ | D71: kus | E71: 3 | G71: =E71*F71 -> 0 | H71: 0.046 | I71: =E71*H71 -> 0.138 | K71: =E71*J71 -> 0 | O71: 2 | AA71: 3 | AB71: 7 | AC71: 61111436 | AZ71: 2 | BA71: =IF(AZ71=1,G71,0) -> 0 | BB71: =IF(AZ71=2,G71,0) -> 0 | BC71: =IF(AZ71=3,G71,0) -> 0 | BD71: =IF(AZ71=4,G71,0) -> 0 | BE71: =IF(AZ71=5,G71,0) -> 0 | CA71: 3 | CB71: 7
C72: profil EURO | L72: profil EURO | O72: 3
C73: jednokřídlové, otevíravé a sklápěcí | L73: jednokřídlové, otevíravé a sklápěcí | O73: 3
C74: materiál: třívrstvový hranolek SM | L74: materiál: třívrstvový hranolek SM | O74: 3
C75: sklo izolační - trojsklo | L75: sklo izolační - trojsklo | O75: 3
C76: okapnice: hliníková | L76: okapnice: hliníková | O76: 3
C77: nátěr dle stávající barvy v objektu | L77: nátěr dle stávající barvy v objektu | O77: 3
C78: Poznámka: | L78: Poznámka: | O78: 3
C79: Před výrobou oken si zhotovitel zaměří každý otvor pro dodávku nového okna | L79: Před výrobou oken si zhotovitel zaměří každý otvor pro dodávku nového okna | O79: 3
C80: Byt č. 7:3 | E80: 3 | M80: Byt č. 7:3
A81: 22 | B81: 61130951 | C81: Okno dřevěné 3křídl. OS3B 210x160 cm Profilace rámů a příček dle požadavku NPÚ | D81: kus | E81: 1 | G81: =E81*F81 -> 0 | H81: 0.127 | I81: =E81*H81 -> 0.127 | K81: =E81*J81 -> 0 | O81: 2 | AA81: 3 | AB81: 7 | AC81: 61130951 | AZ81: 2 | BA81: =IF(AZ81=1,G81,0) -> 0 | BB81: =IF(AZ81=2,G81,0) -> 0 | BC81: =IF(AZ81=3,G81,0) -> 0 | BD81: =IF(AZ81=4,G81,0) -> 0 | BE81: =IF(AZ81=5,G81,0) -> 0 | CA81: 3 | CB81: 7
C82: profil EURO | L82: profil EURO | O82: 3
C83: tříkřídlé, dvouřídlé otevíravé + jednokřídlé otevírací a sklápěcí | L83: tříkřídlé, dvouřídlé otevíravé + jednokřídlé otevírací a sklápěcí | O83: 3
C84: materiál: třívrstvový hranolek SM | L84: materiál: třívrstvový hranolek SM | O84: 3
C85: sklo izolační - trojsklo | L85: sklo izolační - trojsklo | O85: 3
C86: okapnice: hliníková | L86: okapnice: hliníková | O86: 3
C87: nátěr dle stávající barvy v objektu | L87: nátěr dle stávající barvy v objektu | O87: 3
C88: Poznámka: | L88: Poznámka: | O88: 3
C89: Před výrobou oken si zhotovitel zaměří každý otvor pro dodávku nového okna | L89: Před výrobou oken si zhotovitel zaměří každý otvor pro dodávku nového okna | O89: 3
C90: Byt č. 7:1 | E90: 1 | M90: Byt č. 7:1
A91: 23 | B91: 61187551 | C91: Deska parapetní šířka 25 cm | D91: m | E91: 5.28 | G91: =E91*F91 -> 0 | H91: 0.00413 | I91: =E91*H91 -> 0.0218064 | K91: =E91*J91 -> 0 | O91: 2 | AA91: 3 | AB91: 7 | AC91: 61187551 | AZ91: 2 | BA91: =IF(AZ91=1,G91,0) -> 0 | BB91: =IF(AZ91=2,G91,0) -> 0 | BC91: =IF(AZ91=3,G91,0) -> 0 | BD91: =IF(AZ91=4,G91,0) -> 0 | BE91: =IF(AZ91=5,G91,0) -> 0 | CA91: 3 | CB91: 7
C92: Byt č. 7 90x160 cm:0,90*3*1,1 | E92: 2.97 | M92: Byt č. 7 90x160 cm:0,90*3*1,1
C93: Byt č. 7 210x160 cm:2,10*1*1,1 | E93: 2.31 | M93: Byt č. 7 210x160 cm:2,10*1*1,1
A94: 24 | B94: 998766103R00 | C94: Přesun hmot pro truhlářské konstr., výšky do 24 m | D94: t | E94: 0.2873234 | G94: =E94*F94 -> 0 | H94: 0 | I94: =E94*H94 -> 0 | K94: =E94*J94 -> 0 | O94: 2 | AA94: 7 | AB94: 1001 | AC94: 5 | AZ94: 2 | BA94: =IF(AZ94=1,G94,0) -> 0 | BB94: =IF(AZ94=2,G94,0) -> 0 | BC94: =IF(AZ94=3,G94,0) -> 0 | BD94: =IF(AZ94=4,G94,0) -> 0 | BE94: =IF(AZ94=5,G94,0) -> 0 | CA94: 7 | CB94: 1001
B95: Celkem za | C95: 766 Konstrukce truhlářské | G95: =SUM(G58:G94) -> 0 | I95: =SUM(I58:I94) -> 0.2873234 | K95: =SUM(K58:K94) -> 0 | O95: 4 | BA95: =SUM(BA58:BA94) -> 0 | BB95: =SUM(BB58:BB94) -> 0 | BC95: =SUM(BC58:BC94) -> 0 | BD95: =SUM(BD58:BD94) -> 0 | BE95: =SUM(BE58:BE94) -> 0
A96: Díl: | B96: 784 | C96: Malby | O96: 1
A97: 25 | B97: 784195212RRX | C97: Malba Primalex Plus, bílá, s penetrací, 2 x ostění šířky do 50cm | D97: m | E97: 17.6 | G97: =E97*F97 -> 0 | H97: 0.00015 | I97: =E97*H97 -> 0.00264 | J97: 0 | K97: =E97*J97 -> 0 | O97: 2 | AA97: 1 | AB97: 7 | AC97: 7 | AZ97: 2 | BA97: =IF(AZ97=1,G97,0) -> 0 | BB97: =IF(AZ97=2,G97,0) -> 0 | BC97: =IF(AZ97=3,G97,0) -> 0 | BD97: =IF(AZ97=4,G97,0) -> 0 | BE97: =IF(AZ97=5,G97,0) -> 0 | CA97: 1 | CB97: 7
C98: Byt č. 7 90x160 cm:(0,90+2*1,60)*3 | E98: 12.3 | M98: Byt č. 7 90x160 cm:(0,90+2*1,60)*3
C99: Byt č. 7 210x160 cm:(2,10+2*1,60)*1 | E99: 5.3 | M99: Byt č. 7 210x160 cm:(2,10+2*1,60)*1
B100: Celkem za | C100: 784 Malby | G100: =SUM(G96:G99) -> 0 | I100: =SUM(I96:I99) -> 0.00264 | K100: =SUM(K96:K99) -> 0 | O100: 4 | BA100: =SUM(BA96:BA99) -> 0 | BB100: =SUM(BB96:BB99) -> 0 | BC100: =SUM(BC96:BC99) -> 0 | BD100: =SUM(BD96:BD99) -> 0 | BE100: =SUM(BE96:BE99) -> 0
A101: Díl: | B101: D96 | C101: Přesuny suti a vybouraných hmot | O101: 1
A102: 26 | B102: 979011211R00 | C102: Svislá doprava suti a vybour. hmot za 2.NP nošením | D102: t | E102: 0.73968 | G102: =E102*F102 -> 0 | H102: 0 | I102: =E102*H102 -> 0 | K102: =E102*J102 -> 0 | O102: 2 | AA102: 8 | AB102: 0 | AC102: 3 | AZ102: 1 | BA102: =IF(AZ102=1,G102,0) -> 0 | BB102: =IF(AZ102=2,G102,0) -> 0 | BC102: =IF(AZ102=3,G102,0) -> 0 | BD102: =IF(AZ102=4,G102,0) -> 0 | BE102: =IF(AZ102=5,G102,0) -> 0 | CA102: 8 | CB102: 0
A103: 27 | B103: 979011219R00 | C103: Přípl.k svislé dopr.suti za každé další NP nošením | D103: t | E103: 1.47936 | G103: 0 | H103: 0 | I103: 0 | K103: 0 | O103: 2 | AA103: 8 | AB103: 0 | AC103: 3 | AZ103: 1 | BA103: 0 | BB103: 0 | BC103: 0 | BD103: 0 | BE103: 0 | CA103: 8 | CB103: 0
A104: 28 | B104: 979081111R00 | C104: Odvoz suti a vybour. hmot na skládku zhotovitele | D104: t | E104: 0.73968 | G104: 0 | H104: 0 | I104: 0 | K104: 0 | O104: 2 | AA104: 8 | AB104: 0 | AC104: 3 | AZ104: 1 | BA104: 0 | BB104: 0 | BC104: 0 | BD104: 0 | BE104: 0 | CA104: 8 | CB104: 0
A105: 29 | B105: 979082111R00 | C105: Vnitrostaveništní doprava suti do 10 m | D105: t | E105: 0.73968 | G105: 0 | H105: 0 | I105: 0 | K105: 0 | O105: 2 | AA105: 8 | AB105: 0 | AC105: 3 | AZ105: 1 | BA105: 0 | BB105: 0 | BC105: 0 | BD105: 0 | BE105: 0 | CA105: 8 | CB105: 0
A106: 30 | B106: 979082121R00 | C106: Příplatek k vnitrost. dopravě suti za dalších 5 m | D106: t | E106: 11.83488 | G106: 0 | H106: 0 | I106: 0 | K106: 0 | O106: 2 | AA106: 8 | AB106: 0 | AC106: 3 | AZ106: 1 | BA106: 0 | BB106: 0 | BC106: 0 | BD106: 0 | BE106: 0 | CA106: 8 | CB106: 0
A107: 31 | B107: 979990107R00 | C107: Poplatek za skládku suti - směs betonu,cihel,dřeva | D107: t | E107: 0.73968 | G107: 0 | H107: 0 | I107: 0 | K107: 0 | O107: 2 | AA107: 8 | AB107: 0 | AC107: 3 | AZ107: 1 | BA107: 0 | BB107: 0 | BC107: 0 | BD107: 0 | BE107: 0 | CA107: 8 | CB107: 0
B108: Celkem za | C108: D96 Přesuny suti a vybouraných hmot | G108: =SUM(G101:G107) -> 0 | I108: =SUM(I101:I107) -> 0 | K108: =SUM(K101:K107) -> 0 | O108: 4 | BA108: =SUM(BA101:BA107) -> 0 | BB108: =SUM(BB101:BB107) -> 0 | BC108: =SUM(BC101:BC107) -> 0 | BD108: =SUM(BD101:BD107) -> 0 | BE108: =SUM(BE101:BE107) -> 0

Sheet 01 325701.8 KL
A1: POLOŽKOVÝ ROZPOČET
A2: Rozpočet | C2: 3257/01.8 | D2: Byt č. 8 - 4.NP | F2: JKSO | G2: 803.5
A4: Objekt | F4: SKP
A5: 01 | C5: Objekt ul. 5. května čp.26 | F5: Měrná jednotka | G5: m3
A6: Stavba | F6: Počet jednotek | G6: 0
A7: 3257 | C7: Turnov - objekt ul. 5. května čp.26 | F7: Náklady na m.j. | G7: =IF(G6=0,,ROUND((F30+F32)/G6,1)) -> 0
A8: Projektant | F8: Typ rozpočtu
A9: Zpracovatel projektu
A10: Objednatel | C10: Město TURNOV
A11: Dodavatel | C11: . | F11: Zakázkové číslo
A12: Rozpočtoval | F12: Počet listů
A13: ROZPOČTOVÉ NÁKLADY
A14: Základní rozpočtové náklady | D14: Ostatní náklady stavby
B15: HSV celkem | C15: ='01 325701.8 Rek'!E16 -> 0 | D15: ='01 325701.8 Rek'!A21 -> Zařízení staveniště | G15: ='01 325701.8 Rek'!I21 -> 0
A16: Z | B16: PSV celkem | C16: ='01 325701.8 Rek'!F16 -> 0 | D16: ='01 325701.8 Rek'!A22 -> Provoz investora | G16: ='01 325701.8 Rek'!I22 -> 0
A17: R | B17: M práce celkem | C17: ='01 325701.8 Rek'!H16 -> 0 | D17: ='01 325701.8 Rek'!A23 -> Kompletační činnost (IČD) | G17: ='01 325701.8 Rek'!I23 -> 0
A18: N | B18: M dodávky celkem | C18: ='01 325701.8 Rek'!G16 -> 0
A19: ZRN celkem | C19: =SUM(C15:C18) -> 0
A21: HZS | C21: ='01 325701.8 Rek'!I16 -> 0
A22: ZRN+HZS | C22: =C19+C21 -> 0
A23: ZRN+ost.náklady+HZS | C23: =C22+G23 -> 0 | D23: Ostatní náklady celkem | G23: ='01 325701.8 Rek'!H24 -> 0
A24: Vypracoval | D24: Za zhotovitele | F24: Za objednatele
A25: Jméno : | D25: Jméno : | F25: Jméno :
A26: Datum : | D26: Datum : | F26: Datum :
A28: Podpis : | D28: Podpis: | F28: Podpis:
A30: Základ pro DPH | C30: 15 | D30: % | F30: =C23-F32 -> 0
A31: DPH | C31: =C30 -> 15 | D31: % | F31: =ROUND(PRODUCT(F30,C31/100),0) -> 0
A32: Základ pro DPH | C32: 0 | D32: % | F32: 0
A33: DPH | C33: =C32 -> 0 | D33: % | F33: =ROUND(PRODUCT(F32,C33/100),0) -> 0
A34: CENA ZA OBJEKT CELKEM | F34: =ROUND(SUM(F30:F33),0) -> 0
A36: Poznámka :

Sheet 01 325701.8 Rek
A1: Stavba : | C1: 3257 Turnov - objekt ul. 5. května čp.26 | G1: Rozpočet : | H1: 3257/01.8
A2: Objekt : | C2: 01 Objekt ul. 5. května čp.26 | G2: Byt č. 8 - 4.NP
A4: REKAPITULACE STAVEBNÍCH DÍLŮ
B6: Stavební díl | E6: HSV | F6: PSV | G6: Dodávka | H6: Montáž | I6: HZS
A7: ='01 325701.8 Pol'!B7 -> 61 | B7: ='01 325701.8 Pol'!C7 -> Upravy povrchů vnitřní | E7: ='01 325701.8 Pol'!BA17 -> 0 | F7: ='01 325701.8 Pol'!BB17 -> 0 | G7: ='01 325701.8 Pol'!BC17 -> 0 | H7: ='01 325701.8 Pol'!BD17 -> 0 | I7: ='01 325701.8 Pol'!BE17 -> 0
A8: ='01 325701.8 Pol'!B18 -> 63 | B8: ='01 325701.8 Pol'!C18 -> Podlahy a podlahové konstrukce | E8: ='01 325701.8 Pol'!BA21 -> 0 | F8: ='01 325701.8 Pol'!BB21 -> 0 | G8: ='01 325701.8 Pol'!BC21 -> 0 | H8: ='01 325701.8 Pol'!BD21 -> 0 | I8: ='01 325701.8 Pol'!BE21 -> 0
A9: ='01 325701.8 Pol'!B22 -> 94 | B9: ='01 325701.8 Pol'!C22 -> Lešení a stavební výtahy | E9: ='01 325701.8 Pol'!BA25 -> 0 | F9: ='01 325701.8 Pol'!BB25 -> 0 | G9: ='01 325701.8 Pol'!BC25 -> 0 | H9: ='01 325701.8 Pol'!BD25 -> 0 | I9: ='01 325701.8 Pol'!BE25 -> 0
A10: ='01 325701.8 Pol'!B26 -> 96 | B10: ='01 325701.8 Pol'!C26 -> Bourání konstrukcí | E10: ='01 325701.8 Pol'!BA33 -> 0 | F10: ='01 325701.8 Pol'!BB33 -> 0 | G10: ='01 325701.8 Pol'!BC33 -> 0 | H10: ='01 325701.8 Pol'!BD33 -> 0 | I10: ='01 325701.8 Pol'!BE33 -> 0
A11: ='01 325701.8 Pol'!B34 -> 99 | B11: ='01 325701.8 Pol'!C34 -> Staveništní přesun hmot | E11: ='01 325701.8 Pol'!BA36 -> 0 | F11: ='01 325701.8 Pol'!BB36 -> 0 | G11: ='01 325701.8 Pol'!BC36 -> 0 | H11: ='01 325701.8 Pol'!BD36 -> 0 | I11: ='01 325701.8 Pol'!BE36 -> 0
A12: ='01 325701.8 Pol'!B37 -> 764 | B12: ='01 325701.8 Pol'!C37 -> Konstrukce klempířské | E12: ='01 325701.8 Pol'!BA43 -> 0 | F12: ='01 325701.8 Pol'!BB43 -> 0 | G12: ='01 325701.8 Pol'!BC43 -> 0 | H12: ='01 325701.8 Pol'!BD43 -> 0 | I12: ='01 325701.8 Pol'!BE43 -> 0
A13: ='01 325701.8 Pol'!B44 -> 766 | B13: ='01 325701.8 Pol'!C44 -> Konstrukce truhlářské | E13: ='01 325701.8 Pol'!BA66 -> 0 | F13: ='01 325701.8 Pol'!BB66 -> 0 | G13: ='01 325701.8 Pol'!BC66 -> 0 | H13: ='01 325701.8 Pol'!BD66 -> 0 | I13: ='01 325701.8 Pol'!BE66 -> 0
A14: ='01 325701.8 Pol'!B67 -> 784 | B14: ='01 325701.8 Pol'!C67 -> Malby | E14: ='01 325701.8 Pol'!BA70 -> 0 | F14: ='01 325701.8 Pol'!BB70 -> 0 | G14: ='01 325701.8 Pol'!BC70 -> 0 | H14: ='01 325701.8 Pol'!BD70 -> 0 | I14: ='01 325701.8 Pol'!BE70 -> 0
A15: ='01 325701.8 Pol'!B71 -> D96 | B15: ='01 325701.8 Pol'!C71 -> Přesuny suti a vybouraných hmot | E15: ='01 325701.8 Pol'!BA78 -> 0 | F15: ='01 325701.8 Pol'!BB78 -> 0 | G15: ='01 325701.8 Pol'!BC78 -> 0 | H15: ='01 325701.8 Pol'!BD78 -> 0 | I15: ='01 325701.8 Pol'!BE78 -> 0
B16: CELKEM OBJEKT | E16: =SUM(E7:E15) -> 0 | F16: =SUM(F7:F15) -> 0 | G16: =SUM(G7:G15) -> 0 | H16: =SUM(H7:H15) -> 0 | I16: =SUM(I7:I15) -> 0
A18: OSTATNÍ NÁKLADY STAVBY
A20: Název ONS | E20: Kč | I20: Kč
A21: Zařízení staveniště | E21: 0 | I21: =E21+F21*G21/100 -> 0 | BA21: 2
A22: Provoz investora | E22: 0 | I22: =E22+F22*G22/100 -> 0 | BA22: 1
A23: Kompletační činnost (IČD) | E23: 0 | I23: =E23+F23*G23/100 -> 0 | BA23: 2
B24: CELKEM ONS | H24: =SUM(I21:I23) -> 0

Sheet 01 325701.8 Pol
A1: Položkový rozpočet
A3: Stavba : | C3: 3257 Turnov - objekt ul. 5. května čp.26 | E3: Rozpočet: | F3: ='01 325701.8 Rek'!H1 -> 3257/01.8
A4: Objekt : | C4: 01 Objekt ul. 5. května čp.26 | E4: ='01 325701.8 Rek'!G2 -> Byt č. 8 - 4.NP
A6: P.č. | B6: Číslo položky | C6: Název položky | D6: MJ | E6: množství | F6: cena / MJ | G6: celkem (Kč) | H6: Jednotková hmotnost | I6: Celková hmotnost | J6: Jednotková dem.hmot. | K6: Celková dem.hmot.
A7: Díl: | B7: 61 | C7: Upravy povrchů vnitřní | O7: 1
A8: 1 | B8: 610991111R00 | C8: Zakrývání výplní vnitřních otvorů | D8: m2 | E8: 8.55 | G8: =E8*F8 -> 0 | H8: 4e-05 | I8: =E8*H8 -> 0.000342 | J8: 0 | K8: =E8*J8 -> 0 | O8: 2 | AA8: 1 | AB8: 1 | AC8: 1 | AZ8: 1 | BA8: =IF(AZ8=1,G8,0) -> 0 | BB8: =IF(AZ8=2,G8,0) -> 0 | BC8: =IF(AZ8=3,G8,0) -> 0 | BD8: =IF(AZ8=4,G8,0) -> 0 | BE8: =IF(AZ8=5,G8,0) -> 0 | CA8: 1 | CB8: 1
C9: Byt č. 8 90x160 cm:0,90*(1,60+0,30)*5 | E9: 8.55 | M9: Byt č. 8 90x160 cm:0,90*(1,60+0,30)*5
A10: 2 | B10: 610991199RRX | C10: Zakrývání vybavení částí bytu dle potřeb zhotovitele pro realizaci výměny oken | D10: soubor | E10: 1 | G10: =E10*F10 -> 0 | H10: 0 | I10: =E10*H10 -> 0 | J10: 0 | K10: =E10*J10 -> 0 | O10: 2 | AA10: 1 | AB10: 0 | AC10: 0 | AZ10: 1 | BA10: =IF(AZ10=1,G10,0) -> 0 | BB10: =IF(AZ10=2,G10,0) -> 0 | BC10: =IF(AZ10=3,G10,0) -> 0 | BD10: =IF(AZ10=4,G10,0) -> 0 | BE10: =IF(AZ10=5,G10,0) -> 0 | CA10: 1 | CB10: 0
A11: 3 | B11: 612409991RT2 | C11: Začištění omítek kolem oken,dveří apod. s použitím suché maltové směsi | D11: m | E11: 25 | G11: =E11*F11 -> 0 | H11: 0.00238 | I11: =E11*H11 -> 0.0595 | J11: 0 | K11: =E11*J11 -> 0 | O11: 2 | AA11: 1 | AB11: 1 | AC11: 1 | AZ11: 1 | BA11: =IF(AZ11=1,G11,0) -> 0 | BB11: =IF(AZ11=2,G11,0) -> 0 | BC11: =IF(AZ11=3,G11,0) -> 0 | BD11: =IF(AZ11=4,G11,0) -> 0 | BE11: =IF(AZ11=5,G11,0) -> 0 | CA11: 1 | CB11: 1
C12: Byt č. 8 90x160 cm:(0,90+1,60)*2*5 | E12: 25 | M12: Byt č. 8 90x160 cm:(0,90+1,60)*2*5
A13: 4 | B13: 612425931RT2 | C13: Omítka vápenná vnitřního ostění - štuková s použitím suché maltové směsi | D13: m2 | E13: 6.15 | G13: =E13*F13 -> 0 | H13: 0.03491 | I13: =E13*H13 -> 0.2146965 | J13: 0 | K13: =E13*J13 -> 0 | O13: 2 | AA13: 1 | AB13: 1 | AC13: 1 | AZ13: 1 | BA13: =IF(AZ13=1,G13,0) -> 0 | BB13: =IF(AZ13=2,G13,0) -> 0 | BC13: =IF(AZ13=3,G13,0) -> 0 | BD13: =IF(AZ13=4,G13,0) -> 0 | BE13: =IF(AZ13=5,G13,0) -> 0 | CA13: 1 | CB13: 1
C14: Byt č. 8 90x160 cm:0,30*(0,90+2*1,60)*5 | E14: 6.15 | M14: Byt č. 8 90x160 cm:0,30*(0,90+2*1,60)*5
A15: 5 | B15: 622473187RT2 | C15: Příplatek za okenní lištu (APU) - montáž včetně dodávky lišty | D15: m | E15: 20.5 | G15: =E15*F15 -> 0 | H15: 0.00015 | I15: =E15*H15 -> 0.003075 | J15: 0 | K15: =E15*J15 -> 0 | O15: 2 | AA15: 1 | AB15: 1 | AC15: 1 | AZ15: 1 | BA15: =IF(AZ15=1,G15,0) -> 0 | BB15: =IF(AZ15=2,G15,0) -> 0 | BC15: =IF(AZ15=3,G15,0) -> 0 | BD15: =IF(AZ15=4,G15,0) -> 0 | BE15: =IF(AZ15=5,G15,0) -> 0 | CA15: 1 | CB15: 1
C16: Byt č. 8 90x160 cm:(0,90+2*1,60)*5 | E16: 20.5 | M16: Byt č. 8 90x160 cm:(0,90+2*1,60)*5
B17: Celkem za | C17: 61 Upravy povrchů vnitřní | G17: =SUM(G7:G16) -> 0 | I17: =SUM(I7:I16) -> 0.2776135 | K17: =SUM(K7:K16) -> 0 | O17: 4 | BA17: =SUM(BA7:BA16) -> 0 | BB17: =SUM(BB7:BB16) -> 0 | BC17: =SUM(BC7:BC16) -> 0 | BD17: =SUM(BD7:BD16) -> 0 | BE17: =SUM(BE7:BE16) -> 0
A18: Díl: | B18: 63 | C18: Podlahy a podlahové konstrukce | O18: 1
A19: 6 | B19: 632411104R00 | C19: Vyrovnávací stěrka, ruční zprac. tl.4 mm | D19: m2 | E19: 1.125 | G19: =E19*F19 -> 0 | H19: 0.007 | I19: =E19*H19 -> 0.007875 | J19: 0 | K19: =E19*J19 -> 0 | O19: 2 | AA19: 1 | AB19: 1 | AC19: 1 | AZ19: 1 | BA19: =IF(AZ19=1,G19,0) -> 0 | BB19: =IF(AZ19=2,G19,0) -> 0 | BC19: =IF(AZ19=3,G19,0) -> 0 | BD19: =IF(AZ19=4,G19,0) -> 0 | BE19: =IF(AZ19=5,G19,0) -> 0 | CA19: 1 | CB19: 1
C20: Byt č. 8 90x160 cm - parapet:0,90*0,25*5 | E20: 1.125 | M20: Byt č. 8 90x160 cm - parapet:0,90*0,25*5
B21: Celkem za | C21: 63 Podlahy a podlahové konstrukce | G21: =SUM(G18:G20) -> 0 | I21: =SUM(I18:I20) -> 0.007875 | K21: =SUM(K18:K20) -> 0 | O21: 4 | BA21: =SUM(BA18:BA20) -> 0 | BB21: =SUM(BB18:BB20) -> 0 | BC21: =SUM(BC18:BC20) -> 0 | BD21: =SUM(BD18:BD20) -> 0 | BE21: =SUM(BE18:BE20) -> 0
A22: Díl: | B22: 94 | C22: Lešení a stavební výtahy | O22: 1
A23: 7 | B23: 941955001R00 | C23: Lešení lehké pomocné, výška podlahy do 1,2 m | D23: m2 | E23: 12 | G23: =E23*F23 -> 0 | H23: 0.00121 | I23: =E23*H23 -> 0.01452 | J23: 0 | K23: =E23*J23 -> 0 | O23: 2 | AA23: 1 | AB23: 1 | AC23: 1 | AZ23: 1 | BA23: =IF(AZ23=1,G23,0) -> 0 | BB23: =IF(AZ23=2,G23,0) -> 0 | BC23: =IF(AZ23=3,G23,0) -> 0 | BD23: =IF(AZ23=4,G23,0) -> 0 | BE23: =IF(AZ23=5,G23,0) -> 0 | CA23: 1 | CB23: 1
C24: Byt č. 8 90x160 cm:1,20*1,00*2*5 | E24: 12 | M24: Byt č. 8 90x160 cm:1,20*1,00*2*5
B25: Celkem za | C25: 94 Lešení a stavební výtahy | G25: =SUM(G22:G24) -> 0 | I25: =SUM(I22:I24) -> 0.01452 | K25: =SUM(K22:K24) -> 0 | O25: 4 | BA25: =SUM(BA22:BA24) -> 0 | BB25: =SUM(BB22:BB24) -> 0 | BC25: =SUM(BC22:BC24) -> 0 | BD25: =SUM(BD22:BD24) -> 0 | BE25: =SUM(BE22:BE24) -> 0
A26: Díl: | B26: 96 | C26: Bourání konstrukcí | O26: 1
A27: 8 | B27: 967031132R00 | C27: Přisekání rovných ostění cihelných na MVC | D27: m2 | E27: 5.125 | G27: =E27*F27 -> 0 | H27: 0 | I27: =E27*H27 -> 0 | J27: -0.055 | K27: =E27*J27 -> -0.281875 | O27: 2 | AA27: 1 | AB27: 1 | AC27: 1 | AZ27: 1 | BA27: =IF(AZ27=1,G27,0) -> 0 | BB27: =IF(AZ27=2,G27,0) -> 0 | BC27: =IF(AZ27=3,G27,0) -> 0 | BD27: =IF(AZ27=4,G27,0) -> 0 | BE27: =IF(AZ27=5,G27,0) -> 0 | CA27: 1 | CB27: 1
C28: Byt č. 8 90x160 cm:0,25*(0,90+2*1,60)*5 | E28: 5.125 | M28: Byt č. 8 90x160 cm:0,25*(0,90+2*1,60)*5
A29: 9 | B29: 968061112R00 | C29: Vyvěšení dřevěných okenních křídel pl. do 1,5 m2 | D29: kus | E29: 5 | G29: =E29*F29 -> 0 | H29: 0 | I29: =E29*H29 -> 0 | J29: 0 | K29: =E29*J29 -> 0 | O29: 2 | AA29: 1 | AB29: 1 | AC29: 1 | AZ29: 1 | BA29: =IF(AZ29=1,G29,0) -> 0 | BB29: =IF(AZ29=2,G29,0) -> 0 | BC29: =IF(AZ29=3,G29,0) -> 0 | BD29: =IF(AZ29=4,G29,0) -> 0 | BE29: =IF(AZ29=5,G29,0) -> 0 | CA29: 1 | CB29: 1
C30: Byt č. 8 90x160 cm:1*5 | E30: 5 | M30: Byt č. 8 90x160 cm:1*5
A31: 10 | B31: 968062355RRX | C31: Vybourání dřevěných rámů oken dvojitých pl. 2 m2 včetně parapetů oken | D31: m2 | E31: 7.2 | G31: =E31*F31 -> 0 | H31: 0.001 | I31: =E31*H31 -> 0.0072 | J31: -0.062 | K31: =E31*J31 -> -0.4464 | O31: 2 | AA31: 1 | AB31: 1 | AC31: 1 | AZ31: 1 | BA31: =IF(AZ31=1,G31,0) -> 0 | BB31: =IF(AZ31=2,G31,0) -> 0 | BC31: =IF(AZ31=3,G31,0) -> 0 | BD31: =IF(AZ31=4,G31,0) -> 0 | BE31: =IF(AZ31=5,G31,0) -> 0 | CA31: 1 | CB31: 1
C32: Byt č. 8 90x160 cm:0,90*1,60*5 | E32: 7.2 | M32: Byt č. 8 90x160 cm:0,90*1,60*5
B33: Celkem za | C33: 96 Bourání konstrukcí | G33: =SUM(G26:G32) -> 0 | I33: =SUM(I26:I32) -> 0.0072 | K33: =SUM(K26:K32) -> -0.728275 | O33: 4 | BA33: =SUM(BA26:BA32) -> 0 | BB33: =SUM(BB26:BB32) -> 0 | BC33: =SUM(BC26:BC32) -> 0 | BD33: =SUM(BD26:BD32) -> 0 | BE33: =SUM(BE26:BE32) -> 0
A34: Díl: | B34: 99 | C34: Staveništní přesun hmot | O34: 1
A35: 11 | B35: 999281111R00 | C35: Přesun hmot pro opravy a údržbu do výšky 25 m | D35: t | E35: 0.3072085 | G35: =E35*F35 -> 0 | H35: 0 | I35: =E35*H35 -> 0 | K35: =E35*J35 -> 0 | O35: 2 | AA35: 7 | AB35: 1 | AC35: 2 | AZ35: 1 | BA35: =IF(AZ35=1,G35,0) -> 0 | BB35: =IF(AZ35=2,G35,0) -> 0 | BC35: =IF(AZ35=3,G35,0) -> 0 | BD35: =IF(AZ35=4,G35,0) -> 0 | BE35: =IF(AZ35=5,G35,0) -> 0 | CA35: 7 | CB35: 1
B36: Celkem za | C36: 99 Staveništní přesun hmot | G36: =SUM(G34:G35) -> 0 | I36: =SUM(I34:I35) -> 0 | K36: =SUM(K34:K35) -> 0 | O36: 4 | BA36: =SUM(BA34:BA35) -> 0 | BB36: =SUM(BB34:BB35) -> 0 | BC36: =SUM(BC34:BC35) -> 0 | BD36: =SUM(BD34:BD35) -> 0 | BE36: =SUM(BE34:BE35) -> 0
A37: Díl: | B37: 764 | C37: Konstrukce klempířské | O37: 1
A38: 12 | B38: 764231921RRX | C38: Oprava lemov. zdí Cu rš 250 mm Přichycení stávajícího oplechování k novému oknu | D38: m | E38: 20.5 | G38: =E38*F38 -> 0 | H38: 0.00157 | I38: =E38*H38 -> 0.032185 | J38: 0 | K38: =E38*J38 -> 0 | O38: 2 | AA38: 1 | AB38: 7 | AC38: 7 | AZ38: 2 | BA38: =IF(AZ38=1,G38,0) -> 0 | BB38: =IF(AZ38=2,G38,0) -> 0 | BC38: =IF(AZ38=3,G38,0) -> 0 | BD38: =IF(AZ38=4,G38,0) -> 0 | BE38: =IF(AZ38=5,G38,0) -> 0 | CA38: 1 | CB38: 7
C39: Byt č. 8 90x160 cm:(0,90+2*1,60)*5 | E39: 20.5 | M39: Byt č. 8 90x160 cm:(0,90+2*1,60)*5
A40: 13 | B40: 764510950RRX | C40: Oprava oplechování parapetů Cu,rš 330 mm Přichycení stávajícího parapetu k novému oknu | D40: m | E40: 4.5 | G40: =E40*F40 -> 0 | H40: 0.00361 | I40: =E40*H40 -> 0.016245 | J40: 0 | K40: =E40*J40 -> 0 | O40: 2 | AA40: 1 | AB40: 7 | AC40: 7 | AZ40: 2 | BA40: =IF(AZ40=1,G40,0) -> 0 | BB40: =IF(AZ40=2,G40,0) -> 0 | BC40: =IF(AZ40=3,G40,0) -> 0 | BD40: =IF(AZ40=4,G40,0) -> 0 | BE40: =IF(AZ40=5,G40,0) -> 0 | CA40: 1 | CB40: 7
C41: Byt č. 8 90x160 cm:0,90*5 | E41: 4.5 | M41: Byt č. 8 90x160 cm:0,90*5
A42: 14 | B42: 998764103R00 | C42: Přesun hmot pro klempířské konstr., výšky do 24 m | D42: t | E42: 0.04843 | G42: =E42*F42 -> 0 | H42: 0 | I42: =E42*H42 -> 0 | K42: =E42*J42 -> 0 | O42: 2 | AA42: 7 | AB42: 1001 | AC42: 5 | AZ42: 2 | BA42: =IF(AZ42=1,G42,0) -> 0 | BB42: =IF(AZ42=2,G42,0) -> 0 | BC42: =IF(AZ42=3,G42,0) -> 0 | BD42: =IF(AZ42=4,G42,0) -> 0 | BE42: =IF(AZ42=5,G42,0) -> 0 | CA42: 7 | CB42: 1001
B43: Celkem za | C43: 764 Konstrukce klempířské | G43: =SUM(G37:G42) -> 0 | I43: =SUM(I37:I42) -> 0.04843 | K43: =SUM(K37:K42) -> 0 | O43: 4 | BA43: =SUM(BA37:BA42) -> 0 | BB43: =SUM(BB37:BB42) -> 0 | BC43: =SUM(BC37:BC42) -> 0 | BD43: =SUM(BD37:BD42) -> 0 | BE43: =SUM(BE37:BE42) -> 0
A44: Díl: | B44: 766 | C44: Konstrukce truhlářské | O44: 1
A45: 15 | B45: 766601211RT1 | C45: Těsnění okenní spáry, ostění, PT fólie+ PP páska folie š. 70 mm, páska tl. 2 mm, š. 10 mm | D45: m | E45: 25 | G45: =E45*F45 -> 0 | H45: 0 | I45: =E45*H45 -> 0 | J45: 0 | K45: =E45*J45 -> 0 | O45: 2 | AA45: 1 | AB45: 7 | AC45: 7 | AZ45: 2 | BA45: =IF(AZ45=1,G45,0) -> 0 | BB45: =IF(AZ45=2,G45,0) -> 0 | BC45: =IF(AZ45=3,G45,0) -> 0 | BD45: =IF(AZ45=4,G45,0) -> 0 | BE45: =IF(AZ45=5,G45,0) -> 0 | CA45: 1 | CB45: 7
C46: Instalace a dodávka parotěsné okenní fólie a paropropustné expanzní pásky. | L46: Instalace a dodávka parotěsné okenní fólie a paropropustné expanzní pásky. | O46: 3
C47: Byt č. 8 90x160 cm:(0,90+1,60)*2*5 | E47: 25 | M47: Byt č. 8 90x160 cm:(0,90+1,60)*2*5
A48: 16 | B48: 766694111R00 | C48: Montáž parapetních desek š.do 30 cm,dl.do 100 cm | D48: kus | E48: 4.5 | G48: =E48*F48 -> 0 | H48: 1e-05 | I48: =E48*H48 -> 4.5e-05 | J48: 0 | K48: =E48*J48 -> 0 | O48: 2 | AA48: 1 | AB48: 7 | AC48: 7 | AZ48: 2 | BA48: =IF(AZ48=1,G48,0) -> 0 | BB48: =IF(AZ48=2,G48,0) -> 0 | BC48: =IF(AZ48=3,G48,0) -> 0 | BD48: =IF(AZ48=4,G48,0) -> 0 | BE48: =IF(AZ48=5,G48,0) -> 0 | CA48: 1 | CB48: 7
C49: Byt č. 8 90x160 cm:0,90*5 | E49: 4.5 | M49: Byt č. 8 90x160 cm:0,90*5
A50: 17 | B50: 766711001R00 | C50: Montáž oken a balkonových dveří s vypěněním | D50: m | E50: 25 | G50: =E50*F50 -> 0 | H50: 2e-05 | I50: =E50*H50 -> 0.0005 | J50: 0 | K50: =E50*J50 -> 0 | O50: 2 | AA50: 1 | AB50: 7 | AC50: 7 | AZ50: 2 | BA50: =IF(AZ50=1,G50,0) -> 0 | BB50: =IF(AZ50=2,G50,0) -> 0 | BC50: =IF(AZ50=3,G50,0) -> 0 | BD50: =IF(AZ50=4,G50,0) -> 0 | BE50: =IF(AZ50=5,G50,0) -> 0 | CA50: 1 | CB50: 7
C51: Montáž dřevěných oken a dveří včetně dodávky a montáže PU pěny a spojovacích prostředků. | L51: Montáž dřevěných oken a dveří včetně dodávky a montáže PU pěny a spojovacích prostředků. | O51: 3
C52: Byt č. 8 90x160 cm:(0,90+1,60)*2*5 | E52: 25 | M52: Byt č. 8 90x160 cm:(0,90+1,60)*2*5
A53: 18 | B53: 61111436 | C53: Okno dřevěné 1křídl. OS1A 90x160 cm Profilace rámů a příček dle požadavku NPÚ | D53: kus | E53: 5 | G53: =E53*F53 -> 0 | H53: 0.046 | I53: =E53*H53 -> 0.23 | K53: =E53*J53 -> 0 | O53: 2 | AA53: 3 | AB53: 7 | AC53: 61111436 | AZ53: 2 | BA53: =IF(AZ53=1,G53,0) -> 0 | BB53: =IF(AZ53=2,G53,0) -> 0 | BC53: =IF(AZ53=3,G53,0) -> 0 | BD53: =IF(AZ53=4,G53,0) -> 0 | BE53: =IF(AZ53=5,G53,0) -> 0 | CA53: 3 | CB53: 7
C54: profil EURO | L54: profil EURO | O54: 3
C55: jednokřídlové, otevíravé a sklápěcí | L55: jednokřídlové, otevíravé a sklápěcí | O55: 3
C56: materiál: třívrstvový hranolek SM | L56: materiál: třívrstvový hranolek SM | O56: 3
C57: sklo izolační - trojsklo | L57: sklo izolační - trojsklo | O57: 3
C58: okapnice: hliníková | L58: okapnice: hliníková | O58: 3
C59: nátěr dle stávající barvy v objektu | L59: nátěr dle stávající barvy v objektu | O59: 3
C60: Poznámka: | L60: Poznámka: | O60: 3
C61: Před výrobou oken si zhotovitel zaměří každý otvor pro dodávku nového okna | L61: Před výrobou oken si zhotovitel zaměří každý otvor pro dodávku nového okna | O61: 3
C62: Byt č. 8:5 | E62: 5 | M62: Byt č. 8:5
A63: 19 | B63: 61187551 | C63: Deska parapetní šířka 25 cm | D63: m | E63: 4.95 | G63: =E63*F63 -> 0 | H63: 0.00413 | I63: =E63*H63 -> 0.0204435 | K63: =E63*J63 -> 0 | O63: 2 | AA63: 3 | AB63: 7 | AC63: 61187551 | AZ63: 2 | BA63: =IF(AZ63=1,G63,0) -> 0 | BB63: =IF(AZ63=2,G63,0) -> 0 | BC63: =IF(AZ63=3,G63,0) -> 0 | BD63: =IF(AZ63=4,G63,0) -> 0 | BE63: =IF(AZ63=5,G63,0) -> 0 | CA63: 3 | CB63: 7
C64: Byt č. 8 90x160 cm:0,90*5*1,1 | E64: 4.95 | M64: Byt č. 8 90x160 cm:0,90*5*1,1
A65: 20 | B65: 998766103R00 | C65: Přesun hmot pro truhlářské konstr., výšky do 24 m | D65: t | E65: 0.2509885 | G65: =E65*F65 -> 0 | H65: 0 | I65: =E65*H65 -> 0 | K65: =E65*J65 -> 0 | O65: 2 | AA65: 7 | AB65: 1001 | AC65: 5 | AZ65: 2 | BA65: =IF(AZ65=1,G65,0) -> 0 | BB65: =IF(AZ65=2,G65,0) -> 0 | BC65: =IF(AZ65=3,G65,0) -> 0 | BD65: =IF(AZ65=4,G65,0) -> 0 | BE65: =IF(AZ65=5,G65,0) -> 0 | CA65: 7 | CB65: 1001
B66: Celkem za | C66: 766 Konstrukce truhlářské | G66: =SUM(G44:G65) -> 0 | I66: =SUM(I44:I65) -> 0.2509885 | K66: =SUM(K44:K65) -> 0 | O66: 4 | BA66: =SUM(BA44:BA65) -> 0 | BB66: =SUM(BB44:BB65) -> 0 | BC66: =SUM(BC44:BC65) -> 0 | BD66: =SUM(BD44:BD65) -> 0 | BE66: =SUM(BE44:BE65) -> 0
A67: Díl: | B67: 784 | C67: Malby | O67: 1
A68: 21 | B68: 784195212RRX | C68: Malba Primalex Plus, bílá, s penetrací, 2 x ostění šířky do 50cm | D68: m | E68: 20.5 | G68: =E68*F68 -> 0 | H68: 0.00015 | I68: =E68*H68 -> 0.003075 | J68: 0 | K68: =E68*J68 -> 0 | O68: 2 | AA68: 1 | AB68: 7 | AC68: 7 | AZ68: 2 | BA68: =IF(AZ68=1,G68,0) -> 0 | BB68: =IF(AZ68=2,G68,0) -> 0 | BC68: =IF(AZ68=3,G68,0) -> 0 | BD68: =IF(AZ68=4,G68,0) -> 0 | BE68: =IF(AZ68=5,G68,0) -> 0 | CA68: 1 | CB68: 7
C69: Byt č. 8 90x160 cm:(0,90+2*1,60)*5 | E69: 20.5 | M69: Byt č. 8 90x160 cm:(0,90+2*1,60)*5
B70: Celkem za | C70: 784 Malby | G70: =SUM(G67:G69) -> 0 | I70: =SUM(I67:I69) -> 0.003075 | K70: =SUM(K67:K69) -> 0 | O70: 4 | BA70: =SUM(BA67:BA69) -> 0 | BB70: =SUM(BB67:BB69) -> 0 | BC70: =SUM(BC67:BC69) -> 0 | BD70: =SUM(BD67:BD69) -> 0 | BE70: =SUM(BE67:BE69) -> 0
A71: Díl: | B71: D96 | C71: Přesuny suti a vybouraných hmot | O71: 1
A72: 22 | B72: 979011211R00 | C72: Svislá doprava suti a vybour. hmot za 2.NP nošením | D72: t | E72: 0.728275 | G72: =E72*F72 -> 0 | H72: 0 | I72: =E72*H72 -> 0 | K72: =E72*J72 -> 0 | O72: 2 | AA72: 8 | AB72: 0 | AC72: 3 | AZ72: 1 | BA72: =IF(AZ72=1,G72,0) -> 0 | BB72: =IF(AZ72=2,G72,0) -> 0 | BC72: =IF(AZ72=3,G72,0) -> 0 | BD72: =IF(AZ72=4,G72,0) -> 0 | BE72: =IF(AZ72=5,G72,0) -> 0 | CA72: 8 | CB72: 0
A73: 23 | B73: 979011219R00 | C73: Přípl.k svislé dopr.suti za každé další NP nošením | D73: t | E73: 1.45655 | G73: 0 | H73: 0 | I73: 0 | K73: 0 | O73: 2 | AA73: 8 | AB73: 0 | AC73: 3 | AZ73: 1 | BA73: 0 | BB73: 0 | BC73: 0 | BD73: 0 | BE73: 0 | CA73: 8 | CB73: 0
A74: 24 | B74: 979081111R00 | C74: Odvoz suti a vybour. hmot na skládku zhotovitele | D74: t | E74: 0.728275 | G74: 0 | H74: 0 | I74: 0 | K74: 0 | O74: 2 | AA74: 8 | AB74: 0 | AC74: 3 | AZ74: 1 | BA74: 0 | BB74: 0 | BC74: 0 | BD74: 0 | BE74: 0 | CA74: 8 | CB74: 0
A75: 25 | B75: 979082111R00 | C75: Vnitrostaveništní doprava suti do 10 m | D75: t | E75: 0.728275 | G75: 0 | H75: 0 | I75: 0 | K75: 0 | O75: 2 | AA75: 8 | AB75: 0 | AC75: 3 | AZ75: 1 | BA75: 0 | BB75: 0 | BC75: 0 | BD75: 0 | BE75: 0 | CA75: 8 | CB75: 0
A76: 26 | B76: 979082121R00 | C76: Příplatek k vnitrost. dopravě suti za dalších 5 m | D76: t | E76: 14.5655 | G76: 0 | H76: 0 | I76: 0 | K76: 0 | O76: 2 | AA76: 8 | AB76: 0 | AC76: 3 | AZ76: 1 | BA76: 0 | BB76: 0 | BC76: 0 | BD76: 0 | BE76: 0 | CA76: 8 | CB76: 0
A77: 27 | B77: 979990107R00 | C77: Poplatek za skládku suti - směs betonu,cihel,dřeva | D77: t | E77: 0.728275 | G77: 0 | H77: 0 | I77: 0 | K77: 0 | O77: 2 | AA77: 8 | AB77: 0 | AC77: 3 | AZ77: 1 | BA77: 0 | BB77: 0 | BC77: 0 | BD77: 0 | BE77: 0 | CA77: 8 | CB77: 0
B78: Celkem za | C78: D96 Přesuny suti a vybouraných hmot | G78: =SUM(G71:G77) -> 0 | I78: =SUM(I71:I77) -> 0 | K78: =SUM(K71:K77) -> 0 | O78: 4 | BA78: =SUM(BA71:BA77) -> 0 | BB78: =SUM(BB71:BB77) -> 0 | BC78: =SUM(BC71:BC77) -> 0 | BD78: =SUM(BD71:BD77) -> 0 | BE78: =SUM(BE71:BE77) -> 0

Sheet 01 325701.9 KL
A1: POLOŽKOVÝ ROZPOČET
A2: Rozpočet | C2: 3257/01.9 | D2: Chodba - 2. - 3.NP | F2: JKSO | G2: 803.5
A4: Objekt | F4: SKP
A5: 01 | C5: Objekt ul. 5. května čp.26 | F5: Měrná jednotka | G5: m3
A6: Stavba | F6: Počet jednotek | G6: 0
A7: 3257 | C7: Turnov - objekt ul. 5. května čp.26 | F7: Náklady na m.j. | G7: =IF(G6=0,,ROUND((F30+F32)/G6,1)) -> 0
A8: Projektant | F8: Typ rozpočtu
A9: Zpracovatel projektu
A10: Objednatel | C10: Město TURNOV
A11: Dodavatel | C11: . | F11: Zakázkové číslo
A12: Rozpočtoval | F12: Počet listů
A13: ROZPOČTOVÉ NÁKLADY
A14: Základní rozpočtové náklady | D14: Ostatní náklady stavby
B15: HSV celkem | C15: ='01 325701.9 Rek'!E16 -> 0 | D15: ='01 325701.9 Rek'!A21 -> Zařízení staveniště | G15: ='01 325701.9 Rek'!I21 -> 0
A16: Z | B16: PSV celkem | C16: ='01 325701.9 Rek'!F16 -> 0 | D16: ='01 325701.9 Rek'!A22 -> Provoz investora | G16: ='01 325701.9 Rek'!I22 -> 0
A17: R | B17: M práce celkem | C17: ='01 325701.9 Rek'!H16 -> 0 | D17: ='01 325701.9 Rek'!A23 -> Kompletační činnost (IČD) | G17: ='01 325701.9 Rek'!I23 -> 0
A18: N | B18: M dodávky celkem | C18: ='01 325701.9 Rek'!G16 -> 0
A19: ZRN celkem | C19: =SUM(C15:C18) -> 0
A21: HZS | C21: ='01 325701.9 Rek'!I16 -> 0
A22: ZRN+HZS | C22: =C19+C21 -> 0
A23: ZRN+ost.náklady+HZS | C23: =C22+G23 -> 0 | D23: Ostatní náklady celkem | G23: ='01 325701.9 Rek'!H24 -> 0
A24: Vypracoval | D24: Za zhotovitele | F24: Za objednatele
A25: Jméno : | D25: Jméno : | F25: Jméno :
A26: Datum : | D26: Datum : | F26: Datum :
A28: Podpis : | D28: Podpis: | F28: Podpis:
A30: Základ pro DPH | C30: 15 | D30: % | F30: =C23-F32 -> 0
A31: DPH | C31: =C30 -> 15 | D31: % | F31: =ROUND(PRODUCT(F30,C31/100),0) -> 0
A32: Základ pro DPH | C32: 0 | D32: % | F32: 0
A33: DPH | C33: =C32 -> 0 | D33: % | F33: =ROUND(PRODUCT(F32,C33/100),0) -> 0
A34: CENA ZA OBJEKT CELKEM | F34: =ROUND(SUM(F30:F33),0) -> 0
A36: Poznámka :

Sheet 01 325701.9 Rek
A1: Stavba : | C1: 3257 Turnov - objekt ul. 5. května čp.26 | G1: Rozpočet : | H1: 3257/01.9
A2: Objekt : | C2: 01 Objekt ul. 5. května čp.26 | G2: Chodba - 2. - 3.NP
A4: REKAPITULACE STAVEBNÍCH DÍLŮ
B6: Stavební díl | E6: HSV | F6: PSV | G6: Dodávka | H6: Montáž | I6: HZS
A7: ='01 325701.9 Pol'!B7 -> 61 | B7: ='01 325701.9 Pol'!C7 -> Upravy povrchů vnitřní | E7: ='01 325701.9 Pol'!BA16 -> 0 | F7: ='01 325701.9 Pol'!BB16 -> 0 | G7: ='01 325701.9 Pol'!BC16 -> 0 | H7: ='01 325701.9 Pol'!BD16 -> 0 | I7: ='01 325701.9 Pol'!BE16 -> 0
A8: ='01 325701.9 Pol'!B17 -> 63 | B8: ='01 325701.9 Pol'!C17 -> Podlahy a podlahové konstrukce | E8: ='01 325701.9 Pol'!BA20 -> 0 | F8: ='01 325701.9 Pol'!BB20 -> 0 | G8: ='01 325701.9 Pol'!BC20 -> 0 | H8: ='01 325701.9 Pol'!BD20 -> 0 | I8: ='01 325701.9 Pol'!BE20 -> 0
A9: ='01 325701.9 Pol'!B21 -> 94 | B9: ='01 325701.9 Pol'!C21 -> Lešení a stavební výtahy | E9: ='01 325701.9 Pol'!BA24 -> 0 | F9: ='01 325701.9 Pol'!BB24 -> 0 | G9: ='01 325701.9 Pol'!BC24 -> 0 | H9: ='01 325701.9 Pol'!BD24 -> 0 | I9: ='01 325701.9 Pol'!BE24 -> 0
A10: ='01 325701.9 Pol'!B25 -> 96 | B10: ='01 325701.9 Pol'!C25 -> Bourání konstrukcí | E10: ='01 325701.9 Pol'!BA32 -> 0 | F10: ='01 325701.9 Pol'!BB32 -> 0 | G10: ='01 325701.9 Pol'!BC32 -> 0 | H10: ='01 325701.9 Pol'!BD32 -> 0 | I10: ='01 325701.9 Pol'!BE32 -> 0
A11: ='01 325701.9 Pol'!B33 -> 99 | B11: ='01 325701.9 Pol'!C33 -> Staveništní přesun hmot | E11: ='01 325701.9 Pol'!BA35 -> 0 | F11: ='01 325701.9 Pol'!BB35 -> 0 | G11: ='01 325701.9 Pol'!BC35 -> 0 | H11: ='01 325701.9 Pol'!BD35 -> 0 | I11: ='01 325701.9 Pol'!BE35 -> 0
A12: ='01 325701.9 Pol'!B36 -> 764 | B12: ='01 325701.9 Pol'!C36 -> Konstrukce klempířské | E12: ='01 325701.9 Pol'!BA40 -> 0 | F12: ='01 325701.9 Pol'!BB40 -> 0 | G12: ='01 325701.9 Pol'!BC40 -> 0 | H12: ='01 325701.9 Pol'!BD40 -> 0 | I12: ='01 325701.9 Pol'!BE40 -> 0
A13: ='01 325701.9 Pol'!B41 -> 766 | B13: ='01 325701.9 Pol'!C41 -> Konstrukce truhlářské | E13: ='01 325701.9 Pol'!BA63 -> 0 | F13: ='01 325701.9 Pol'!BB63 -> 0 | G13: ='01 325701.9 Pol'!BC63 -> 0 | H13: ='01 325701.9 Pol'!BD63 -> 0 | I13: ='01 325701.9 Pol'!BE63 -> 0
A14: ='01 325701.9 Pol'!B64 -> 784 | B14: ='01 325701.9 Pol'!C64 -> Malby | E14: ='01 325701.9 Pol'!BA67 -> 0 | F14: ='01 325701.9 Pol'!BB67 -> 0 | G14: ='01 325701.9 Pol'!BC67 -> 0 | H14: ='01 325701.9 Pol'!BD67 -> 0 | I14: ='01 325701.9 Pol'!BE67 -> 0
A15: ='01 325701.9 Pol'!B68 -> D96 | B15: ='01 325701.9 Pol'!C68 -> Přesuny suti a vybouraných hmot | E15: ='01 325701.9 Pol'!BA75 -> 0 | F15: ='01 325701.9 Pol'!BB75 -> 0 | G15: ='01 325701.9 Pol'!BC75 -> 0 | H15: ='01 325701.9 Pol'!BD75 -> 0 | I15: ='01 325701.9 Pol'!BE75 -> 0
B16: CELKEM OBJEKT | E16: =SUM(E7:E15) -> 0 | F16: =SUM(F7:F15) -> 0 | G16: =SUM(G7:G15) -> 0 | H16: =SUM(H7:H15) -> 0 | I16: =SUM(I7:I15) -> 0
A18: OSTATNÍ NÁKLADY STAVBY
A20: Název VRN | E20: Kč | I20: Kč
A21: Zařízení staveniště | E21: 0 | I21: =E21+F21*G21/100 -> 0 | BA21: 2
A22: Provoz investora | E22: 0 | I22: =E22+F22*G22/100 -> 0 | BA22: 1
A23: Kompletační činnost (IČD) | E23: 0 | I23: =E23+F23*G23/100 -> 0 | BA23: 2
B24: CELKEM VRN | H24: =SUM(I21:I23) -> 0

Sheet 01 325701.9 Pol
A1: Položkový rozpočet
A3: Stavba : | C3: 3257 Turnov - objekt ul. 5. května čp.26 | E3: Rozpočet: | F3: ='01 325701.9 Rek'!H1 -> 3257/01.9
A4: Objekt : | C4: 01 Objekt ul. 5. května čp.26 | E4: ='01 325701.9 Rek'!G2 -> Chodba - 2. - 3.NP
A6: P.č. | B6: Číslo položky | C6: Název položky | D6: MJ | E6: množství | F6: cena / MJ | G6: celkem (Kč) | H6: Jednotková hmotnost | I6: Celková hmotnost | J6: Jednotková dem.hmot. | K6: Celková dem.hmot.
A7: Díl: | B7: 61 | C7: Upravy povrchů vnitřní | O7: 1
A8: 1 | B8: 610991111R00 | C8: Zakrývání výplní vnitřních otvorů | D8: m2 | E8: 5.7 | G8: =E8*F8 -> 0 | H8: 4e-05 | I8: =E8*H8 -> 0.000228 | J8: 0 | K8: =E8*J8 -> 0 | O8: 2 | AA8: 1 | AB8: 1 | AC8: 1 | AZ8: 1 | BA8: =IF(AZ8=1,G8,0) -> 0 | BB8: =IF(AZ8=2,G8,0) -> 0 | BC8: =IF(AZ8=3,G8,0) -> 0 | BD8: =IF(AZ8=4,G8,0) -> 0 | BE8: =IF(AZ8=5,G8,0) -> 0 | CA8: 1 | CB8: 1
C9: Chodba 2. - 3. NP 150x160 cm:1,50*(1,60+0,30)*2 | E9: 5.7 | M9: Chodba 2. - 3. NP 150x160 cm:1,50*(1,60+0,30)*2
A10: 2 | B10: 612409991RT2 | C10: Začištění omítek kolem oken,dveří apod. s použitím suché maltové směsi | D10: m | E10: 12.4 | G10: =E10*F10 -> 0 | H10: 0.00238 | I10: =E10*H10 -> 0.029512 | J10: 0 | K10: =E10*J10 -> 0 | O10: 2 | AA10: 1 | AB10: 1 | AC10: 1 | AZ10: 1 | BA10: =IF(AZ10=1,G10,0) -> 0 | BB10: =IF(AZ10=2,G10,0) -> 0 | BC10: =IF(AZ10=3,G10,0) -> 0 | BD10: =IF(AZ10=4,G10,0) -> 0 | BE10: =IF(AZ10=5,G10,0) -> 0 | CA10: 1 | CB10: 1
C11: Chodba 2. - 3. NP 150x160 cm:(1,50+1,60)*2*2 | E11: 12.4 | M11: Chodba 2. - 3. NP 150x160 cm:(1,50+1,60)*2*2
A12: 3 | B12: 612425931RT2 | C12: Omítka vápenná vnitřního ostění - štuková s použitím suché maltové směsi | D12: m2 | E12: 3.29 | G12: =E12*F12 -> 0 | H12: 0.03491 | I12: =E12*H12 -> 0.1148539 | J12: 0 | K12: =E12*J12 -> 0 | O12: 2 | AA12: 1 | AB12: 1 | AC12: 1 | AZ12: 1 | BA12: =IF(AZ12=1,G12,0) -> 0 | BB12: =IF(AZ12=2,G12,0) -> 0 | BC12: =IF(AZ12=3,G12,0) -> 0 | BD12: =IF(AZ12=4,G12,0) -> 0 | BE12: =IF(AZ12=5,G12,0) -> 0 | CA12: 1 | CB12: 1
C13: Chodba 2. - 3. NP 150x160 cm:0,35*(1,50+2*1,60)*2 | E13: 3.29 | M13: Chodba 2. - 3. NP 150x160 cm:0,35*(1,50+2*1,60)*2
A14: 4 | B14: 622473187RT2 | C14: Příplatek za okenní lištu (APU) - montáž včetně dodávky lišty | D14: m | E14: 9.4 | G14: =E14*F14 -> 0 | H14: 0.00015 | I14: =E14*H14 -> 0.00141 | J14: 0 | K14: =E14*J14 -> 0 | O14: 2 | AA14: 1 | AB14: 1 | AC14: 1 | AZ14: 1 | BA14: =IF(AZ14=1,G14,0) -> 0 | BB14: =IF(AZ14=2,G14,0) -> 0 | BC14: =IF(AZ14=3,G14,0) -> 0 | BD14: =IF(AZ14=4,G14,0) -> 0 | BE14: =IF(AZ14=5,G14,0) -> 0 | CA14: 1 | CB14: 1
C15: Chodba 2. - 3. NP 150x160 cm:(1,50+2*1,60)*2 | E15: 9.4 | M15: Chodba 2. - 3. NP 150x160 cm:(1,50+2*1,60)*2
B16: Celkem za | C16: 61 Upravy povrchů vnitřní | G16: =SUM(G7:G15) -> 0 | I16: =SUM(I7:I15) -> 0.1460039 | K16: =SUM(K7:K15) -> 0 | O16: 4 | BA16: =SUM(BA7:BA15) -> 0 | BB16: =SUM(BB7:BB15) -> 0 | BC16: =SUM(BC7:BC15) -> 0 | BD16: =SUM(BD7:BD15) -> 0 | BE16: =SUM(BE7:BE15) -> 0
A17: Díl: | B17: 63 | C17: Podlahy a podlahové konstrukce | O17: 1
A18: 5 | B18: 632411104R00 | C18: Vyrovnávací stěrka, ruční zprac. tl.4 mm | D18: m2 | E18: 1.05 | G18: =E18*F18 -> 0 | H18: 0.007 | I18: =E18*H18 -> 0.00735 | J18: 0 | K18: =E18*J18 -> 0 | O18: 2 | AA18: 1 | AB18: 1 | AC18: 1 | AZ18: 1 | BA18: =IF(AZ18=1,G18,0) -> 0 | BB18: =IF(AZ18=2,G18,0) -> 0 | BC18: =IF(AZ18=3,G18,0) -> 0 | BD18: =IF(AZ18=4,G18,0) -> 0 | BE18: =IF(AZ18=5,G18,0) -> 0 | CA18: 1 | CB18: 1
C19: Chodba 2. - 3. NP 150x160 cm- parapet:1,50*0,35*2 | E19: 1.05 | M19: Chodba 2. - 3. NP 150x160 cm- parapet:1,50*0,35*2
B20: Celkem za | C20: 63 Podlahy a podlahové konstrukce | G20: =SUM(G17:G19) -> 0 | I20: =SUM(I17:I19) -> 0.00735 | K20: =SUM(K17:K19) -> 0 | O20: 4 | BA20: =SUM(BA17:BA19) -> 0 | BB20: =SUM(BB17:BB19) -> 0 | BC20: =SUM(BC17:BC19) -> 0 | BD20: =SUM(BD17:BD19) -> 0 | BE20: =SUM(BE17:BE19) -> 0
A21: Díl: | B21: 94 | C21: Lešení a stavební výtahy | O21: 1
A22: 6 | B22: 941955001R00 | C22: Lešení lehké pomocné, výška podlahy do 1,2 m | D22: m2 | E22: 7.2 | G22: =E22*F22 -> 0 | H22: 0.00121 | I22: =E22*H22 -> 0.008712 | J22: 0 | K22: =E22*J22 -> 0 | O22: 2 | AA22: 1 | AB22: 1 | AC22: 1 | AZ22: 1 | BA22: =IF(AZ22=1,G22,0) -> 0 | BB22: =IF(AZ22=2,G22,0) -> 0 | BC22: =IF(AZ22=3,G22,0) -> 0 | BD22: =IF(AZ22=4,G22,0) -> 0 | BE22: =IF(AZ22=5,G22,0) -> 0 | CA22: 1 | CB22: 1
C23: Chodba 2. - 3. NP 150x160 cm:1,80*1,00*2*2 | E23: 7.2 | M23: Chodba 2. - 3. NP 150x160 cm:1,80*1,00*2*2
B24: Celkem za | C24: 94 Lešení a stavební výtahy | G24: =SUM(G21:G23) -> 0 | I24: =SUM(I21:I23) -> 0.008712 | K24: =SUM(K21:K23) -> 0 | O24: 4 | BA24: =SUM(BA21:BA23) -> 0 | BB24: =SUM(BB21:BB23) -> 0 | BC24: =SUM(BC21:BC23) -> 0 | BD24: =SUM(BD21:BD23) -> 0 | BE24: =SUM(BE21:BE23) -> 0
A25: Díl: | B25: 96 | C25: Bourání konstrukcí | O25: 1
A26: 7 | B26: 967031132R00 | C26: Přisekání rovných ostění cihelných na MVC | D26: m2 | E26: 3.29 | G26: =E26*F26 -> 0 | H26: 0 | I26: =E26*H26 -> 0 | J26: -0.055 | K26: =E26*J26 -> -0.18095 | O26: 2 | AA26: 1 | AB26: 1 | AC26: 1 | AZ26: 1 | BA26: =IF(AZ26=1,G26,0) -> 0 | BB26: =IF(AZ26=2,G26,0) -> 0 | BC26: =IF(AZ26=3,G26,0) -> 0 | BD26: =IF(AZ26=4,G26,0) -> 0 | BE26: =IF(AZ26=5,G26,0) -> 0 | CA26: 1 | CB26: 1
C27: Chodba 2. - 3. NP 150x160 cm:0,35*(1,50+2*1,60)*2 | E27: 3.29 | M27: Chodba 2. - 3. NP 150x160 cm:0,35*(1,50+2*1,60)*2
A28: 8 | B28: 968061113R00 | C28: Vyvěšení dřevěných okenních křídel pl. nad 1,5 m2 | D28: kus | E28: 2 | G28: =E28*F28 -> 0 | H28: 0 | I28: =E28*H28 -> 0 | J28: 0 | K28: =E28*J28 -> 0 | O28: 2 | AA28: 1 | AB28: 1 | AC28: 1 | AZ28: 1 | BA28: =IF(AZ28=1,G28,0) -> 0 | BB28: =IF(AZ28=2,G28,0) -> 0 | BC28: =IF(AZ28=3,G28,0) -> 0 | BD28: =IF(AZ28=4,G28,0) -> 0 | BE28: =IF(AZ28=5,G28,0) -> 0 | CA28: 1 | CB28: 1
C29: Chodba 2. - 3. NP 150x160 cm:1*2 | E29: 2 | M29: Chodba 2. - 3. NP 150x160 cm:1*2
A30: 9 | B30: 968062356RRX | C30: Vybourání dřevěných rámů oken dvojitých pl. 4 m2 včetně parapetů oken | D30: m2 | E30: 4.8 | G30: =E30*F30 -> 0 | H30: 0.00092 | I30: =E30*H30 -> 0.004416 | J30: -0.054 | K30: =E30*J30 -> -0.2592 | O30: 2 | AA30: 1 | AB30: 1 | AC30: 1 | AZ30: 1 | BA30: =IF(AZ30=1,G30,0) -> 0 | BB30: =IF(AZ30=2,G30,0) -> 0 | BC30: =IF(AZ30=3,G30,0) -> 0 | BD30: =IF(AZ30=4,G30,0) -> 0 | BE30: =IF(AZ30=5,G30,0) -> 0 | CA30: 1 | CB30: 1
C31: Chodba 2. - 3. NP 150x160 cm:1,50*1,60*2 | E31: 4.8 | M31: Chodba 2. - 3. NP 150x160 cm:1,50*1,60*2
B32: Celkem za | C32: 96 Bourání konstrukcí | G32: =SUM(G25:G31) -> 0 | I32: =SUM(I25:I31) -> 0.004416 | K32: =SUM(K25:K31) -> -0.44015 | O32: 4 | BA32: =SUM(BA25:BA31) -> 0 | BB32: =SUM(BB25:BB31) -> 0 | BC32: =SUM(BC25:BC31) -> 0 | BD32: =SUM(BD25:BD31) -> 0 | BE32: =SUM(BE25:BE31) -> 0
A33: Díl: | B33: 99 | C33: Staveništní přesun hmot | O33: 1
A34: 10 | B34: 999281111R00 | C34: Přesun hmot pro opravy a údržbu do výšky 25 m | D34: t | E34: 0.1664819 | G34: =E34*F34 -> 0 | H34: 0 | I34: =E34*H34 -> 0 | K34: =E34*J34 -> 0 | O34: 2 | AA34: 7 | AB34: 1 | AC34: 2 | AZ34: 1 | BA34: =IF(AZ34=1,G34,0) -> 0 | BB34: =IF(AZ34=2,G34,0) -> 0 | BC34: =IF(AZ34=3,G34,0) -> 0 | BD34: =IF(AZ34=4,G34,0) -> 0 | BE34: =IF(AZ34=5,G34,0) -> 0 | CA34: 7 | CB34: 1
B35: Celkem za | C35: 99 Staveništní přesun hmot | G35: =SUM(G33:G34) -> 0 | I35: =SUM(I33:I34) -> 0 | K35: =SUM(K33:K34) -> 0 | O35: 4 | BA35: =SUM(BA33:BA34) -> 0 | BB35: =SUM(BB33:BB34) -> 0 | BC35: =SUM(BC33:BC34) -> 0 | BD35: =SUM(BD33:BD34) -> 0 | BE35: =SUM(BE33:BE34) -> 0
A36: Díl: | B36: 764 | C36: Konstrukce klempířské | O36: 1
A37: 11 | B37: 764510950RRX | C37: Oprava oplechování parapetů Cu,rš 330 mm Přichycení stávajícího parapetu k novému oknu | D37: m | E37: 3 | G37: =E37*F37 -> 0 | H37: 0.00361 | I37: =E37*H37 -> 0.01083 | J37: 0 | K37: =E37*J37 -> 0 | O37: 2 | AA37: 1 | AB37: 7 | AC37: 7 | AZ37: 2 | BA37: =IF(AZ37=1,G37,0) -> 0 | BB37: =IF(AZ37=2,G37,0) -> 0 | BC37: =IF(AZ37=3,G37,0) -> 0 | BD37: =IF(AZ37=4,G37,0) -> 0 | BE37: =IF(AZ37=5,G37,0) -> 0 | CA37: 1 | CB37: 7
C38: Chodba 2. - 3. NP 150x160 cm:1,50*2 | E38: 3 | M38: Chodba 2. - 3. NP 150x160 cm:1,50*2
A39: 12 | B39: 998764103R00 | C39: Přesun hmot pro klempířské konstr., výšky do 24 m | D39: t | E39: 0.01083 | G39: =E39*F39 -> 0 | H39: 0 | I39: =E39*H39 -> 0 | K39: =E39*J39 -> 0 | O39: 2 | AA39: 7 | AB39: 1001 | AC39: 5 | AZ39: 2 | BA39: =IF(AZ39=1,G39,0) -> 0 | BB39: =IF(AZ39=2,G39,0) -> 0 | BC39: =IF(AZ39=3,G39,0) -> 0 | BD39: =IF(AZ39=4,G39,0) -> 0 | BE39: =IF(AZ39=5,G39,0) -> 0 | CA39: 7 | CB39: 1001
B40: Celkem za | C40: 764 Konstrukce klempířské | G40: =SUM(G36:G39) -> 0 | I40: =SUM(I36:I39) -> 0.01083 | K40: =SUM(K36:K39) -> 0 | O40: 4 | BA40: =SUM(BA36:BA39) -> 0 | BB40: =SUM(BB36:BB39) -> 0 | BC40: =SUM(BC36:BC39) -> 0 | BD40: =SUM(BD36:BD39) -> 0 | BE40: =SUM(BE36:BE39) -> 0
A41: Díl: | B41: 766 | C41: Konstrukce truhlářské | O41: 1
A42: 13 | B42: 766601211RT1 | C42: Těsnění okenní spáry, ostění, PT fólie+ PP páska folie š. 70 mm, páska tl. 2 mm, š. 10 mm | D42: m | E42: 12.4 | G42: =E42*F42 -> 0 | H42: 0 | I42: =E42*H42 -> 0 | J42: 0 | K42: =E42*J42 -> 0 | O42: 2 | AA42: 1 | AB42: 7 | AC42: 7 | AZ42: 2 | BA42: =IF(AZ42=1,G42,0) -> 0 | BB42: =IF(AZ42=2,G42,0) -> 0 | BC42: =IF(AZ42=3,G42,0) -> 0 | BD42: =IF(AZ42=4,G42,0) -> 0 | BE42: =IF(AZ42=5,G42,0) -> 0 | CA42: 1 | CB42: 7
C43: Instalace a dodávka parotěsné okenní fólie a paropropustné expanzní pásky. | L43: Instalace a dodávka parotěsné okenní fólie a paropropustné expanzní pásky. | O43: 3
C44: Chodba 2. - 3. NP 150x160 cm:(1,50+1,60)*2*2 | E44: 12.4 | M44: Chodba 2. - 3. NP 150x160 cm:(1,50+1,60)*2*2
A45: 14 | B45: 766694122R00 | C45: Montáž parapetních desek š.nad 30 cm,dl.do 160 cm | D45: kus | E45: 3 | G45: =E45*F45 -> 0 | H45: 2e-05 | I45: =E45*H45 -> 6e-05 | J45: 0 | K45: =E45*J45 -> 0 | O45: 2 | AA45: 1 | AB45: 7 | AC45: 7 | AZ45: 2 | BA45: =IF(AZ45=1,G45,0) -> 0 | BB45: =IF(AZ45=2,G45,0) -> 0 | BC45: =IF(AZ45=3,G45,0) -> 0 | BD45: =IF(AZ45=4,G45,0) -> 0 | BE45: =IF(AZ45=5,G45,0) -> 0 | CA45: 1 | CB45: 7
C46: Chodba 2. - 3. NP 150x160 cm:1,50*2 | E46: 3 | M46: Chodba 2. - 3. NP 150x160 cm:1,50*2
A47: 15 | B47: 766711001R00 | C47: Montáž oken a balkonových dveří s vypěněním | D47: m | E47: 12.4 | G47: =E47*F47 -> 0 | H47: 2e-05 | I47: =E47*H47 -> 0.000248 | J47: 0 | K47: =E47*J47 -> 0 | O47: 2 | AA47: 1 | AB47: 7 | AC47: 7 | AZ47: 2 | BA47: =IF(AZ47=1,G47,0) -> 0 | BB47: =IF(AZ47=2,G47,0) -> 0 | BC47: =IF(AZ47=3,G47,0) -> 0 | BD47: =IF(AZ47=4,G47,0) -> 0 | BE47: =IF(AZ47=5,G47,0) -> 0 | CA47: 1 | CB47: 7
C48: Montáž dřevěných oken a dveří včetně dodávky a montáže PU pěny a spojovacích prostředků. | L48: Montáž dřevěných oken a dveří včetně dodávky a montáže PU pěny a spojovacích prostředků. | O48: 3
C49: Chodba 2. - 3. NP 150x160 cm:(1,50+1,60)*2*2 | E49: 12.4 | M49: Chodba 2. - 3. NP 150x160 cm:(1,50+1,60)*2*2
A50: 16 | B50: 61130946 | C50: Okno dřevěné 2křídl. OS2B 150x160 cm Profilace rámů a příček dle požadavku NPÚ | D50: kus | E50: 2 | G50: =E50*F50 -> 0 | H50: 0.127 | I50: =E50*H50 -> 0.254 | K50: =E50*J50 -> 0 | O50: 2 | AA50: 3 | AB50: 7 | AC50: 61130946 | AZ50: 2 | BA50: =IF(AZ50=1,G50,0) -> 0 | BB50: =IF(AZ50=2,G50,0) -> 0 | BC50: =IF(AZ50=3,G50,0) -> 0 | BD50: =IF(AZ50=4,G50,0) -> 0 | BE50: =IF(AZ50=5,G50,0) -> 0 | CA50: 3 | CB50: 7
C51: profil EURO | L51: profil EURO | O51: 3
C52: dvoukřídlé, otevíravé a sklápěcí | L52: dvoukřídlé, otevíravé a sklápěcí | O52: 3
C53: materiál: třívrstvový hranolek SM | L53: materiál: třívrstvový hranolek SM | O53: 3
C54: sklo izolační - trojsklo | L54: sklo izolační - trojsklo | O54: 3
C55: okapnice: hliníková | L55: okapnice: hliníková | O55: 3
C56: nátěr dle stávající barvy v objektu | L56: nátěr dle stávající barvy v objektu | O56: 3
C57: Poznámka: | L57: Poznámka: | O57: 3
C58: Před výrobou oken si zhotovitel zaměří každý otvor pro dodávku nového okna | L58: Před výrobou oken si zhotovitel zaměří každý otvor pro dodávku nového okna | O58: 3
C59: Chodba 2. - 3. NP :2 | E59: 2 | M59: Chodba 2. - 3. NP :2
A60: 17 | B60: 61187553 | C60: Deska parapetní šířka 35 cm | D60: m | E60: 3.3 | G60: =E60*F60 -> 0 | H60: 0.00577 | I60: =E60*H60 -> 0.019041 | K60: =E60*J60 -> 0 | O60: 2 | AA60: 3 | AB60: 7 | AC60: 61187553 | AZ60: 2 | BA60: =IF(AZ60=1,G60,0) -> 0 | BB60: =IF(AZ60=2,G60,0) -> 0 | BC60: =IF(AZ60=3,G60,0) -> 0 | BD60: =IF(AZ60=4,G60,0) -> 0 | BE60: =IF(AZ60=5,G60,0) -> 0 | CA60: 3 | CB60: 7
C61: Chodba 2. - 3. NP 150x160 cm:1,50*2*1,1 | E61: 3.3 | M61: Chodba 2. - 3. NP 150x160 cm:1,50*2*1,1
A62: 18 | B62: 998766103R00 | C62: Přesun hmot pro truhlářské konstr., výšky do 24 m | D62: t | E62: 0.273349 | G62: =E62*F62 -> 0 | H62: 0 | I62: =E62*H62 -> 0 | K62: =E62*J62 -> 0 | O62: 2 | AA62: 7 | AB62: 1001 | AC62: 5 | AZ62: 2 | BA62: =IF(AZ62=1,G62,0) -> 0 | BB62: =IF(AZ62=2,G62,0) -> 0 | BC62: =IF(AZ62=3,G62,0) -> 0 | BD62: =IF(AZ62=4,G62,0) -> 0 | BE62: =IF(AZ62=5,G62,0) -> 0 | CA62: 7 | CB62: 1001
B63: Celkem za | C63: 766 Konstrukce truhlářské | G63: =SUM(G41:G62) -> 0 | I63: =SUM(I41:I62) -> 0.273349 | K63: =SUM(K41:K62) -> 0 | O63: 4 | BA63: =SUM(BA41:BA62) -> 0 | BB63: =SUM(BB41:BB62) -> 0 | BC63: =SUM(BC41:BC62) -> 0 | BD63: =SUM(BD41:BD62) -> 0 | BE63: =SUM(BE41:BE62) -> 0
A64: Díl: | B64: 784 | C64: Malby | O64: 1
A65: 19 | B65: 784195212RRX | C65: Malba Primalex Plus, bílá, s penetrací, 2 x ostění šířky do 50cm | D65: m | E65: 9.4 | G65: =E65*F65 -> 0 | H65: 0.00015 | I65: =E65*H65 -> 0.00141 | J65: 0 | K65: =E65*J65 -> 0 | O65: 2 | AA65: 1 | AB65: 7 | AC65: 7 | AZ65: 2 | BA65: =IF(AZ65=1,G65,0) -> 0 | BB65: =IF(AZ65=2,G65,0) -> 0 | BC65: =IF(AZ65=3,G65,0) -> 0 | BD65: =IF(AZ65=4,G65,0) -> 0 | BE65: =IF(AZ65=5,G65,0) -> 0 | CA65: 1 | CB65: 7
C66: Chodba 2. - 3. NP 150x160 cm:(1,50+2*1,60)*2 | E66: 9.4 | M66: Chodba 2. - 3. NP 150x160 cm:(1,50+2*1,60)*2
B67: Celkem za | C67: 784 Malby | G67: =SUM(G64:G66) -> 0 | I67: =SUM(I64:I66) -> 0.00141 | K67: =SUM(K64:K66) -> 0 | O67: 4 | BA67: =SUM(BA64:BA66) -> 0 | BB67: =SUM(BB64:BB66) -> 0 | BC67: =SUM(BC64:BC66) -> 0 | BD67: =SUM(BD64:BD66) -> 0 | BE67: =SUM(BE64:BE66) -> 0
A68: Díl: | B68: D96 | C68: Přesuny suti a vybouraných hmot | O68: 1
A69: 20 | B69: 979011211R00 | C69: Svislá doprava suti a vybour. hmot za 2.NP nošením | D69: t | E69: 0.44015 | G69: =E69*F69 -> 0 | H69: 0 | I69: =E69*H69 -> 0 | K69: =E69*J69 -> 0 | O69: 2 | AA69: 8 | AB69: 0 | AC69: 3 | AZ69: 1 | BA69: =IF(AZ69=1,G69,0) -> 0 | BB69: =IF(AZ69=2,G69,0) -> 0 | BC69: =IF(AZ69=3,G69,0) -> 0 | BD69: =IF(AZ69=4,G69,0) -> 0 | BE69: =IF(AZ69=5,G69,0) -> 0 | CA69: 8 | CB69: 0
A70: 21 | B70: 979011219R00 | C70: Přípl.k svislé dopr.suti za každé další NP nošením | D70: t | E70: 0.44015 | G70: 0 | H70: 0 | I70: 0 | K70: 0 | O70: 2 | AA70: 8 | AB70: 0 | AC70: 3 | AZ70: 1 | BA70: 0 | BB70: 0 | BC70: 0 | BD70: 0 | BE70: 0 | CA70: 8 | CB70: 0
A71: 22 | B71: 979081111R00 | C71: Odvoz suti a vybour. hmot na skládku zhotovitele | D71: t | E71: 0.44015 | G71: 0 | H71: 0 | I71: 0 | K71: 0 | O71: 2 | AA71: 8 | AB71: 0 | AC71: 3 | AZ71: 1 | BA71: 0 | BB71: 0 | BC71: 0 | BD71: 0 | BE71: 0 | CA71: 8 | CB71: 0
A72: 23 | B72: 979082111R00 | C72: Vnitrostaveništní doprava suti do 10 m | D72: t | E72: 0.44015 | G72: 0 | H72: 0 | I72: 0 | K72: 0 | O72: 2 | AA72: 8 | AB72: 0 | AC72: 3 | AZ72: 1 | BA72: 0 | BB72: 0 | BC72: 0 | BD72: 0 | BE72: 0 | CA72: 8 | CB72: 0
A73: 24 | B73: 979082121R00 | C73: Příplatek k vnitrost. dopravě suti za dalších 5 m | D73: t | E73: 6.60225 | G73: 0 | H73: 0 | I73: 0 | K73: 0 | O73: 2 | AA73: 8 | AB73: 0 | AC73: 3 | AZ73: 1 | BA73: 0 | BB73: 0 | BC73: 0 | BD73: 0 | BE73: 0 | CA73: 8 | CB73: 0
A74: 25 | B74: 979990107R00 | C74: Poplatek za skládku suti - směs betonu,cihel,dřeva | D74: t | E74: 0.44015 | G74: 0 | H74: 0 | I74: 0 | K74: 0 | O74: 2 | AA74: 8 | AB74: 0 | AC74: 3 | AZ74: 1 | BA74: 0 | BB74: 0 | BC74: 0 | BD74: 0 | BE74: 0 | CA74: 8 | CB74: 0
B75: Celkem za | C75: D96 Přesuny suti a vybouraných hmot | G75: =SUM(G68:G74) -> 0 | I75: =SUM(I68:I74) -> 0 | K75: =SUM(K68:K74) -> 0 | O75: 4 | BA75: =SUM(BA68:BA74) -> 0 | BB75: =SUM(BB68:BB74) -> 0 | BC75: =SUM(BC68:BC74) -> 0 | BD75: =SUM(BD68:BD74) -> 0 | BE75: =SUM(BE68:BE74) -> 0
